Body Name,Mapped No,Cleansed Supplier Name,Family Category,Sub Category,Ap Net Value,Ap Tax Valve,Ap Gross Value,Paid Date,Cleansed Portfolio
Nottinghamshire County Council,07-00008,REDEMTECH,Professional Services,Financial and Insurance Services,0,0.01,0.01,25-Oct-11,TBC
Nottinghamshire County Council,07-00025,ENNSTONE JOHNSTON LTD,External Services (Highways & Culture),Earth and Stone Aggregates ,0,-0.01,-0.01,03-Oct-11,TBC
Nottinghamshire County Council,07-00042,HIRST SIGNS LTD,Soft Facilities Management,Printed Media and Signage,0,0.01,0.01,03-Oct-11,TBC
Nottinghamshire County Council,07-00043,HIRST SIGNS LTD,Soft Facilities Management,Printed Media and Signage,0,0.01,0.01,03-Oct-11,TBC
Nottinghamshire County Council,07-00047,NEWLAND FREEHOLDS LTD,Professional Services,Property Management,0,"1,250.00","1,250.00",03-Oct-11,TBC
Nottinghamshire County Council,07-00093,TARMAC CENTRAL LTD,External Services (Highways & Culture),Highways and Works,0,-0.01,-0.01,04-Oct-11,TBC
Nottinghamshire County Council,07-00108,TARMAC CENTRAL LTD,External Services (Highways & Culture),Highways and Works,0,-0.01,-0.01,04-Oct-11,TBC
Nottinghamshire County Council,07-00109,TARMAC CENTRAL LTD,External Services (Highways & Culture),Highways and Works,0,-0.01,-0.01,04-Oct-11,TBC
Nottinghamshire County Council,07-00116,DHS HEATING SERVICES,Hard Facilities Management ,Heating and Ventilation (Inc A/C),0,-360,-360,11-Oct-11,TBC
Nottinghamshire County Council,07-00124,SPECIALIST COMPUTER CENTRES LTD,ICT,Computer Services,0,319,319,03-Oct-11,TBC
Nottinghamshire County Council,07-00127,CAPITA SOCIAL CARE AND HOUSING,Care,Domiciliary Care,0,100.14,100.14,06-Oct-11,TBC
Nottinghamshire County Council,07-00129,THE SLATING & TILING CO (MIDLANDS) LTD,Hard Facilities Management ,Roofing Services,0,"1,399.00","1,399.00",04-Oct-11,TBC
Nottinghamshire County Council,07-00151,TARMAC CENTRAL LTD,External Services (Highways & Culture),Highways and Works,0,-0.01,-0.01,05-Oct-11,TBC
Nottinghamshire County Council,07-00171,CHELTENHAM COURSEWARE LIMITED,TBC,TBC,0,134.5,134.5,07-Oct-11,TBC
Nottinghamshire County Council,07-00185,TARMAC CENTRAL LTD,External Services (Highways & Culture),Highways and Works,0,-0.01,-0.01,11-Oct-11,TBC
Nottinghamshire County Council,07-00204,SPECIALIST COMPUTER CENTRES LTD,ICT,Computer Services,0,0.02,0.02,14-Oct-11,TBC
Nottinghamshire County Council,07-00252,TARMAC CENTRAL LTD,External Services (Highways & Culture),Highways and Works,0,-0.01,-0.01,05-Oct-11,TBC
Nottinghamshire County Council,07-00271,TARMAC CENTRAL LTD,External Services (Highways & Culture),Highways and Works,0,-0.01,-0.01,12-Oct-11,TBC
Nottinghamshire County Council,07-00274,EDEN BROWN LTD,People,Recruitment,0,464.87,464.87,06-Oct-11,TBC
Nottinghamshire County Council,07-00275,EDEN BROWN LTD,People,Recruitment,0,303.62,303.62,06-Oct-11,TBC
Nottinghamshire County Council,07-00278,ON-CALL RECRUITMENT,People,Recruitment,0,-0.01,-0.01,13-Oct-11,TBC
Nottinghamshire County Council,07-00279,ON-CALL RECRUITMENT,People,Recruitment,0,-0.01,-0.01,06-Oct-11,TBC
Nottinghamshire County Council,07-00353,ACJADE TRADING LIMITED,TBC,TBC,0,0.04,0.04,20-Oct-11,TBC
Nottinghamshire County Council,07-00385,EDEN BROWN LTD,People,Recruitment,0,509.64,509.64,13-Oct-11,TBC
Nottinghamshire County Council,07-00390,TARMAC CENTRAL LTD,External Services (Highways & Culture),Highways and Works,0,-0.01,-0.01,18-Oct-11,TBC
Nottinghamshire County Council,07-00405,SPECIALIST COMPUTER CENTRES LTD,ICT,Computer Services,0,-0.01,-0.01,24-Oct-11,TBC
Nottinghamshire County Council,07-00485,TARMAC CENTRAL LTD,External Services (Highways & Culture),Highways and Works,0,-0.01,-0.01,18-Oct-11,TBC
Nottinghamshire County Council,07-00486,TARMAC CENTRAL LTD,External Services (Highways & Culture),Highways and Works,0,-0.01,-0.01,12-Oct-11,TBC
Nottinghamshire County Council,07-00488,MILLER FREEMAN AND SONS (NOTTINGHAM) LTD,Hard Facilities Management ,Electrical Systems and Lighting,0,0.01,0.01,13-Oct-11,TBC
Nottinghamshire County Council,07-00489,AMBER-RTM LTD,External Services (Highways & Culture),Highways and Works,0,0.01,0.01,04-Oct-11,TBC
Nottinghamshire County Council,07-00506,VODAFONE LTD,ICT,Telecommunications and Media,0,-0.01,-0.01,06-Oct-11,TBC
Nottinghamshire County Council,07-00543,ON-CALL RECRUITMENT,People,Recruitment,0,-0.01,-0.01,20-Oct-11,TBC
Nottinghamshire County Council,07-00600,JACKSON BUILDING CENTRES LTD,Hard Facilities Management ,Building and Construction Supplies,0,-0.01,-0.01,05-Oct-11,TBC
Nottinghamshire County Council,07-00632,EMO OIL LTD,Hard Facilities Management ,Utilities,0,-100.21,-100.21,03-Oct-11,TBC
Nottinghamshire County Council,07-00640,TARMAC CENTRAL LTD,External Services (Highways & Culture),Highways and Works,0,-0.01,-0.01,05-Oct-11,TBC
Nottinghamshire County Council,07-00779,HIRST SIGNS LTD,Soft Facilities Management,Printed Media and Signage,0,-0.01,-0.01,03-Oct-11,TBC
Nottinghamshire County Council,07-00802,ON-CALL RECRUITMENT,People,Recruitment,0,-0.01,-0.01,03-Oct-11,TBC
Nottinghamshire County Council,07-00812,ENNSTONE JOHNSTON LTD,External Services (Highways & Culture),Earth and Stone Aggregates ,0,-0.01,-0.01,03-Oct-11,TBC
Nottinghamshire County Council,07-00814,NUNN'S CAR HIRE,Transport & Travel,Taxi,0,-28.1,-28.1,03-Oct-11,TBC
Nottinghamshire County Council,07-00825,TARMAC CENTRAL LTD,External Services (Highways & Culture),Highways and Works,0,-0.01,-0.01,25-Oct-11,TBC
Nottinghamshire County Council,07-00837,ABLE COMMUNITY CARE,Care,Residential Care,0,-487.4,-487.4,04-Oct-11,TBC
Nottinghamshire County Council,07-00838,ABLE COMMUNITY CARE,Care,Residential Care,0,-487.4,-487.4,06-Oct-11,TBC
Nottinghamshire County Council,07-00857,HIRST SIGNS LTD,Soft Facilities Management,Printed Media and Signage,0,-0.01,-0.01,21-Oct-11,TBC
Nottinghamshire County Council,07-00864,STONE COMPUTERS LTD,ICT,Hardware,0,-0.01,-0.01,27-Oct-11,TBC
Nottinghamshire County Council,07-00866,STONE COMPUTERS LTD,ICT,Hardware,0,-0.01,-0.01,27-Oct-11,TBC
Nottinghamshire County Council,07-00867,KRCS GROUP PLC,ICT,Software,0,-0.01,-0.01,05-Oct-11,TBC
Nottinghamshire County Council,07-00924,CARDEA,Care,Healthcare Services,0,140.14,140.14,04-Oct-11,TBC
Nottinghamshire County Council,07-00940,TARMAC CENTRAL LTD,External Services (Highways & Culture),Highways and Works,0,-0.01,-0.01,25-Oct-11,TBC
Nottinghamshire County Council,07-00970,EXPRESS ASPHALT LTD,External Services (Highways & Culture),Highways and Works,0,0.01,0.01,04-Oct-11,TBC
Nottinghamshire County Council,07-00979,ENNSTONE JOHNSTON LTD,External Services (Highways & Culture),Earth and Stone Aggregates ,0,-0.01,-0.01,04-Oct-11,TBC
Nottinghamshire County Council,07-00981,ENNSTONE JOHNSTON LTD,External Services (Highways & Culture),Earth and Stone Aggregates ,0,0.01,0.01,04-Oct-11,TBC
Nottinghamshire County Council,07-00982,ENNSTONE JOHNSTON LTD,External Services (Highways & Culture),Earth and Stone Aggregates ,0,-0.01,-0.01,04-Oct-11,TBC
Nottinghamshire County Council,07-00984,ENNSTONE JOHNSTON LTD,External Services (Highways & Culture),Earth and Stone Aggregates ,0,0.01,0.01,04-Oct-11,TBC
Nottinghamshire County Council,07-00986,ENNSTONE JOHNSTON LTD,External Services (Highways & Culture),Earth and Stone Aggregates ,0,-0.01,-0.01,04-Oct-11,TBC
Nottinghamshire County Council,07-01004,EXPRESS ASPHALT LTD,External Services (Highways & Culture),Highways and Works,0,0.01,0.01,04-Oct-11,TBC
Nottinghamshire County Council,07-01174,BRIAN CLEGG (EDUCATIONAL PRODUCTS),External Services (Highways & Culture),Education Services,0,-0.01,-0.01,06-Oct-11,TBC
Nottinghamshire County Council,07-01192,SHELTER MAINTENANCE CO,Hard Facilities Management ,Building Construction Services,0,290.6,290.6,05-Oct-11,TBC
Nottinghamshire County Council,07-01201,SPECIALIST COMPUTER CENTRES LTD,ICT,Computer Services,0,0.01,0.01,27-Oct-11,TBC
Nottinghamshire County Council,07-01225,TARMAC CENTRAL LTD,External Services (Highways & Culture),Highways and Works,0,-0.01,-0.01,25-Oct-11,TBC
Nottinghamshire County Council,07-01226,TARMAC CENTRAL LTD,External Services (Highways & Culture),Highways and Works,0,-0.01,-0.01,25-Oct-11,TBC
Nottinghamshire County Council,07-01230,TARMAC CENTRAL LTD,External Services (Highways & Culture),Highways and Works,0,-0.01,-0.01,26-Oct-11,TBC
Nottinghamshire County Council,07-01232,CEMEX UK OPERATIONS,External Services (Highways & Culture),Earth and Stone Aggregates ,0,-0.01,-0.01,05-Oct-11,TBC
Nottinghamshire County Council,07-01370,ACADEMY SOCIAL CARE LTD,Care,Domiciliary Care,0,597.88,597.88,06-Oct-11,TBC
Nottinghamshire County Council,07-01371,ACADEMY SOCIAL CARE LTD,Care,Domiciliary Care,0,597.88,597.88,06-Oct-11,TBC
Nottinghamshire County Council,07-01372,ACADEMY SOCIAL CARE LTD,Care,Domiciliary Care,0,479.69,479.69,06-Oct-11,TBC
Nottinghamshire County Council,07-01373,ACADEMY SOCIAL CARE LTD,Care,Domiciliary Care,0,596.26,596.26,06-Oct-11,TBC
Nottinghamshire County Council,07-01444,TARMAC CENTRAL LTD,External Services (Highways & Culture),Highways and Works,0,-0.01,-0.01,18-Oct-11,TBC
Nottinghamshire County Council,07-01460,NEWARK CONCRETE,Hard Facilities Management ,Concrete Installation and Repair Services,0,-0.01,-0.01,06-Oct-11,TBC
Nottinghamshire County Council,07-01462,BATCHMIX LTD,Hard Facilities Management ,Concrete Installation and Repair Services,0,-0.01,-0.01,06-Oct-11,TBC
Nottinghamshire County Council,07-01464,SIMS GROUP UK LTD,Soft Facilities Management,Scrap and Waste Materials,0,-0.01,-0.01,19-Oct-11,TBC
Nottinghamshire County Council,07-01599,THE GAP GROUP,External Services (Highways & Culture),Construction Plant and Equipment,0,14.75,14.75,07-Oct-11,TBC
Nottinghamshire County Council,07-01624,C P BERRY GROUNDWORKS LTD,External Services (Highways & Culture),Highways and Works,0,0.01,0.01,07-Oct-11,TBC
Nottinghamshire County Council,07-01651,DESIGN SEATING LTD,Soft Facilities Management,Furniture and Furnishings,0,0.01,0.01,07-Oct-11,TBC
Nottinghamshire County Council,07-01873,RAI TECHNICAL LTD,Hard Facilities Management ,Tools and General Machinery,0,-0.01,-0.01,10-Oct-11,TBC
Nottinghamshire County Council,07-01933,BUTLER AND WILLOW LTD,Soft Facilities Management,Office Supplies and Machines (Non It),0,"1,905.40","1,905.40",31-Oct-11,TBC
Nottinghamshire County Council,07-02185,EDEN BROWN LTD,People,Recruitment,0,367.15,367.15,20-Oct-11,TBC
Nottinghamshire County Council,07-02186,EDEN BROWN LTD,People,Recruitment,0,365.71,365.71,24-Oct-11,TBC
Nottinghamshire County Council,07-02189,WASTECYCLE LTD,Soft Facilities Management,Environmental Services,0,-0.01,-0.01,11-Oct-11,TBC
Nottinghamshire County Council,07-02192,TOTAL UK LTD,Transport & Travel,Gas Fuels and Lubricants ,0,-0.01,-0.01,11-Oct-11,TBC
Nottinghamshire County Council,07-02245,HULLEYS,Soft Facilities Management,Frozen Goods,0,-0.01,-0.01,12-Oct-11,TBC
Nottinghamshire County Council,07-05584,ASHTEAD PLANT HIRE CO LTD,External Services (Highways & Culture),Construction Plant and Equipment,0,10.08,10.08,17-Oct-11,TBC
Nottinghamshire County Council,07-05585,ACADEMY SOCIAL CARE LTD,Care,Domiciliary Care,0,601.69,601.69,13-Oct-11,TBC
Nottinghamshire County Council,07-05586,ACADEMY SOCIAL CARE LTD,Care,Domiciliary Care,0,598.42,598.42,13-Oct-11,TBC
Nottinghamshire County Council,07-05587,CARDEA,Care,Healthcare Services,0,104.08,104.08,13-Oct-11,TBC
Nottinghamshire County Council,07-05588,CARDEA,Care,Healthcare Services,0,131.18,131.18,18-Oct-11,TBC
Nottinghamshire County Council,07-05593,BESTWOOD LODGE HOTEL,Transport & Travel,Hotels and Venues,0,0.01,0.01,13-Oct-11,TBC
Nottinghamshire County Council,07-05594,AUTOMOTIVE LEASING,Transport & Travel,Motor Vehicles,0,-0.01,-0.01,13-Oct-11,TBC
Nottinghamshire County Council,07-05595,AUTOMOTIVE LEASING,Transport & Travel,Motor Vehicles,0,-0.01,-0.01,13-Oct-11,TBC
Nottinghamshire County Council,07-05603,CHOICES FOR LIFE,Professional Services,Politics and Civic Affairs,0,0.01,0.01,14-Oct-11,TBC
Nottinghamshire County Council,07-05640,LEX AUTOLEASE LTD,Transport & Travel,Motor Vehicles,0,-0.05,-0.05,13-Oct-11,TBC
Nottinghamshire County Council,07-05670,GLASDON UK LTD,Soft Facilities Management,Cleaning Equipment and Janitorial Supplies,0,-0.01,-0.01,13-Oct-11,TBC
Nottinghamshire County Council,07-05681,THE LOCAL FUTURES GROUP LTD,Care,Personal & Domestic Services,0,"3,000.00","3,000.00",13-Oct-11,TBC
Nottinghamshire County Council,07-05766,ENNSTONE JOHNSTON LTD,External Services (Highways & Culture),Earth and Stone Aggregates ,0,0.01,0.01,13-Oct-11,TBC
Nottinghamshire County Council,07-05780,NEWARK CONCRETE,Hard Facilities Management ,Concrete Installation and Repair Services,0,-0.01,-0.01,17-Oct-11,TBC
Nottinghamshire County Council,07-05849,BSS GROUP PLC,Hard Facilities Management ,Building and Construction Supplies,0,-0.01,-0.01,24-Oct-11,TBC
Nottinghamshire County Council,07-05994,CEMEX UK OPERATIONS,External Services (Highways & Culture),Earth and Stone Aggregates ,0,0.01,0.01,17-Oct-11,TBC
Nottinghamshire County Council,07-06193,FARMHOUSE SPECIALITY FOODS,Soft Facilities Management,Prepared and Preserved Foods,0,-0.01,-0.01,17-Oct-11,TBC
Nottinghamshire County Council,07-06194,REGATTA LTD,Soft Facilities Management,Clothing,0,-0.02,-0.02,17-Oct-11,TBC
Nottinghamshire County Council,07-06221,TICKETS.COM LTD,TBC,TBC,0,135.37,135.37,17-Oct-11,TBC
Nottinghamshire County Council,07-06223,CARDEA,Care,Healthcare Services,0,128.37,128.37,17-Oct-11,TBC
Nottinghamshire County Council,07-06245,EXPRESS ASPHALT LTD,External Services (Highways & Culture),Highways and Works,0,0.01,0.01,17-Oct-11,TBC
Nottinghamshire County Council,07-06248,EXPRESS ASPHALT LTD,External Services (Highways & Culture),Highways and Works,0,0.02,0.02,17-Oct-11,TBC
Nottinghamshire County Council,07-06298,TARMAC CENTRAL LTD,External Services (Highways & Culture),Highways and Works,0,-0.01,-0.01,20-Oct-11,TBC
Nottinghamshire County Council,07-06402,HOBART UK LTD,Soft Facilities Management,Prepared and Preserved Foods,0,99,99,21-Oct-11,TBC
Nottinghamshire County Council,07-06844,BARKER AND SHELDON,Hard Facilities Management ,Electrical Systems and Lighting,0,-0.01,-0.01,26-Oct-11,TBC
Nottinghamshire County Council,07-06941,CARDEA,Care,Healthcare Services,0,142.66,142.66,20-Oct-11,TBC
Nottinghamshire County Council,07-07050,BEESWIFT,Soft Facilities Management,Clothing,0,-103.3,-103.3,20-Oct-11,TBC
Nottinghamshire County Council,07-07054,SIMS GROUP UK LTD,Soft Facilities Management,Scrap and Waste Materials,0,-0.01,-0.01,21-Oct-11,TBC
Nottinghamshire County Council,07-07138,VODAFONE LTD,ICT,Telecommunications and Media,0,-0.01,-0.01,19-Oct-11,TBC
Nottinghamshire County Council,07-07168,BEESWIFT,Soft Facilities Management,Clothing,0,-105.8,-105.8,20-Oct-11,TBC
Nottinghamshire County Council,07-07198,CEMEX UK OPERATIONS,External Services (Highways & Culture),Earth and Stone Aggregates ,0,0.01,0.01,21-Oct-11,TBC
Nottinghamshire County Council,07-07206,A-LINE TAXIS,Transport & Travel,Taxi,0,0.01,0.01,20-Oct-11,TBC
Nottinghamshire County Council,07-07312,BRAKE BROS LTD,Soft Facilities Management,Prepared and Preserved Foods,0,0.01,0.01,25-Oct-11,TBC
Nottinghamshire County Council,07-07318,BRAKE BROS LTD,Soft Facilities Management,Prepared and Preserved Foods,0,-0.03,-0.03,25-Oct-11,TBC
Nottinghamshire County Council,07-07319,EAGLE ENVELOPES LTD,Soft Facilities Management,Office Supplies and Machines (Non It),0,0.01,0.01,25-Oct-11,TBC
Nottinghamshire County Council,07-07320,BRAKE BROS LTD,Soft Facilities Management,Prepared and Preserved Foods,0,-0.03,-0.03,25-Oct-11,TBC
Nottinghamshire County Council,07-07434,REED EMPLOYMENT PLC,People,Recruitment,0,247.45,247.45,21-Oct-11,TBC
Nottinghamshire County Council,07-07435,REED EMPLOYMENT PLC,People,Recruitment,0,169.68,169.68,21-Oct-11,TBC
Nottinghamshire County Council,07-07436,REED EMPLOYMENT PLC,People,Recruitment,0,247.45,247.45,21-Oct-11,TBC
Nottinghamshire County Council,07-07439,TRANS UK SUPPLIES LTD,ICT,Audio and Visual Equipment,0,-0.03,-0.03,26-Oct-11,TBC
Nottinghamshire County Council,07-07440,TRANS UK SUPPLIES LTD,ICT,Audio and Visual Equipment,0,-0.01,-0.01,26-Oct-11,TBC
Nottinghamshire County Council,07-07634,N POWER,Hard Facilities Management ,Utilities,0,-0.01,-0.01,26-Oct-11,TBC
Nottinghamshire County Council,07-07636,N POWER,Hard Facilities Management ,Utilities,0,0.01,0.01,26-Oct-11,TBC
Nottinghamshire County Council,07-07674,TARMAC CENTRAL LTD,External Services (Highways & Culture),Highways and Works,0,-0.01,-0.01,25-Oct-11,TBC
Nottinghamshire County Council,07-07687,AMBER-RTM LTD,External Services (Highways & Culture),Highways and Works,0,-0.01,-0.01,24-Oct-11,TBC
Nottinghamshire County Council,07-07695,AMBER-RTM LTD,External Services (Highways & Culture),Highways and Works,0,0.01,0.01,24-Oct-11,TBC
Nottinghamshire County Council,07-07699,EMO OIL LTD,Hard Facilities Management ,Utilities,0,-79.11,-79.11,24-Oct-11,TBC
Nottinghamshire County Council,07-07707,BUILD CENTER,Hard Facilities Management ,Building & Construction Supplies,0,0.01,0.01,26-Oct-11,TBC
Nottinghamshire County Council,07-07720,LEX AUTOLEASE LTD,Transport & Travel,Motor Vehicles,0,0.02,0.02,31-Oct-11,TBC
Nottinghamshire County Council,07-07721,J C BALLS AND SONS,External Services (Highways & Culture),Construction Plant and Equipment,0,0.01,0.01,25-Oct-11,TBC
Nottinghamshire County Council,07-07727,HULLEYS,Soft Facilities Management,Frozen Goods,0,-0.01,-0.01,25-Oct-11,TBC
Nottinghamshire County Council,07-07800,EDEN BROWN LTD,People,Recruitment,0,296.52,296.52,24-Oct-11,TBC
Nottinghamshire County Council,07-07850,MORELOCK SIGNS LTD,Soft Facilities Management,Printed Media and Signage,0,0.01,0.01,24-Oct-11,TBC
Nottinghamshire County Council,07-08023,CARDEA,Care,Healthcare Services,0,150.79,150.79,26-Oct-11,TBC
Nottinghamshire County Council,07-08024,CARDEA,Care,Healthcare Services,0,178,178,26-Oct-11,TBC
Nottinghamshire County Council,07-08030,VALUATION OFFICE AGENCY,Professional Services,Property Management,0,150,150,27-Oct-11,TBC
Nottinghamshire County Council,07-08066,JOHNSTON PUBLISHING LTD,ICT,"Printing and Publishing, Equipment and Supplies",0,0.01,0.01,27-Oct-11,TBC
Nottinghamshire County Council,07-08081,NORTHCLIFFE MEDIA LTD,ICT,Telecommunications and Media,0,-0.06,-0.06,27-Oct-11,TBC
Nottinghamshire County Council,07-08136,BROTHERWOOD AUTOMOBILITY LTD,Care,Medical Equipment and  Supplies,0,-120,-120,31-Oct-11,TBC
Nottinghamshire County Council,07-08143,REED EMPLOYMENT PLC,People,Recruitment,0,279.27,279.27,27-Oct-11,TBC
Nottinghamshire County Council,07-08146,TUNSTALL TELECOM LTD,ICT,Telecommunications and Media,0,"2,963.90","2,963.90",27-Oct-11,TBC
Nottinghamshire County Council,07-08148,XMA LTD,ICT,Computer Equipment and Accessories,0,0.01,0.01,31-Oct-11,TBC
Nottinghamshire County Council,07-08154,RAI TECHNICAL LTD,Hard Facilities Management ,Tools and General Machinery,0,-0.01,-0.01,27-Oct-11,TBC
Nottinghamshire County Council,07-08297,TARMAC CENTRAL LTD,External Services (Highways & Culture),Highways and Works,0,-0.01,-0.01,28-Oct-11,TBC
Nottinghamshire County Council,07-08566,ADSM LTD,Hard Facilities Management ,Utilities,0,-0.01,-0.01,28-Oct-11,TBC
Nottinghamshire County Council,07-08590,CREME D'OR,Soft Facilities Management,Prepared and Preserved Foods,0,0.04,0.04,31-Oct-11,TBC
Nottinghamshire County Council,07-08592,TRI-X-CHILDCARE,Care,Infant Or Child Daycare Services,0,"1,544.00","1,544.00",31-Oct-11,TBC
Nottinghamshire County Council,07-08593,NOTTINGHAM CONTEMPORARY TRADING LTD,TBC,TBC,0,87,87,31-Oct-11,TBC
Nottinghamshire County Council,07-01274,W K W TREE SERVICES,External Services (Highways & Culture),Farming Forestry and Wildlife Services,299.6,299.6,599.2,07-Oct-11,TBC
Nottinghamshire County Council,07-01756,CANDOR SERVICES LTD,Soft Facilities Management,Cleaning Equipment and Janitorial Supplies,222.5,0,222.5,10-Oct-11,TBC
Nottinghamshire County Council,07-01756,CANDOR SERVICES LTD,Soft Facilities Management,Cleaning Equipment and Janitorial Supplies,158.72,0,158.72,10-Oct-11,TBC
Nottinghamshire County Council,07-01756,CANDOR SERVICES LTD,Soft Facilities Management,Cleaning Equipment and Janitorial Supplies,40,0,40,10-Oct-11,TBC
Nottinghamshire County Council,07-01776,DRAEFERN LTD T/A RIGHT4STAFF,People,Recruitment,437.75,0,437.75,10-Oct-11,TBC
Nottinghamshire County Council,07-06131,DRAEFERN LTD T/A RIGHT4STAFF,People,Recruitment,432.6,0,432.6,17-Oct-11,RESOURCES
Nottinghamshire County Council,07-07369,CANDOR SERVICES LTD,Soft Facilities Management,Cleaning Equipment and Janitorial Supplies,1.59,0,1.59,21-Oct-11,RESOURCES
Nottinghamshire County Council,07-07369,CANDOR SERVICES LTD,Soft Facilities Management,Cleaning Equipment and Janitorial Supplies,2.44,0,2.44,21-Oct-11,RESOURCES
Nottinghamshire County Council,07-07369,CANDOR SERVICES LTD,Soft Facilities Management,Cleaning Equipment and Janitorial Supplies,0.46,0,0.46,21-Oct-11,RESOURCES
Nottinghamshire County Council,07-07369,CANDOR SERVICES LTD,Soft Facilities Management,Cleaning Equipment and Janitorial Supplies,2.63,0,2.63,21-Oct-11,RESOURCES
Nottinghamshire County Council,07-07369,CANDOR SERVICES LTD,Soft Facilities Management,Cleaning Equipment and Janitorial Supplies,0.29,0,0.29,21-Oct-11,RESOURCES
Nottinghamshire County Council,07-07369,CANDOR SERVICES LTD,Soft Facilities Management,Cleaning Equipment and Janitorial Supplies,3.94,0,3.94,21-Oct-11,RESOURCES
Nottinghamshire County Council,07-07369,CANDOR SERVICES LTD,Soft Facilities Management,Cleaning Equipment and Janitorial Supplies,3.1,0,3.1,21-Oct-11,RESOURCES
Nottinghamshire County Council,07-07369,CANDOR SERVICES LTD,Soft Facilities Management,Cleaning Equipment and Janitorial Supplies,3.94,0,3.94,21-Oct-11,RESOURCES
Nottinghamshire County Council,07-07369,CANDOR SERVICES LTD,Soft Facilities Management,Cleaning Equipment and Janitorial Supplies,0.23,0,0.23,21-Oct-11,RESOURCES
Nottinghamshire County Council,07-07369,CANDOR SERVICES LTD,Soft Facilities Management,Cleaning Equipment and Janitorial Supplies,0.46,0,0.46,21-Oct-11,RESOURCES
Nottinghamshire County Council,07-07369,CANDOR SERVICES LTD,Soft Facilities Management,Cleaning Equipment and Janitorial Supplies,11.5,0,11.5,21-Oct-11,RESOURCES
Nottinghamshire County Council,07-07369,CANDOR SERVICES LTD,Soft Facilities Management,Cleaning Equipment and Janitorial Supplies,0.29,0,0.29,21-Oct-11,RESOURCES
Nottinghamshire County Council,07-07369,CANDOR SERVICES LTD,Soft Facilities Management,Cleaning Equipment and Janitorial Supplies,10.4,0,10.4,21-Oct-11,RESOURCES
Nottinghamshire County Council,07-07369,CANDOR SERVICES LTD,Soft Facilities Management,Cleaning Equipment and Janitorial Supplies,1.3,0,1.3,21-Oct-11,RESOURCES
Nottinghamshire County Council,07-07369,CANDOR SERVICES LTD,Soft Facilities Management,Cleaning Equipment and Janitorial Supplies,1.3,0,1.3,21-Oct-11,RESOURCES
Nottinghamshire County Council,07-07369,CANDOR SERVICES LTD,Soft Facilities Management,Cleaning Equipment and Janitorial Supplies,0.29,0,0.29,21-Oct-11,RESOURCES
Nottinghamshire County Council,07-07369,CANDOR SERVICES LTD,Soft Facilities Management,Cleaning Equipment and Janitorial Supplies,0.74,0,0.74,21-Oct-11,RESOURCES
Nottinghamshire County Council,07-07369,CANDOR SERVICES LTD,Soft Facilities Management,Cleaning Equipment and Janitorial Supplies,8.3,0,8.3,21-Oct-11,RESOURCES
Nottinghamshire County Council,07-07369,CANDOR SERVICES LTD,Soft Facilities Management,Cleaning Equipment and Janitorial Supplies,5.96,0,5.96,21-Oct-11,RESOURCES
Nottinghamshire County Council,07-07369,CANDOR SERVICES LTD,Soft Facilities Management,Cleaning Equipment and Janitorial Supplies,3.94,0,3.94,21-Oct-11,RESOURCES
Nottinghamshire County Council,07-07369,CANDOR SERVICES LTD,Soft Facilities Management,Cleaning Equipment and Janitorial Supplies,3.1,0,3.1,21-Oct-11,RESOURCES
Nottinghamshire County Council,07-07369,CANDOR SERVICES LTD,Soft Facilities Management,Cleaning Equipment and Janitorial Supplies,4.54,0,4.54,21-Oct-11,RESOURCES
Nottinghamshire County Council,07-07369,CANDOR SERVICES LTD,Soft Facilities Management,Cleaning Equipment and Janitorial Supplies,11.5,0,11.5,21-Oct-11,RESOURCES
Nottinghamshire County Council,07-07369,CANDOR SERVICES LTD,Soft Facilities Management,Cleaning Equipment and Janitorial Supplies,1,0,1,21-Oct-11,RESOURCES
Nottinghamshire County Council,07-07369,CANDOR SERVICES LTD,Soft Facilities Management,Cleaning Equipment and Janitorial Supplies,0.29,0,0.29,21-Oct-11,RESOURCES
Nottinghamshire County Council,07-07369,CANDOR SERVICES LTD,Soft Facilities Management,Cleaning Equipment and Janitorial Supplies,1.58,0,1.58,21-Oct-11,RESOURCES
Nottinghamshire County Council,07-07369,CANDOR SERVICES LTD,Soft Facilities Management,Cleaning Equipment and Janitorial Supplies,0.46,0,0.46,21-Oct-11,RESOURCES
Nottinghamshire County Council,07-07369,CANDOR SERVICES LTD,Soft Facilities Management,Cleaning Equipment and Janitorial Supplies,11.5,0,11.5,21-Oct-11,RESOURCES
Nottinghamshire County Council,07-07369,CANDOR SERVICES LTD,Soft Facilities Management,Cleaning Equipment and Janitorial Supplies,0.29,0,0.29,21-Oct-11,RESOURCES
Nottinghamshire County Council,07-07369,CANDOR SERVICES LTD,Soft Facilities Management,Cleaning Equipment and Janitorial Supplies,2.29,0,2.29,21-Oct-11,RESOURCES
Nottinghamshire County Council,07-07369,CANDOR SERVICES LTD,Soft Facilities Management,Cleaning Equipment and Janitorial Supplies,11.5,0,11.5,21-Oct-11,RESOURCES
Nottinghamshire County Council,07-07369,CANDOR SERVICES LTD,Soft Facilities Management,Cleaning Equipment and Janitorial Supplies,0.29,0,0.29,21-Oct-11,RESOURCES
Nottinghamshire County Council,07-07369,CANDOR SERVICES LTD,Soft Facilities Management,Cleaning Equipment and Janitorial Supplies,5.7,0,5.7,21-Oct-11,RESOURCES
Nottinghamshire County Council,07-07369,CANDOR SERVICES LTD,Soft Facilities Management,Cleaning Equipment and Janitorial Supplies,16.99,0,16.99,21-Oct-11,RESOURCES
Nottinghamshire County Council,07-07369,CANDOR SERVICES LTD,Soft Facilities Management,Cleaning Equipment and Janitorial Supplies,11.5,0,11.5,21-Oct-11,RESOURCES
Nottinghamshire County Council,07-07369,CANDOR SERVICES LTD,Soft Facilities Management,Cleaning Equipment and Janitorial Supplies,0.29,0,0.29,21-Oct-11,RESOURCES
Nottinghamshire County Council,07-07369,CANDOR SERVICES LTD,Soft Facilities Management,Cleaning Equipment and Janitorial Supplies,3.94,0,3.94,21-Oct-11,RESOURCES
Nottinghamshire County Council,07-07369,CANDOR SERVICES LTD,Soft Facilities Management,Cleaning Equipment and Janitorial Supplies,3.1,0,3.1,21-Oct-11,RESOURCES
Nottinghamshire County Council,07-07369,CANDOR SERVICES LTD,Soft Facilities Management,Cleaning Equipment and Janitorial Supplies,1,0,1,21-Oct-11,RESOURCES
Nottinghamshire County Council,07-07369,CANDOR SERVICES LTD,Soft Facilities Management,Cleaning Equipment and Janitorial Supplies,25.99,0,25.99,21-Oct-11,RESOURCES
Nottinghamshire County Council,07-07369,CANDOR SERVICES LTD,Soft Facilities Management,Cleaning Equipment and Janitorial Supplies,64.32,0,64.32,21-Oct-11,RESOURCES
Nottinghamshire County Council,07-07369,CANDOR SERVICES LTD,Soft Facilities Management,Cleaning Equipment and Janitorial Supplies,25.99,0,25.99,21-Oct-11,RESOURCES
Nottinghamshire County Council,07-07369,CANDOR SERVICES LTD,Soft Facilities Management,Cleaning Equipment and Janitorial Supplies,20.6,0,20.6,21-Oct-11,RESOURCES
Nottinghamshire County Council,07-07369,CANDOR SERVICES LTD,Soft Facilities Management,Cleaning Equipment and Janitorial Supplies,40.19,0,40.19,21-Oct-11,RESOURCES
Nottinghamshire County Council,07-07369,CANDOR SERVICES LTD,Soft Facilities Management,Cleaning Equipment and Janitorial Supplies,32.96,0,32.96,21-Oct-11,RESOURCES
Nottinghamshire County Council,07-07369,CANDOR SERVICES LTD,Soft Facilities Management,Cleaning Equipment and Janitorial Supplies,9.98,0,9.98,21-Oct-11,RESOURCES
Nottinghamshire County Council,07-07369,CANDOR SERVICES LTD,Soft Facilities Management,Cleaning Equipment and Janitorial Supplies,2.95,0,2.95,21-Oct-11,RESOURCES
Nottinghamshire County Council,07-07369,CANDOR SERVICES LTD,Soft Facilities Management,Cleaning Equipment and Janitorial Supplies,9.6,0,9.6,21-Oct-11,RESOURCES
Nottinghamshire County Council,07-07369,CANDOR SERVICES LTD,Soft Facilities Management,Cleaning Equipment and Janitorial Supplies,0.29,0,0.29,21-Oct-11,RESOURCES
Nottinghamshire County Council,07-07369,CANDOR SERVICES LTD,Soft Facilities Management,Cleaning Equipment and Janitorial Supplies,19.26,0,19.26,21-Oct-11,RESOURCES
Nottinghamshire County Council,07-07369,CANDOR SERVICES LTD,Soft Facilities Management,Cleaning Equipment and Janitorial Supplies,15.95,0,15.95,21-Oct-11,RESOURCES
Nottinghamshire County Council,07-07369,CANDOR SERVICES LTD,Soft Facilities Management,Cleaning Equipment and Janitorial Supplies,9.99,0,9.99,21-Oct-11,RESOURCES
Nottinghamshire County Council,07-07369,CANDOR SERVICES LTD,Soft Facilities Management,Cleaning Equipment and Janitorial Supplies,19.01,0,19.01,21-Oct-11,RESOURCES
Nottinghamshire County Council,07-07369,CANDOR SERVICES LTD,Soft Facilities Management,Cleaning Equipment and Janitorial Supplies,24.95,0,24.95,21-Oct-11,RESOURCES
Nottinghamshire County Council,07-07369,CANDOR SERVICES LTD,Soft Facilities Management,Cleaning Equipment and Janitorial Supplies,2.44,0,2.44,21-Oct-11,RESOURCES
Nottinghamshire County Council,07-07369,CANDOR SERVICES LTD,Soft Facilities Management,Cleaning Equipment and Janitorial Supplies,0.46,0,0.46,21-Oct-11,RESOURCES
Nottinghamshire County Council,07-07369,CANDOR SERVICES LTD,Soft Facilities Management,Cleaning Equipment and Janitorial Supplies,8.02,0,8.02,21-Oct-11,RESOURCES
Nottinghamshire County Council,07-07369,CANDOR SERVICES LTD,Soft Facilities Management,Cleaning Equipment and Janitorial Supplies,9.6,0,9.6,21-Oct-11,RESOURCES
Nottinghamshire County Council,07-07369,CANDOR SERVICES LTD,Soft Facilities Management,Cleaning Equipment and Janitorial Supplies,0.29,0,0.29,21-Oct-11,RESOURCES
Nottinghamshire County Council,07-07369,CANDOR SERVICES LTD,Soft Facilities Management,Cleaning Equipment and Janitorial Supplies,3.59,0,3.59,21-Oct-11,RESOURCES
Nottinghamshire County Council,07-07369,CANDOR SERVICES LTD,Soft Facilities Management,Cleaning Equipment and Janitorial Supplies,9.6,0,9.6,21-Oct-11,RESOURCES
Nottinghamshire County Council,07-07369,CANDOR SERVICES LTD,Soft Facilities Management,Cleaning Equipment and Janitorial Supplies,0.29,0,0.29,21-Oct-11,RESOURCES
Nottinghamshire County Council,07-07369,CANDOR SERVICES LTD,Soft Facilities Management,Cleaning Equipment and Janitorial Supplies,11.5,0,11.5,21-Oct-11,RESOURCES
Nottinghamshire County Council,07-07369,CANDOR SERVICES LTD,Soft Facilities Management,Cleaning Equipment and Janitorial Supplies,0.29,0,0.29,21-Oct-11,RESOURCES
Nottinghamshire County Council,07-07369,CANDOR SERVICES LTD,Soft Facilities Management,Cleaning Equipment and Janitorial Supplies,2.29,0,2.29,21-Oct-11,RESOURCES
Nottinghamshire County Council,07-07369,CANDOR SERVICES LTD,Soft Facilities Management,Cleaning Equipment and Janitorial Supplies,3.94,0,3.94,21-Oct-11,RESOURCES
Nottinghamshire County Council,07-07369,CANDOR SERVICES LTD,Soft Facilities Management,Cleaning Equipment and Janitorial Supplies,3.1,0,3.1,21-Oct-11,RESOURCES
Nottinghamshire County Council,07-07369,CANDOR SERVICES LTD,Soft Facilities Management,Cleaning Equipment and Janitorial Supplies,4.54,0,4.54,21-Oct-11,RESOURCES
Nottinghamshire County Council,07-07369,CANDOR SERVICES LTD,Soft Facilities Management,Cleaning Equipment and Janitorial Supplies,1,0,1,21-Oct-11,RESOURCES
Nottinghamshire County Council,07-07369,CANDOR SERVICES LTD,Soft Facilities Management,Cleaning Equipment and Janitorial Supplies,7.73,0,7.73,21-Oct-11,RESOURCES
Nottinghamshire County Council,07-07369,CANDOR SERVICES LTD,Soft Facilities Management,Cleaning Equipment and Janitorial Supplies,15.88,0,15.88,21-Oct-11,RESOURCES
Nottinghamshire County Council,07-07369,CANDOR SERVICES LTD,Soft Facilities Management,Cleaning Equipment and Janitorial Supplies,10.4,0,10.4,21-Oct-11,RESOURCES
Nottinghamshire County Council,07-07369,CANDOR SERVICES LTD,Soft Facilities Management,Cleaning Equipment and Janitorial Supplies,63.88,0,63.88,21-Oct-11,RESOURCES
Nottinghamshire County Council,07-07369,CANDOR SERVICES LTD,Soft Facilities Management,Cleaning Equipment and Janitorial Supplies,23.07,0,23.07,21-Oct-11,RESOURCES
Nottinghamshire County Council,07-07369,CANDOR SERVICES LTD,Soft Facilities Management,Cleaning Equipment and Janitorial Supplies,4.49,0,4.49,21-Oct-11,RESOURCES
Nottinghamshire County Council,07-07369,CANDOR SERVICES LTD,Soft Facilities Management,Cleaning Equipment and Janitorial Supplies,5.63,0,5.63,21-Oct-11,RESOURCES
Nottinghamshire County Council,07-07369,CANDOR SERVICES LTD,Soft Facilities Management,Cleaning Equipment and Janitorial Supplies,350,0,350,21-Oct-11,RESOURCES
Nottinghamshire County Council,07-01353,MAG FLOORING,Hard Facilities Management ,Flooring Services,700,0,700,21-Oct-11,RESOURCES
Nottinghamshire County Council,07-01757,CANDOR SERVICES LTD,Soft Facilities Management,Cleaning Equipment and Janitorial Supplies,400,0,400,10-Oct-11,RESOURCES
Nottinghamshire County Council,07-01757,CANDOR SERVICES LTD,Soft Facilities Management,Cleaning Equipment and Janitorial Supplies,267,0,267,10-Oct-11,RESOURCES
Nottinghamshire County Council,07-01757,CANDOR SERVICES LTD,Soft Facilities Management,Cleaning Equipment and Janitorial Supplies,16.5,0,16.5,10-Oct-11,RESOURCES
Nottinghamshire County Council,07-01757,CANDOR SERVICES LTD,Soft Facilities Management,Cleaning Equipment and Janitorial Supplies,40,0,40,10-Oct-11,RESOURCES
Nottinghamshire County Council,07-05582,PHS GROUP PLC,Soft Facilities Management,Cleaning Equipment and Janitorial Supplies,96.94,19.39,116.33,14-Oct-11,RESOURCES
Nottinghamshire County Council,07-05582,PHS GROUP PLC,Soft Facilities Management,Cleaning Equipment and Janitorial Supplies,484.69,96.94,581.63,14-Oct-11,RESOURCES
Nottinghamshire County Council,07-07560,GLASDON UK LTD,Soft Facilities Management,Cleaning Equipment and Janitorial Supplies,"1,088.37",0,"1,088.37",24-Oct-11,RESOURCES
Nottinghamshire County Council,07-07560,GLASDON UK LTD,Soft Facilities Management,Cleaning Equipment and Janitorial Supplies,150.84,0,150.84,24-Oct-11,RESOURCES
Nottinghamshire County Council,07-07560,GLASDON UK LTD,Soft Facilities Management,Cleaning Equipment and Janitorial Supplies,71.64,0,71.64,24-Oct-11,RESOURCES
Nottinghamshire County Council,07-07560,GLASDON UK LTD,Soft Facilities Management,Cleaning Equipment and Janitorial Supplies,"1,088.37",0,"1,088.37",24-Oct-11,RESOURCES
Nottinghamshire County Council,07-07560,GLASDON UK LTD,Soft Facilities Management,Cleaning Equipment and Janitorial Supplies,150.84,0,150.84,24-Oct-11,RESOURCES
Nottinghamshire County Council,07-07560,GLASDON UK LTD,Soft Facilities Management,Cleaning Equipment and Janitorial Supplies,71.64,0,71.64,24-Oct-11,RESOURCES
Nottinghamshire County Council,07-00459,STAFFLINE RECRUITMENT LTD,People,Recruitment,84.9,16.98,101.88,04-Oct-11,RESOURCES
Nottinghamshire County Council,07-00487,STAFFLINE RECRUITMENT LTD,People,Recruitment,84.9,16.98,101.88,04-Oct-11,RESOURCES
Nottinghamshire County Council,07-05574,STAFFLINE RECRUITMENT LTD,People,Recruitment,84.9,16.98,101.88,20-Oct-11,RESOURCES
Nottinghamshire County Council,07-00225,NOTTINGHAM CITY COUNCIL,Professional Services,Politics and Civic Affairs,"4,342.94",868.59,"5,211.53",03-Oct-11,RESOURCES
Nottinghamshire County Council,07-01487,DE MONTFORT UNIVERSITY,Education And Training,Pre School/ Nursery/ School,668,0,668,06-Oct-11,RESOURCES
Nottinghamshire County Council,07-01489,NOTTINGHAM CITY COUNCIL,Professional Services,Politics and Civic Affairs,"3,994.72",798.94,"4,793.66",28-Oct-11,RESOURCES
Nottinghamshire County Council,07-01490,HALEYS-RAP,Professional Services,Professional Engineering Services,509.32,101.86,611.18,06-Oct-11,RESOURCES
Nottinghamshire County Council,07-01491,HALEYS-RAP,Professional Services,Professional Engineering Services,649.19,129.84,779.03,06-Oct-11,RESOURCES
Nottinghamshire County Council,07-01492,HALEYS-RAP,Professional Services,Professional Engineering Services,474.95,94.99,569.94,06-Oct-11,RESOURCES
Nottinghamshire County Council,07-01915,JACOBS ENGINEERING UK LTD,Professional Services,Professional Engineering Services,"3,837.00",767.4,"4,604.40",10-Oct-11,RESOURCES
Nottinghamshire County Council,07-05351,GLEEDS MANAGEMENT SERVICES LTD,Professional Services,Property Management,500,100,600,13-Oct-11,RESOURCES
Nottinghamshire County Council,07-05352,GLEEDS MANAGEMENT SERVICES LTD,Professional Services,Property Management,500,100,600,13-Oct-11,RESOURCES
Nottinghamshire County Council,07-05772,CBP ARCHITECTS LTD,Professional Services,Professional Engineering Services,"1,846.00",369.2,"2,215.20",13-Oct-11,RESOURCES
Nottinghamshire County Council,07-05773,CBP ARCHITECTS LTD,Professional Services,Professional Engineering Services,"1,872.00",374.4,"2,246.40",13-Oct-11,RESOURCES
Nottinghamshire County Council,07-05774,CBP ARCHITECTS LTD,Professional Services,Professional Engineering Services,"1,443.00",288.6,"1,731.60",13-Oct-11,RESOURCES
Nottinghamshire County Council,07-05775,CBP ARCHITECTS LTD,Professional Services,Professional Engineering Services,"1,930.50",386.1,"2,316.60",13-Oct-11,RESOURCES
Nottinghamshire County Council,07-06286,JACOBS ENGINEERING UK LTD,Professional Services,Professional Engineering Services,"2,613.92",522.78,"3,136.70",17-Oct-11,RESOURCES
Nottinghamshire County Council,07-06929,GLEEDS MANAGEMENT SERVICES LTD,Professional Services,Property Management,"1,715.00",343,"2,058.00",19-Oct-11,RESOURCES
Nottinghamshire County Council,07-06930,GLEEDS MANAGEMENT SERVICES LTD,Professional Services,Property Management,"1,074.93",214.99,"1,289.92",19-Oct-11,RESOURCES
Nottinghamshire County Council,07-07155,VINCENT AND GORBING,Professional Services,Professional Engineering Services,"2,180.00",436,"2,616.00",20-Oct-11,RESOURCES
Nottinghamshire County Council,07-07313,LEWIS AND HICKEY LTD,Professional Services,Professional Engineering Services,"15,036.60","3,007.32","18,043.92",21-Oct-11,RESOURCES
Nottinghamshire County Council,07-07837,P WALLER LTD (BUILDING CONTRACTORS),Hard Facilities Management ,Building Construction Services,"1,716.48",343.3,"2,059.78",25-Oct-11,RESOURCES
Nottinghamshire County Council,07-08062,VINCENT AND GORBING,Professional Services,Professional Engineering Services,"4,663.18",932.64,"5,595.82",26-Oct-11,RESOURCES
Nottinghamshire County Council,07-08084,VINCENT AND GORBING,Professional Services,Professional Engineering Services,"4,076.45",815.29,"4,891.74",26-Oct-11,RESOURCES
Nottinghamshire County Council,07-08093,VINCENT AND GORBING,Professional Services,Professional Engineering Services,"3,297.68",659.54,"3,957.22",26-Oct-11,RESOURCES
Nottinghamshire County Council,07-01118,BRUEL AND KJAER U K LIMITED,TBC,TBC,543,0,543,21-Oct-11,COMMUNITIES
Nottinghamshire County Council,07-01118,BRUEL AND KJAER U K LIMITED,TBC,TBC,145,0,145,21-Oct-11,COMMUNITIES
Nottinghamshire County Council,07-01118,BRUEL AND KJAER U K LIMITED,TBC,TBC,36,0,36,21-Oct-11,COMMUNITIES
Nottinghamshire County Council,07-01607,BARKER ROSS LTD,People,Recruitment,86.85,17.37,104.22,07-Oct-11,COMMUNITIES
Nottinghamshire County Council,07-01607,BARKER ROSS LTD,People,Recruitment,"1,334.00",266.8,"1,600.80",07-Oct-11,COMMUNITIES
Nottinghamshire County Council,07-07364,BARKER ROSS LTD,People,Recruitment,60.3,12.06,72.36,24-Oct-11,COMMUNITIES
Nottinghamshire County Council,07-07364,BARKER ROSS LTD,People,Recruitment,"1,261.50",252.3,"1,513.80",24-Oct-11,COMMUNITIES
Nottinghamshire County Council,07-07365,BARKER ROSS LTD,People,Recruitment,76.05,15.21,91.26,24-Oct-11,COMMUNITIES
Nottinghamshire County Council,07-07365,BARKER ROSS LTD,People,Recruitment,"1,224.67",244.93,"1,469.60",24-Oct-11,COMMUNITIES
Nottinghamshire County Council,07-00796,BARKER ROSS LTD,People,Recruitment,"1,049.00",209.8,"1,258.80",03-Oct-11,COMMUNITIES
Nottinghamshire County Council,07-00797,BARKER ROSS LTD,People,Recruitment,"1,065.90",213.18,"1,279.08",03-Oct-11,COMMUNITIES
Nottinghamshire County Council,07-00978,BARKER ROSS LTD,People,Recruitment,"1,039.10",207.82,"1,246.92",04-Oct-11,COMMUNITIES
Nottinghamshire County Council,07-07362,BARKER ROSS LTD,People,Recruitment,106.2,21.24,127.44,21-Oct-11,COMMUNITIES
Nottinghamshire County Council,07-07362,BARKER ROSS LTD,People,Recruitment,"1,112.50",222.5,"1,335.00",21-Oct-11,COMMUNITIES
Nottinghamshire County Council,07-07363,BARKER ROSS LTD,People,Recruitment,49.05,9.81,58.86,25-Oct-11,COMMUNITIES
Nottinghamshire County Council,07-07363,BARKER ROSS LTD,People,Recruitment,825,165,990,25-Oct-11,COMMUNITIES
Nottinghamshire County Council,07-00803,RAI TECHNICAL LTD,Hard Facilities Management ,Tools and General Machinery,43.2,8.64,51.84,03-Oct-11,COMMUNITIES
Nottinghamshire County Council,07-00803,RAI TECHNICAL LTD,Hard Facilities Management ,Tools and General Machinery,"1,126.25",225.25,"1,351.50",03-Oct-11,COMMUNITIES
Nottinghamshire County Council,07-00804,RAI TECHNICAL LTD,Hard Facilities Management ,Tools and General Machinery,115.02,23,138.02,03-Oct-11,COMMUNITIES
Nottinghamshire County Council,07-00804,RAI TECHNICAL LTD,Hard Facilities Management ,Tools and General Machinery,901,180.2,"1,081.20",03-Oct-11,COMMUNITIES
Nottinghamshire County Council,07-00963,RAI TECHNICAL LTD,Hard Facilities Management ,Tools and General Machinery,14.31,2.86,17.17,04-Oct-11,COMMUNITIES
Nottinghamshire County Council,07-00963,RAI TECHNICAL LTD,Hard Facilities Management ,Tools and General Machinery,38.61,7.72,46.33,04-Oct-11,COMMUNITIES
Nottinghamshire County Council,07-00963,RAI TECHNICAL LTD,Hard Facilities Management ,Tools and General Machinery,455.63,91.13,546.76,04-Oct-11,COMMUNITIES
Nottinghamshire County Council,07-01873,RAI TECHNICAL LTD,Hard Facilities Management ,Tools and General Machinery,70.74,14.15,84.89,10-Oct-11,COMMUNITIES
Nottinghamshire County Council,07-01873,RAI TECHNICAL LTD,Hard Facilities Management ,Tools and General Machinery,455.63,91.13,546.76,10-Oct-11,COMMUNITIES
Nottinghamshire County Council,07-01874,RAI TECHNICAL LTD,Hard Facilities Management ,Tools and General Machinery,135,27,162,10-Oct-11,COMMUNITIES
Nottinghamshire County Council,07-01874,RAI TECHNICAL LTD,Hard Facilities Management ,Tools and General Machinery,"1,126.25",225.25,"1,351.50",10-Oct-11,COMMUNITIES
Nottinghamshire County Council,07-01875,RAI TECHNICAL LTD,Hard Facilities Management ,Tools and General Machinery,65.88,13.18,79.06,10-Oct-11,COMMUNITIES
Nottinghamshire County Council,07-01875,RAI TECHNICAL LTD,Hard Facilities Management ,Tools and General Machinery,"1,126.25",225.25,"1,351.50",10-Oct-11,COMMUNITIES
Nottinghamshire County Council,07-07366,RAI TECHNICAL LTD,Hard Facilities Management ,Tools and General Machinery,14.72,2.94,17.66,24-Oct-11,COMMUNITIES
Nottinghamshire County Council,07-07366,RAI TECHNICAL LTD,Hard Facilities Management ,Tools and General Machinery,16.6,3.32,19.92,24-Oct-11,COMMUNITIES
Nottinghamshire County Council,07-07366,RAI TECHNICAL LTD,Hard Facilities Management ,Tools and General Machinery,455.63,91.13,546.76,24-Oct-11,COMMUNITIES
Nottinghamshire County Council,07-08152,RAI TECHNICAL LTD,Hard Facilities Management ,Tools and General Machinery,99.9,19.98,119.88,27-Oct-11,COMMUNITIES
Nottinghamshire County Council,07-08152,RAI TECHNICAL LTD,Hard Facilities Management ,Tools and General Machinery,"1,126.25",225.25,"1,351.50",27-Oct-11,COMMUNITIES
Nottinghamshire County Council,07-08154,RAI TECHNICAL LTD,Hard Facilities Management ,Tools and General Machinery,30.24,6.05,36.29,27-Oct-11,COMMUNITIES
Nottinghamshire County Council,07-08154,RAI TECHNICAL LTD,Hard Facilities Management ,Tools and General Machinery,455.63,91.13,546.76,27-Oct-11,COMMUNITIES
Nottinghamshire County Council,07-08159,RAI TECHNICAL LTD,Hard Facilities Management ,Tools and General Machinery,33.48,6.7,40.18,27-Oct-11,COMMUNITIES
Nottinghamshire County Council,07-08159,RAI TECHNICAL LTD,Hard Facilities Management ,Tools and General Machinery,"1,126.25",225.25,"1,351.50",27-Oct-11,COMMUNITIES
Nottinghamshire County Council,07-00044,BUCKLEY ENGINEERING SERVICES LTD,Professional Services,Professional Engineering Services,811.2,162.24,973.44,06-Oct-11,COMMUNITIES
Nottinghamshire County Council,07-00085,SIMMONSIGN LTD,Soft Facilities Management,Printed Media and Signage,776.9,155.38,932.28,05-Oct-11,COMMUNITIES
Nottinghamshire County Council,07-00085,SIMMONSIGN LTD,Soft Facilities Management,Printed Media and Signage,"2,225.40",445.08,"2,670.48",05-Oct-11,COMMUNITIES
Nottinghamshire County Council,07-00335,SULLIVAN HOLDINGS LTD,Soft Facilities Management,Vending Machines and Food Equipment,270,54,324,21-Oct-11,COMMUNITIES
Nottinghamshire County Council,07-00335,SULLIVAN HOLDINGS LTD,Soft Facilities Management,Vending Machines and Food Equipment,587.5,117.5,705,21-Oct-11,COMMUNITIES
Nottinghamshire County Council,07-00335,SULLIVAN HOLDINGS LTD,Soft Facilities Management,Vending Machines and Food Equipment,105,21,126,21-Oct-11,COMMUNITIES
Nottinghamshire County Council,07-00349,TILE TREND LTD,Hard Facilities Management ,Decoration Services,592.55,118.51,711.06,10-Oct-11,COMMUNITIES
Nottinghamshire County Council,07-00349,TILE TREND LTD,Hard Facilities Management ,Decoration Services,0.01,0,0.01,10-Oct-11,COMMUNITIES
Nottinghamshire County Council,07-00614,ADBRUF LTD,External Services (Highways & Culture),Highways and Works,"1,137.72",227.54,"1,365.26",04-Oct-11,COMMUNITIES
Nottinghamshire County Council,07-00614,ADBRUF LTD,External Services (Highways & Culture),Highways and Works,"4,694.64",938.93,"5,633.57",04-Oct-11,COMMUNITIES
Nottinghamshire County Council,07-00614,ADBRUF LTD,External Services (Highways & Culture),Highways and Works,-0.02,0,-0.02,04-Oct-11,COMMUNITIES
Nottinghamshire County Council,07-00953,W T BURDEN LTD,Hard Facilities Management ,Building and Construction Supplies,817.6,163.52,981.12,04-Oct-11,COMMUNITIES
Nottinghamshire County Council,07-00954,W T BURDEN LTD,Hard Facilities Management ,Building and Construction Supplies,750.62,150.12,900.74,04-Oct-11,COMMUNITIES
Nottinghamshire County Council,07-00955,W T BURDEN LTD,Hard Facilities Management ,Building and Construction Supplies,"1,125.94",225.19,"1,351.13",04-Oct-11,COMMUNITIES
Nottinghamshire County Council,07-00956,INSTARMAC LTD,External Services (Highways & Culture),Highways and Works,"1,140.16",228.03,"1,368.19",04-Oct-11,COMMUNITIES
Nottinghamshire County Council,07-00957,INSTARMAC LTD,External Services (Highways & Culture),Highways and Works,"1,140.16",228.03,"1,368.19",04-Oct-11,COMMUNITIES
Nottinghamshire County Council,07-00958,SIGNPOST SOLUTIONS LTD,Soft Facilities Management,Printed Media and Signage,374.25,74.85,449.1,04-Oct-11,COMMUNITIES
Nottinghamshire County Council,07-00958,SIGNPOST SOLUTIONS LTD,Soft Facilities Management,Printed Media and Signage,808.95,161.79,970.74,04-Oct-11,COMMUNITIES
Nottinghamshire County Council,07-00958,SIGNPOST SOLUTIONS LTD,Soft Facilities Management,Printed Media and Signage,867.9,173.58,"1,041.48",04-Oct-11,COMMUNITIES
Nottinghamshire County Council,07-00958,SIGNPOST SOLUTIONS LTD,Soft Facilities Management,Printed Media and Signage,"2,510.40",502.08,"3,012.48",04-Oct-11,COMMUNITIES
Nottinghamshire County Council,07-01424,W T BURDEN LTD,Hard Facilities Management ,Building and Construction Supplies,252,50.4,302.4,06-Oct-11,COMMUNITIES
Nottinghamshire County Council,07-01424,W T BURDEN LTD,Hard Facilities Management ,Building and Construction Supplies,890,178,"1,068.00",06-Oct-11,COMMUNITIES
Nottinghamshire County Council,07-01601,KEYLINE BUILDERS MERCHANTS,Hard Facilities Management ,Building Construction Services,855.6,171.12,"1,026.72",07-Oct-11,COMMUNITIES
Nottinghamshire County Council,07-01602,THE POST AND COLUMN CO LTD,Hard Facilities Management ,Building and Construction Supplies,"1,622.80",324.56,"1,947.36",07-Oct-11,COMMUNITIES
Nottinghamshire County Council,07-01603,THE POST AND COLUMN CO LTD,Hard Facilities Management ,Building and Construction Supplies,"1,622.40",324.48,"1,946.88",07-Oct-11,COMMUNITIES
Nottinghamshire County Council,07-01604,THE POST AND COLUMN CO LTD,Hard Facilities Management ,Building and Construction Supplies,"2,434.20",486.84,"2,921.04",07-Oct-11,COMMUNITIES
Nottinghamshire County Council,07-01605,THE POST AND COLUMN CO LTD,Hard Facilities Management ,Building and Construction Supplies,"3,822.60",764.52,"4,587.12",07-Oct-11,COMMUNITIES
Nottinghamshire County Council,07-01605,THE POST AND COLUMN CO LTD,Hard Facilities Management ,Building and Construction Supplies,"8,112.00","1,622.40","9,734.40",07-Oct-11,COMMUNITIES
Nottinghamshire County Council,07-01606,THE POST AND COLUMN CO LTD,Hard Facilities Management ,Building and Construction Supplies,"2,569.50",513.9,"3,083.40",07-Oct-11,COMMUNITIES
Nottinghamshire County Council,07-01669,AGGREGATE INDUSTRIES UK,External Services (Highways & Culture),Earth and Stone Aggregates ,137.4,27.48,164.88,12-Oct-11,COMMUNITIES
Nottinghamshire County Council,07-01669,AGGREGATE INDUSTRIES UK,External Services (Highways & Culture),Earth and Stone Aggregates ,824.4,164.88,989.28,12-Oct-11,COMMUNITIES
Nottinghamshire County Council,07-01669,AGGREGATE INDUSTRIES UK,External Services (Highways & Culture),Earth and Stone Aggregates ,672.6,134.52,807.12,12-Oct-11,COMMUNITIES
Nottinghamshire County Council,07-01670,AGGREGATE INDUSTRIES UK,External Services (Highways & Culture),Earth and Stone Aggregates ,91.6,18.32,109.92,12-Oct-11,COMMUNITIES
Nottinghamshire County Council,07-01670,AGGREGATE INDUSTRIES UK,External Services (Highways & Culture),Earth and Stone Aggregates ,140.04,28.01,168.05,12-Oct-11,COMMUNITIES
Nottinghamshire County Council,07-01670,AGGREGATE INDUSTRIES UK,External Services (Highways & Culture),Earth and Stone Aggregates ,140.04,28.01,168.05,12-Oct-11,COMMUNITIES
Nottinghamshire County Council,07-01670,AGGREGATE INDUSTRIES UK,External Services (Highways & Culture),Earth and Stone Aggregates ,700.74,140.15,840.89,12-Oct-11,COMMUNITIES
Nottinghamshire County Council,07-01670,AGGREGATE INDUSTRIES UK,External Services (Highways & Culture),Earth and Stone Aggregates ,448.4,89.68,538.08,12-Oct-11,COMMUNITIES
Nottinghamshire County Council,07-01928,AYTON ASPHALT,External Services (Highways & Culture),Highways and Works,"2,119.68",423.94,"2,543.62",10-Oct-11,COMMUNITIES
Nottinghamshire County Council,07-01928,AYTON ASPHALT,External Services (Highways & Culture),Highways and Works,56.32,11.26,67.58,10-Oct-11,COMMUNITIES
Nottinghamshire County Council,07-01929,AYTON ASPHALT,External Services (Highways & Culture),Highways and Works,823.04,164.61,987.65,10-Oct-11,COMMUNITIES
Nottinghamshire County Council,07-01929,AYTON ASPHALT,External Services (Highways & Culture),Highways and Works,19.2,3.84,23.04,10-Oct-11,COMMUNITIES
Nottinghamshire County Council,07-01930,KEYLINE BUILDERS MERCHANTS,Hard Facilities Management ,Building Construction Services,"2,521.50",504.3,"3,025.80",10-Oct-11,COMMUNITIES
Nottinghamshire County Council,07-02221,MUDFORDS LTD,Hard Facilities Management ,Building and Construction Supplies,384,76.8,460.8,11-Oct-11,COMMUNITIES
Nottinghamshire County Council,07-02221,MUDFORDS LTD,Hard Facilities Management ,Building and Construction Supplies,529.6,105.92,635.52,11-Oct-11,COMMUNITIES
Nottinghamshire County Council,07-02222,PARKER MERCHANTING LTD,Soft Facilities Management,Paper and Paper Products,244.85,48.97,293.82,11-Oct-11,COMMUNITIES
Nottinghamshire County Council,07-02222,PARKER MERCHANTING LTD,Soft Facilities Management,Paper and Paper Products,248.4,49.68,298.08,11-Oct-11,COMMUNITIES
Nottinghamshire County Council,07-02223,NAL LTD,External Services (Highways & Culture),Highways and Works,"2,225.00",445,"2,670.00",11-Oct-11,COMMUNITIES
Nottinghamshire County Council,07-02224,W T BURDEN LTD,Hard Facilities Management ,Building and Construction Supplies,562.97,112.59,675.56,11-Oct-11,COMMUNITIES
Nottinghamshire County Council,07-05267,EMO OIL LTD,Hard Facilities Management ,Utilities,"1,306.20",65.31,"1,371.51",12-Oct-11,COMMUNITIES
Nottinghamshire County Council,07-05268,EMO OIL LTD,Hard Facilities Management ,Utilities,"8,563.68","1,712.74","10,276.42",12-Oct-11,COMMUNITIES
Nottinghamshire County Council,07-05269,EMO OIL LTD,Hard Facilities Management ,Utilities,"5,170.39","1,034.08","6,204.47",12-Oct-11,COMMUNITIES
Nottinghamshire County Council,07-05682,EMO OIL LTD,Hard Facilities Management ,Utilities,"7,906.94","1,581.39","9,488.33",13-Oct-11,COMMUNITIES
Nottinghamshire County Council,07-06924,EMO OIL LTD,Hard Facilities Management ,Utilities,"4,509.20",901.84,"5,411.04",19-Oct-11,COMMUNITIES
Nottinghamshire County Council,07-07044,KEYLINE BUILDERS MERCHANTS,Hard Facilities Management ,Building Construction Services,783.2,156.64,939.84,20-Oct-11,COMMUNITIES
Nottinghamshire County Council,07-07044,KEYLINE BUILDERS MERCHANTS,Hard Facilities Management ,Building Construction Services,"1,683.60",336.72,"2,020.32",20-Oct-11,COMMUNITIES
Nottinghamshire County Council,07-07045,KEYLINE BUILDERS MERCHANTS,Hard Facilities Management ,Building Construction Services,"1,683.60",336.72,"2,020.32",24-Oct-11,COMMUNITIES
Nottinghamshire County Council,07-07045,KEYLINE BUILDERS MERCHANTS,Hard Facilities Management ,Building Construction Services,"1,796.76",359.35,"2,156.11",24-Oct-11,COMMUNITIES
Nottinghamshire County Council,07-07046,W T BURDEN LTD,Hard Facilities Management ,Building and Construction Supplies,613.2,122.64,735.84,20-Oct-11,COMMUNITIES
Nottinghamshire County Council,07-07047,W T BURDEN LTD,Hard Facilities Management ,Building and Construction Supplies,750.62,150.12,900.74,20-Oct-11,COMMUNITIES
Nottinghamshire County Council,07-07048,GLASDON UK LTD,Soft Facilities Management,Cleaning Equipment and Janitorial Supplies,672.3,134.46,806.76,20-Oct-11,COMMUNITIES
Nottinghamshire County Council,07-07049,AGGREGATE INDUSTRIES UK,External Services (Highways & Culture),Earth and Stone Aggregates ,126.24,25.25,151.49,21-Oct-11,COMMUNITIES
Nottinghamshire County Council,07-07049,AGGREGATE INDUSTRIES UK,External Services (Highways & Culture),Earth and Stone Aggregates ,126.24,25.25,151.49,21-Oct-11,COMMUNITIES
Nottinghamshire County Council,07-07049,AGGREGATE INDUSTRIES UK,External Services (Highways & Culture),Earth and Stone Aggregates ,126.24,25.25,151.49,21-Oct-11,COMMUNITIES
Nottinghamshire County Council,07-07049,AGGREGATE INDUSTRIES UK,External Services (Highways & Culture),Earth and Stone Aggregates ,140.04,28.01,168.05,21-Oct-11,COMMUNITIES
Nottinghamshire County Council,07-07049,AGGREGATE INDUSTRIES UK,External Services (Highways & Culture),Earth and Stone Aggregates ,140.04,28.01,168.05,21-Oct-11,COMMUNITIES
Nottinghamshire County Council,07-07049,AGGREGATE INDUSTRIES UK,External Services (Highways & Culture),Earth and Stone Aggregates ,179.52,35.9,215.42,21-Oct-11,COMMUNITIES
Nottinghamshire County Council,07-07049,AGGREGATE INDUSTRIES UK,External Services (Highways & Culture),Earth and Stone Aggregates ,577.08,115.42,692.5,21-Oct-11,COMMUNITIES
Nottinghamshire County Council,07-07050,BEESWIFT,Soft Facilities Management,Clothing,50.4,10.08,60.48,20-Oct-11,COMMUNITIES
Nottinghamshire County Council,07-07050,BEESWIFT,Soft Facilities Management,Clothing,75.6,15.12,90.72,20-Oct-11,COMMUNITIES
Nottinghamshire County Council,07-07050,BEESWIFT,Soft Facilities Management,Clothing,126,25.2,151.2,20-Oct-11,COMMUNITIES
Nottinghamshire County Council,07-07050,BEESWIFT,Soft Facilities Management,Clothing,132.25,26.45,158.7,20-Oct-11,COMMUNITIES
Nottinghamshire County Council,07-07050,BEESWIFT,Soft Facilities Management,Clothing,132.25,26.45,158.7,20-Oct-11,COMMUNITIES
Nottinghamshire County Council,07-07146,EMO OIL LTD,Hard Facilities Management ,Utilities,"5,676.99","1,135.40","6,812.39",20-Oct-11,COMMUNITIES
Nottinghamshire County Council,07-07147,EMO OIL LTD,Hard Facilities Management ,Utilities,981.15,49.06,"1,030.21",21-Oct-11,COMMUNITIES
Nottinghamshire County Council,07-07148,EMO OIL LTD,Hard Facilities Management ,Utilities,"3,507.03",701.41,"4,208.44",21-Oct-11,COMMUNITIES
Nottinghamshire County Council,07-07168,BEESWIFT,Soft Facilities Management,Clothing,264.5,52.9,317.4,20-Oct-11,COMMUNITIES
Nottinghamshire County Council,07-07168,BEESWIFT,Soft Facilities Management,Clothing,264.5,52.9,317.4,20-Oct-11,COMMUNITIES
Nottinghamshire County Council,07-07180,AGGREGATE INDUSTRIES UK,External Services (Highways & Culture),Earth and Stone Aggregates ,70.02,14,84.02,21-Oct-11,COMMUNITIES
Nottinghamshire County Council,07-07180,AGGREGATE INDUSTRIES UK,External Services (Highways & Culture),Earth and Stone Aggregates ,83.28,16.66,99.94,21-Oct-11,COMMUNITIES
Nottinghamshire County Council,07-07180,AGGREGATE INDUSTRIES UK,External Services (Highways & Culture),Earth and Stone Aggregates ,140.04,28.01,168.05,21-Oct-11,COMMUNITIES
Nottinghamshire County Council,07-07180,AGGREGATE INDUSTRIES UK,External Services (Highways & Culture),Earth and Stone Aggregates ,140.04,28.01,168.05,21-Oct-11,COMMUNITIES
Nottinghamshire County Council,07-07180,AGGREGATE INDUSTRIES UK,External Services (Highways & Culture),Earth and Stone Aggregates ,166.56,33.31,199.87,21-Oct-11,COMMUNITIES
Nottinghamshire County Council,07-07180,AGGREGATE INDUSTRIES UK,External Services (Highways & Culture),Earth and Stone Aggregates ,179.52,35.9,215.42,21-Oct-11,COMMUNITIES
Nottinghamshire County Council,07-07180,AGGREGATE INDUSTRIES UK,External Services (Highways & Culture),Earth and Stone Aggregates ,288.54,57.71,346.25,21-Oct-11,COMMUNITIES
Nottinghamshire County Council,07-07716,INSTARMAC LTD,External Services (Highways & Culture),Highways and Works,855.12,171.02,"1,026.14",24-Oct-11,COMMUNITIES
Nottinghamshire County Council,07-07777,AYTON ASPHALT,External Services (Highways & Culture),Highways and Works,"1,646.08",329.22,"1,975.30",25-Oct-11,COMMUNITIES
Nottinghamshire County Council,07-07777,AYTON ASPHALT,External Services (Highways & Culture),Highways and Works,38.4,7.68,46.08,25-Oct-11,COMMUNITIES
Nottinghamshire County Council,07-07778,AYTON ASPHALT,External Services (Highways & Culture),Highways and Works,"2,119.68",423.94,"2,543.62",25-Oct-11,COMMUNITIES
Nottinghamshire County Council,07-07778,AYTON ASPHALT,External Services (Highways & Culture),Highways and Works,56.32,11.26,67.58,25-Oct-11,COMMUNITIES
Nottinghamshire County Council,07-07834,EMO OIL LTD,Hard Facilities Management ,Utilities,"6,662.87","1,332.57","7,995.44",25-Oct-11,COMMUNITIES
Nottinghamshire County Council,07-07835,EMO OIL LTD,Hard Facilities Management ,Utilities,"1,997.70",399.54,"2,397.24",25-Oct-11,COMMUNITIES
Nottinghamshire County Council,07-07836,EMO OIL LTD,Hard Facilities Management ,Utilities,"8,558.25","1,711.65","10,269.90",25-Oct-11,COMMUNITIES
Nottinghamshire County Council,07-08052,JOHN LISCOMBE LTD,Hard Facilities Management ,Health and Safety,446.4,89.28,535.68,26-Oct-11,COMMUNITIES
Nottinghamshire County Council,07-08139,INDUSTRIAL DIAMOND SERVICES,External Services (Highways & Culture),Construction Plant and Equipment,625,125,750,27-Oct-11,COMMUNITIES
Nottinghamshire County Council,07-08139,INDUSTRIAL DIAMOND SERVICES,External Services (Highways & Culture),Construction Plant and Equipment,"1,100.00",220,"1,320.00",27-Oct-11,COMMUNITIES
Nottinghamshire County Council,07-08140,SMITH BROS CAERCONAN WHOLESALE LTD,Hard Facilities Management ,Electronic Components and Supplies,"1,134.60",226.92,"1,361.52",27-Oct-11,COMMUNITIES
Nottinghamshire County Council,07-08141,SMITH BROS CAERCONAN WHOLESALE LTD,Hard Facilities Management ,Electronic Components and Supplies,"4,538.40",907.68,"5,446.08",27-Oct-11,COMMUNITIES
Nottinghamshire County Council,07-08142,W T BURDEN LTD,Hard Facilities Management ,Building and Construction Supplies,750.62,150.12,900.74,27-Oct-11,COMMUNITIES
Nottinghamshire County Council,07-08285,CLEVELAND CABLE COMPANY LTD,Hard Facilities Management ,Electrical Systems and Lighting,"2,235.00",447,"2,682.00",28-Oct-11,COMMUNITIES
Nottinghamshire County Council,07-08285,CLEVELAND CABLE COMPANY LTD,Hard Facilities Management ,Electrical Systems and Lighting,"2,805.00",561,"3,366.00",28-Oct-11,COMMUNITIES
Nottinghamshire County Council,07-08576,MARWOOD ELECTRICAL CO LTD,Hard Facilities Management ,Electrical Systems and Lighting,263.52,52.7,316.22,31-Oct-11,COMMUNITIES
Nottinghamshire County Council,07-08576,MARWOOD ELECTRICAL CO LTD,Hard Facilities Management ,Electrical Systems and Lighting,308.88,61.78,370.66,31-Oct-11,COMMUNITIES
Nottinghamshire County Council,07-08576,MARWOOD ELECTRICAL CO LTD,Hard Facilities Management ,Electrical Systems and Lighting,"2,568.96",513.79,"3,082.75",31-Oct-11,COMMUNITIES
Nottinghamshire County Council,07-08577,W T BURDEN LTD,Hard Facilities Management ,Building and Construction Supplies,750.62,150.12,900.74,31-Oct-11,COMMUNITIES
Nottinghamshire County Council,07-08578,EDMUNDSON ELECTRICAL LTD,Hard Facilities Management ,Electrical Systems and Lighting,996.8,199.36,"1,196.16",31-Oct-11,COMMUNITIES
Nottinghamshire County Council,07-08579,NAL LTD,External Services (Highways & Culture),Highways and Works,"1,112.50",222.5,"1,335.00",31-Oct-11,COMMUNITIES
Nottinghamshire County Council,07-01823,SURVEY SOLUTIONS SCOTLAND,TBC,TBC,257,0,257,21-Oct-11,COMMUNITIES
Nottinghamshire County Council,07-01823,SURVEY SOLUTIONS SCOTLAND,TBC,TBC,216,0,216,21-Oct-11,COMMUNITIES
Nottinghamshire County Council,07-01823,SURVEY SOLUTIONS SCOTLAND,TBC,TBC,10,0,10,21-Oct-11,COMMUNITIES
Nottinghamshire County Council,07-00028,NNAS (TRADING) LTD,People,Vocational Training,400,80,480,14-Oct-11,COMMUNITIES
Nottinghamshire County Council,07-00028,NNAS (TRADING) LTD,People,Vocational Training,715,143,858,14-Oct-11,COMMUNITIES
Nottinghamshire County Council,07-07159,EXPRESS LOGISTICS (NOTTINGHAM) LTD,Soft Facilities Management,Mail and Couriers,"1,825.85",365.17,"2,191.02",21-Oct-11,COMMUNITIES
Nottinghamshire County Council,07-07161,NNAS (TRADING) LTD,People,Vocational Training,400,80,480,21-Oct-11,COMMUNITIES
Nottinghamshire County Council,07-07161,NNAS (TRADING) LTD,People,Vocational Training,715,143,858,21-Oct-11,COMMUNITIES
Nottinghamshire County Council,07-08271,E M D D LTD,Hard Facilities Management ,Tools and General Machinery,800,160,960,28-Oct-11,COMMUNITIES
Nottinghamshire County Council,07-06307,KEY SYSTEMS,TBC,TBC,700,0,700,18-Oct-11,COMMUNITIES
Nottinghamshire County Council,07-07053,ESSO PETROLEUM,Transport & Travel,Gas Fuels and Lubricants ,"1,250.00",250,"1,500.00",21-Oct-11,COMMUNITIES
Nottinghamshire County Council,07-00196,GOLDEN RIVER TRAFFIC LTD,External Services (Highways & Culture),Highways and Works,"1,265.00",0,"1,265.00",07-Oct-11,COMMUNITIES
Nottinghamshire County Council,07-01805,GOLDEN RIVER TRAFFIC LTD,External Services (Highways & Culture),Highways and Works,"2,331.00",0,"2,331.00",27-Oct-11,COMMUNITIES
Nottinghamshire County Council,07-01805,GOLDEN RIVER TRAFFIC LTD,External Services (Highways & Culture),Highways and Works,450,0,450,27-Oct-11,COMMUNITIES
Nottinghamshire County Council,07-05576,VODAFONE LTD,ICT,Telecommunications and Media,528.9,105.78,634.68,12-Oct-11,COMMUNITIES
Nottinghamshire County Council,07-05577,VODAFONE LTD,ICT,Telecommunications and Media,552.05,110.41,662.46,12-Oct-11,COMMUNITIES
Nottinghamshire County Council,07-05578,VODAFONE LTD,ICT,Telecommunications and Media,545,109,654,12-Oct-11,COMMUNITIES
Nottinghamshire County Council,07-05579,VODAFONE LTD,ICT,Telecommunications and Media,545,109,654,12-Oct-11,COMMUNITIES
Nottinghamshire County Council,07-07138,VODAFONE LTD,ICT,Telecommunications and Media,563.59,112.72,676.31,19-Oct-11,COMMUNITIES
Nottinghamshire County Council,07-00124,SPECIALIST COMPUTER CENTRES LTD,ICT,Computer Services,"1,595.01",0,"1,595.01",03-Oct-11,COMMUNITIES
Nottinghamshire County Council,07-07368,CHESTERFIELD COLLEGE OF TECH AND ART,Education And Training,Pre School/ Nursery/ School,670,0,670,21-Oct-11,COMMUNITIES
Nottinghamshire County Council,07-07368,CHESTERFIELD COLLEGE OF TECH AND ART,Education And Training,Pre School/ Nursery/ School,166,0,166,21-Oct-11,COMMUNITIES
Nottinghamshire County Council,07-01308,TRUVELO (UK) LTD,External Services (Highways & Culture),Highways and Works,485,0,485,06-Oct-11,COMMUNITIES
Nottinghamshire County Council,07-01308,TRUVELO (UK) LTD,External Services (Highways & Culture),Highways and Works,485,0,485,06-Oct-11,COMMUNITIES
Nottinghamshire County Council,07-01309,TRUVELO (UK) LTD,External Services (Highways & Culture),Highways and Works,485,0,485,06-Oct-11,COMMUNITIES
Nottinghamshire County Council,07-01309,TRUVELO (UK) LTD,External Services (Highways & Culture),Highways and Works,485,0,485,06-Oct-11,COMMUNITIES
Nottinghamshire County Council,07-01309,TRUVELO (UK) LTD,External Services (Highways & Culture),Highways and Works,485,0,485,06-Oct-11,COMMUNITIES
Nottinghamshire County Council,07-05533,TRUVELO (UK) LTD,External Services (Highways & Culture),Highways and Works,960,0,960,13-Oct-11,COMMUNITIES
Nottinghamshire County Council,07-05533,TRUVELO (UK) LTD,External Services (Highways & Culture),Highways and Works,"1,850.00",0,"1,850.00",13-Oct-11,COMMUNITIES
Nottinghamshire County Council,07-05533,TRUVELO (UK) LTD,External Services (Highways & Culture),Highways and Works,240,0,240,13-Oct-11,COMMUNITIES
Nottinghamshire County Council,07-05533,TRUVELO (UK) LTD,External Services (Highways & Culture),Highways and Works,475,0,475,13-Oct-11,COMMUNITIES
Nottinghamshire County Council,07-05533,TRUVELO (UK) LTD,External Services (Highways & Culture),Highways and Works,425,0,425,13-Oct-11,COMMUNITIES
Nottinghamshire County Council,07-05533,TRUVELO (UK) LTD,External Services (Highways & Culture),Highways and Works,650,0,650,13-Oct-11,COMMUNITIES
Nottinghamshire County Council,07-08482,TRUVELO (UK) LTD,External Services (Highways & Culture),Highways and Works,505,0,505,31-Oct-11,COMMUNITIES
Nottinghamshire County Council,07-08482,TRUVELO (UK) LTD,External Services (Highways & Culture),Highways and Works,495,0,495,31-Oct-11,COMMUNITIES
Nottinghamshire County Council,07-08482,TRUVELO (UK) LTD,External Services (Highways & Culture),Highways and Works,495,0,495,31-Oct-11,COMMUNITIES
Nottinghamshire County Council,07-08482,TRUVELO (UK) LTD,External Services (Highways & Culture),Highways and Works,505,0,505,31-Oct-11,COMMUNITIES
Nottinghamshire County Council,07-08482,TRUVELO (UK) LTD,External Services (Highways & Culture),Highways and Works,505,0,505,31-Oct-11,COMMUNITIES
Nottinghamshire County Council,07-08482,TRUVELO (UK) LTD,External Services (Highways & Culture),Highways and Works,485,0,485,31-Oct-11,COMMUNITIES
Nottinghamshire County Council,07-00774,TRAFFIC ENFORCEMENT CENTRE,External Services (Highways & Culture),Highways and Works,"20,000.00",0,"20,000.00",03-Oct-11,COMMUNITIES
Nottinghamshire County Council,07-00897,N S L LTD,Transport & Travel,Motor Vehicles,"6,799.76",0,"6,799.76",04-Oct-11,COMMUNITIES
Nottinghamshire County Council,07-00897,N S L LTD,Transport & Travel,Motor Vehicles,"89,985.82",0,"89,985.82",04-Oct-11,COMMUNITIES
Nottinghamshire County Council,07-07261,ROYAL MAIL GROUP PLC,Soft Facilities Management,Mail and Couriers,95.55,0,95.55,21-Oct-11,COMMUNITIES
Nottinghamshire County Council,07-07261,ROYAL MAIL GROUP PLC,Soft Facilities Management,Mail and Couriers,50.12,0,50.12,21-Oct-11,COMMUNITIES
Nottinghamshire County Council,07-07261,ROYAL MAIL GROUP PLC,Soft Facilities Management,Mail and Couriers,77.22,0,77.22,21-Oct-11,COMMUNITIES
Nottinghamshire County Council,07-07261,ROYAL MAIL GROUP PLC,Soft Facilities Management,Mail and Couriers,37.52,0,37.52,21-Oct-11,COMMUNITIES
Nottinghamshire County Council,07-07261,ROYAL MAIL GROUP PLC,Soft Facilities Management,Mail and Couriers,35.56,0,35.56,21-Oct-11,COMMUNITIES
Nottinghamshire County Council,07-07261,ROYAL MAIL GROUP PLC,Soft Facilities Management,Mail and Couriers,124.8,0,124.8,21-Oct-11,COMMUNITIES
Nottinghamshire County Council,07-07261,ROYAL MAIL GROUP PLC,Soft Facilities Management,Mail and Couriers,25.76,0,25.76,21-Oct-11,COMMUNITIES
Nottinghamshire County Council,07-07261,ROYAL MAIL GROUP PLC,Soft Facilities Management,Mail and Couriers,169.65,0,169.65,21-Oct-11,COMMUNITIES
Nottinghamshire County Council,07-07261,ROYAL MAIL GROUP PLC,Soft Facilities Management,Mail and Couriers,104.13,0,104.13,21-Oct-11,COMMUNITIES
Nottinghamshire County Council,07-07261,ROYAL MAIL GROUP PLC,Soft Facilities Management,Mail and Couriers,51.87,0,51.87,21-Oct-11,COMMUNITIES
Nottinghamshire County Council,07-07261,ROYAL MAIL GROUP PLC,Soft Facilities Management,Mail and Couriers,23.8,0,23.8,21-Oct-11,COMMUNITIES
Nottinghamshire County Council,07-07261,ROYAL MAIL GROUP PLC,Soft Facilities Management,Mail and Couriers,63.84,0,63.84,21-Oct-11,COMMUNITIES
Nottinghamshire County Council,07-07261,ROYAL MAIL GROUP PLC,Soft Facilities Management,Mail and Couriers,70.2,0,70.2,21-Oct-11,COMMUNITIES
Nottinghamshire County Council,07-07261,ROYAL MAIL GROUP PLC,Soft Facilities Management,Mail and Couriers,30.52,0,30.52,21-Oct-11,COMMUNITIES
Nottinghamshire County Council,07-07261,ROYAL MAIL GROUP PLC,Soft Facilities Management,Mail and Couriers,116.61,0,116.61,21-Oct-11,COMMUNITIES
Nottinghamshire County Council,07-07261,ROYAL MAIL GROUP PLC,Soft Facilities Management,Mail and Couriers,26.88,0,26.88,21-Oct-11,COMMUNITIES
Nottinghamshire County Council,07-07261,ROYAL MAIL GROUP PLC,Soft Facilities Management,Mail and Couriers,102.57,0,102.57,21-Oct-11,COMMUNITIES
Nottinghamshire County Council,07-07261,ROYAL MAIL GROUP PLC,Soft Facilities Management,Mail and Couriers,21.28,0,21.28,21-Oct-11,COMMUNITIES
Nottinghamshire County Council,07-07261,ROYAL MAIL GROUP PLC,Soft Facilities Management,Mail and Couriers,107.64,0,107.64,21-Oct-11,COMMUNITIES
Nottinghamshire County Council,07-07261,ROYAL MAIL GROUP PLC,Soft Facilities Management,Mail and Couriers,45.24,0,45.24,21-Oct-11,COMMUNITIES
Nottinghamshire County Council,07-07261,ROYAL MAIL GROUP PLC,Soft Facilities Management,Mail and Couriers,23.8,0,23.8,21-Oct-11,COMMUNITIES
Nottinghamshire County Council,07-01557,BRITISH STANDARDS INSTITUTE,External Services (Highways & Culture),Organisations and Clubs,"5,385.00",0,"5,385.00",07-Oct-11,COMMUNITIES
Nottinghamshire County Council,07-05681,THE LOCAL FUTURES GROUP LTD,Care,Personal & Domestic Services,"15,000.00",0,"15,000.00",13-Oct-11,COMMUNITIES
Nottinghamshire County Council,07-06115,CIPFA BUSINESS LTD,External Services (Highways & Culture),Organisations and Clubs,420,0,420,17-Oct-11,COMMUNITIES
Nottinghamshire County Council,07-06128,PLANNING OFFICERS SOCIETY,Hard Facilities Management ,Building Construction Services,"1,600.00",0,"1,600.00",17-Oct-11,COMMUNITIES
Nottinghamshire County Council,07-00875,FRESH OPPORTUNITIES LTD,Soft Facilities Management,Beverages,696,0,696,04-Oct-11,COMMUNITIES
Nottinghamshire County Council,07-00875,FRESH OPPORTUNITIES LTD,Soft Facilities Management,Beverages,33.6,0,33.6,04-Oct-11,COMMUNITIES
Nottinghamshire County Council,07-06846,PITNEY BOWES LTD,Soft Facilities Management,Mail and Couriers,358.18,0,358.18,19-Oct-11,COMMUNITIES
Nottinghamshire County Council,07-06846,PITNEY BOWES LTD,Soft Facilities Management,Mail and Couriers,179.4,0,179.4,19-Oct-11,COMMUNITIES
Nottinghamshire County Council,07-06846,PITNEY BOWES LTD,Soft Facilities Management,Mail and Couriers,64.38,0,64.38,19-Oct-11,COMMUNITIES
Nottinghamshire County Council,07-07181,NTL GROUP LTD,ICT,Telecommunications and Media,555.02,111,666.02,25-Oct-11,COMMUNITIES
Nottinghamshire County Council,07-06905,WOODBOROUGH PARK,Transport & Travel,Hotels and Venues,630,0,630,19-Oct-11,COMMUNITIES
Nottinghamshire County Council,07-01547,NORTH NOTTINGHAMSHIRE LANDSCAPES,External Services (Highways & Culture),Farming Forestry and Wildlife Services,"1,420.00",0,"1,420.00",07-Oct-11,COMMUNITIES
Nottinghamshire County Council,07-07600,J M COUNTRYSIDE LANDSCAPES,External Services (Highways & Culture),Farming Forestry and Wildlife Services,"1,020.00",0,"1,020.00",24-Oct-11,COMMUNITIES
Nottinghamshire County Council,07-06333,H C DOUGHTY AND SONS,Hard Facilities Management ,Carpentry Services,423.21,0,423.21,18-Oct-11,COMMUNITIES
Nottinghamshire County Council,07-06333,H C DOUGHTY AND SONS,Hard Facilities Management ,Carpentry Services,290,0,290,18-Oct-11,COMMUNITIES
Nottinghamshire County Council,07-07603,A B C BRIDGES,External Services (Highways & Culture),Highways and Works,"2,100.00",0,"2,100.00",24-Oct-11,COMMUNITIES
Nottinghamshire County Council,07-07603,A B C BRIDGES,External Services (Highways & Culture),Highways and Works,"1,550.00",0,"1,550.00",24-Oct-11,COMMUNITIES
Nottinghamshire County Council,07-07603,A B C BRIDGES,External Services (Highways & Culture),Highways and Works,350,0,350,24-Oct-11,COMMUNITIES
Nottinghamshire County Council,07-00974,J G WOODHOUSE AND SONS,Soft Facilities Management,Prepared and Preserved Foods,725.79,145.16,870.95,04-Oct-11,COMMUNITIES
Nottinghamshire County Council,07-08282,WOODBOROUGH PARK,Transport & Travel,Hotels and Venues,930.45,186.09,"1,116.54",28-Oct-11,COMMUNITIES
Nottinghamshire County Council,07-06124,JACOBS ENGINEERING UK LTD,Professional Services,Professional Engineering Services,"6,100.52",0,"6,100.52",17-Oct-11,COMMUNITIES
Nottinghamshire County Council,07-06124,JACOBS ENGINEERING UK LTD,Professional Services,Professional Engineering Services,"3,322.46",0,"3,322.46",17-Oct-11,COMMUNITIES
Nottinghamshire County Council,07-08474,E M D D LTD,Hard Facilities Management ,Tools and General Machinery,"12,360.00",0,"12,360.00",31-Oct-11,COMMUNITIES
Nottinghamshire County Council,07-08474,E M D D LTD,Hard Facilities Management ,Tools and General Machinery,"21,634.48",0,"21,634.48",31-Oct-11,COMMUNITIES
Nottinghamshire County Council,07-00562,ASHFORD TREESCAPES,External Services (Highways & Culture),Farming Forestry & Wildlife Services,"3,800.00",0,"3,800.00",17-Oct-11,COMMUNITIES
Nottinghamshire County Council,07-00562,ASHFORD TREESCAPES,External Services (Highways & Culture),Farming Forestry & Wildlife Services,540,0,540,17-Oct-11,COMMUNITIES
Nottinghamshire County Council,07-00562,ASHFORD TREESCAPES,External Services (Highways & Culture),Farming Forestry & Wildlife Services,100,0,100,17-Oct-11,COMMUNITIES
Nottinghamshire County Council,07-00562,ASHFORD TREESCAPES,External Services (Highways & Culture),Farming Forestry & Wildlife Services,450,0,450,17-Oct-11,COMMUNITIES
Nottinghamshire County Council,07-01019,H BURTON & SON FARMING LTD,TBC,TBC,"3,342.50",668.5,"4,011.00",04-Oct-11,COMMUNITIES
Nottinghamshire County Council,07-07342,TARMAC CENTRAL LTD,External Services (Highways & Culture),Highways and Works,"124,192.26","24,838.45","149,030.71",21-Oct-11,COMMUNITIES
Nottinghamshire County Council,07-00798,1ST CALL COMMUNICATIONS LTD,ICT,Telecommunications and Media,665.71,133.14,798.85,11-Oct-11,COMMUNITIES
Nottinghamshire County Council,07-07052,1ST CALL COMMUNICATIONS LTD,ICT,Telecommunications and Media,500.49,100.1,600.59,21-Oct-11,COMMUNITIES
Nottinghamshire County Council,07-05870,WHOLESALE BOOK SUPPLIES,ICT,"Printing & Publishing, Equipment & Supplies",700,0,700,17-Oct-11,COMMUNITIES
Nottinghamshire County Council,07-05702,EPS GROUP,Professional Services,Consultancy,"3,000.00",600,"3,600.00",31-Oct-11,COMMUNITIES
Nottinghamshire County Council,07-05704,WASTE RECYCLING GROUP PLC,Soft Facilities Management,Environmental Services,"73,345.38","14,669.08","88,014.46",31-Oct-11,COMMUNITIES
Nottinghamshire County Council,07-05705,WASTE RECYCLING GROUP PLC,Soft Facilities Management,Environmental Services,"79,115.01","15,823.00","94,938.01",31-Oct-11,COMMUNITIES
Nottinghamshire County Council,07-05706,WASTE RECYCLING GROUP PLC,Soft Facilities Management,Environmental Services,"77,727.55","15,545.51","93,273.06",31-Oct-11,COMMUNITIES
Nottinghamshire County Council,07-05604,WASTE RECYCLING GROUP PLC,Soft Facilities Management,Environmental Services,"3,166.51",633.3,"3,799.81",14-Oct-11,COMMUNITIES
Nottinghamshire County Council,07-05605,WASTE RECYCLING GROUP PLC,Soft Facilities Management,Environmental Services,"1,784.22",356.84,"2,141.06",14-Oct-11,COMMUNITIES
Nottinghamshire County Council,07-05606,WASTE RECYCLING GROUP PLC,Soft Facilities Management,Environmental Services,"1,779.96",355.99,"2,135.95",14-Oct-11,COMMUNITIES
Nottinghamshire County Council,07-06956,WASTE RECYCLING GROUP PLC,Soft Facilities Management,Environmental Services,"3,166.51",633.3,"3,799.81",21-Oct-11,COMMUNITIES
Nottinghamshire County Council,07-07010,WASTE RECYCLING GROUP PLC,Soft Facilities Management,Environmental Services,490.32,98.06,588.38,31-Oct-11,COMMUNITIES
Nottinghamshire County Council,07-07035,WASTE RECYCLING GROUP PLC,Soft Facilities Management,Environmental Services,"-3,166.51",-633.3,"-3,799.81",31-Oct-11,COMMUNITIES
Nottinghamshire County Council,07-00047,NEWLAND FREEHOLDS LTD,Professional Services,Property Management,"6,250.00",0,"6,250.00",03-Oct-11,COMMUNITIES
Nottinghamshire County Council,07-07743,PARK FARMING LTD,Soft Facilities Management,Scrap and Waste Materials,"3,134.95",0,"3,134.95",25-Oct-11,COMMUNITIES
Nottinghamshire County Council,07-01295,S R C L LTD,Soft Facilities Management,Scrap and Waste Materials,794.91,0,794.91,06-Oct-11,COMMUNITIES
Nottinghamshire County Council,07-01295,S R C L LTD,Soft Facilities Management,Scrap and Waste Materials,"1,651.52",0,"1,651.52",06-Oct-11,COMMUNITIES
Nottinghamshire County Council,07-01295,S R C L LTD,Soft Facilities Management,Scrap and Waste Materials,"1,781.63",0,"1,781.63",06-Oct-11,COMMUNITIES
Nottinghamshire County Council,07-01295,S R C L LTD,Soft Facilities Management,Scrap and Waste Materials,368.8,0,368.8,06-Oct-11,COMMUNITIES
Nottinghamshire County Council,07-01295,S R C L LTD,Soft Facilities Management,Scrap and Waste Materials,354.88,0,354.88,06-Oct-11,COMMUNITIES
Nottinghamshire County Council,07-01295,S R C L LTD,Soft Facilities Management,Scrap and Waste Materials,699.79,0,699.79,06-Oct-11,COMMUNITIES
Nottinghamshire County Council,07-01295,S R C L LTD,Soft Facilities Management,Scrap and Waste Materials,"1,113.87",0,"1,113.87",06-Oct-11,COMMUNITIES
Nottinghamshire County Council,07-01295,S R C L LTD,Soft Facilities Management,Scrap and Waste Materials,"1,015.70",0,"1,015.70",06-Oct-11,COMMUNITIES
Nottinghamshire County Council,07-01296,S R C L LTD,Soft Facilities Management,Scrap and Waste Materials,-388.49,0,-388.49,06-Oct-11,COMMUNITIES
Nottinghamshire County Council,07-01296,S R C L LTD,Soft Facilities Management,Scrap and Waste Materials,-5,0,-5,06-Oct-11,COMMUNITIES
Nottinghamshire County Council,07-01296,S R C L LTD,Soft Facilities Management,Scrap and Waste Materials,-396.42,0,-396.42,06-Oct-11,COMMUNITIES
Nottinghamshire County Council,07-01296,S R C L LTD,Soft Facilities Management,Scrap and Waste Materials,-5,0,-5,06-Oct-11,COMMUNITIES
Nottinghamshire County Council,07-08096,RECYCLING OLLERTON AND BOUGHTON,Soft Facilities Management,Scrap and Waste Materials,"4,068.94",0,"4,068.94",28-Oct-11,COMMUNITIES
Nottinghamshire County Council,07-01558,BRITISH STANDARDS INSTITUTE,External Services (Highways & Culture),Organisations and Clubs,723,0,723,07-Oct-11,COMMUNITIES
Nottinghamshire County Council,07-05229,SHARPE PRITCHARD SOLICITORS,Professional Services,Legal Services,845,0,845,12-Oct-11,COMMUNITIES
Nottinghamshire County Council,07-01857,SCOTT WILSON LTD,Professional Services,Consultancy,"13,440.40","2,688.08","16,128.48",07-Oct-11,COMMUNITIES
Nottinghamshire County Council,07-00361,FIRST ORDER RED LTD,Soft Facilities Management,Scrap and Waste Materials,860.5,172.1,"1,032.60",10-Oct-11,RESOURCES
Nottinghamshire County Council,07-01755,CRANTON ELECTRICAL CO LTD,Hard Facilities Management ,Electrical Systems and Lighting,"1,254.75",0,"1,254.75",24-Oct-11,RESOURCES
Nottinghamshire County Council,07-05685,MIDLAND ROOFING SERVICES (DERBY) LTD,Hard Facilities Management ,Roofing Services,"25,467.00","5,093.40","30,560.40",31-Oct-11,RESOURCES
Nottinghamshire County Council,07-05684,MIDLAND ROOFING SERVICES (DERBY) LTD,Hard Facilities Management ,Roofing Services,"14,707.27","2,941.45","17,648.72",31-Oct-11,RESOURCES
Nottinghamshire County Council,07-05686,MIDLAND ROOFING SERVICES (DERBY) LTD,Hard Facilities Management ,Roofing Services,"12,648.80","2,529.76","15,178.56",31-Oct-11,RESOURCES
Nottinghamshire County Council,07-05305,ROBERT WOODHEAD LTD,Hard Facilities Management ,Building Construction Services,"9,849.81","1,969.96","11,819.77",12-Oct-11,RESOURCES
Nottinghamshire County Council,07-05688,MIDLAND ROOFING SERVICES (DERBY) LTD,Hard Facilities Management ,Roofing Services,"33,610.15","6,722.03","40,332.18",31-Oct-11,RESOURCES
Nottinghamshire County Council,07-05350,TRENT VALLEY WINDOW AND DOOR CO LTD,Hard Facilities Management ,Window and Door Installation Services,"89,000.00","17,800.00","106,800.00",31-Oct-11,RESOURCES
Nottinghamshire County Council,07-05920,PTL OCCUPATIONAL HYGIENE CONSULTANTS,Professional Services,Consultancy,"1,522.40",304.48,"1,826.88",14-Oct-11,RESOURCES
Nottinghamshire County Council,07-00995,PTL OCCUPATIONAL HYGIENE CONSULTANTS,Professional Services,Consultancy,605,121,726,04-Oct-11,RESOURCES
Nottinghamshire County Council,07-05279,TRENT VALLEY WINDOW AND DOOR CO LTD,Hard Facilities Management ,Window and Door Installation Services,"33,794.00","6,758.80","40,552.80",12-Oct-11,RESOURCES
Nottinghamshire County Council,07-00383,FIRST ORDER RED LTD,Soft Facilities Management,Scrap and Waste Materials,"2,458.00",491.6,"2,949.60",11-Oct-11,RESOURCES
Nottinghamshire County Council,07-06264,ASHE CONSTRUCTION LTD,Hard Facilities Management ,Building Construction Services,"1,037.92",207.58,"1,245.50",17-Oct-11,RESOURCES
Nottinghamshire County Council,07-05687,MIDLAND ROOFING SERVICES (DERBY) LTD,Hard Facilities Management ,Roofing Services,"22,012.53","4,402.51","26,415.04",31-Oct-11,RESOURCES
Nottinghamshire County Council,07-01912,PTL OCCUPATIONAL HYGIENE CONSULTANTS,Professional Services,Consultancy,"2,387.80",477.56,"2,865.36",10-Oct-11,RESOURCES
Nottinghamshire County Council,07-08083,PTL OCCUPATIONAL HYGIENE CONSULTANTS,Professional Services,Consultancy,482.6,96.52,579.12,26-Oct-11,RESOURCES
Nottinghamshire County Council,07-00360,FIRST ORDER RED LTD,Soft Facilities Management,Scrap and Waste Materials,751,150.2,901.2,10-Oct-11,RESOURCES
Nottinghamshire County Council,07-05910,PTL OCCUPATIONAL HYGIENE CONSULTANTS,Professional Services,Consultancy,"3,111.40",622.28,"3,733.68",14-Oct-11,RESOURCES
Nottinghamshire County Council,07-01360,ASHE CONSTRUCTION LTD,Hard Facilities Management ,Building Construction Services,"108,321.98","21,664.40","129,986.38",06-Oct-11,RESOURCES
Nottinghamshire County Council,07-01910,TRENT VALLEY WINDOW AND DOOR CO LTD,Hard Facilities Management ,Window and Door Installation Services,435,87,522,10-Oct-11,RESOURCES
Nottinghamshire County Council,07-01920,TRENT VALLEY WINDOW AND DOOR CO LTD,Hard Facilities Management ,Window and Door Installation Services,-500,-100,-600,31-Oct-11,RESOURCES
Nottinghamshire County Council,07-05270,TRENT VALLEY WINDOW AND DOOR CO LTD,Hard Facilities Management ,Window and Door Installation Services,"13,176.00","2,635.20","15,811.20",12-Oct-11,RESOURCES
Nottinghamshire County Council,07-05304,MIDLAND ROOFING SERVICES (DERBY) LTD,Hard Facilities Management ,Roofing Services,"1,482.60",296.52,"1,779.12",27-Oct-11,RESOURCES
Nottinghamshire County Council,07-01914,M J W ASBESTOS REMOVAL LTD,Soft Facilities Management,Scrap and Waste Materials,950,190,"1,140.00",10-Oct-11,RESOURCES
Nottinghamshire County Council,07-00976,PULSE 24,Hard Facilities Management ,Building and Construction Supplies,"5,844.44","1,168.89","7,013.33",04-Oct-11,RESOURCES
Nottinghamshire County Council,07-05280,FIRST ORDER RED LTD,Soft Facilities Management,Scrap and Waste Materials,"1,383.00",276.6,"1,659.60",12-Oct-11,RESOURCES
Nottinghamshire County Council,07-05303,PTL OCCUPATIONAL HYGIENE CONSULTANTS,Professional Services,Consultancy,"1,647.50",329.5,"1,977.00",12-Oct-11,RESOURCES
Nottinghamshire County Council,07-08277,PTL OCCUPATIONAL HYGIENE CONSULTANTS,Professional Services,Consultancy,788,157.6,945.6,28-Oct-11,RESOURCES
Nottinghamshire County Council,07-06283,FIRST ORDER RED LTD,Soft Facilities Management,Scrap and Waste Materials,"1,067.00",213.4,"1,280.40",17-Oct-11,RESOURCES
Nottinghamshire County Council,07-00973,PTL OCCUPATIONAL HYGIENE CONSULTANTS,Professional Services,Consultancy,731.2,146.24,877.44,04-Oct-11,RESOURCES
Nottinghamshire County Council,07-06937,SECOND ELEMENT LTD,Hard Facilities Management ,Health and Safety,570,114,684,19-Oct-11,RESOURCES
Nottinghamshire County Council,07-07157,SECOND ELEMENT LTD,Hard Facilities Management ,Health and Safety,"1,170.00",234,"1,404.00",20-Oct-11,RESOURCES
Nottinghamshire County Council,07-08025,SECOND ELEMENT LTD,Hard Facilities Management ,Health and Safety,570,114,684,26-Oct-11,RESOURCES
Nottinghamshire County Council,07-06266,HYDRO-X WATER TREATMENT LTD,Soft Facilities Management,Vending Machines and Food Equipment,200,40,240,17-Oct-11,RESOURCES
Nottinghamshire County Council,07-06266,HYDRO-X WATER TREATMENT LTD,Soft Facilities Management,Vending Machines and Food Equipment,400,80,480,17-Oct-11,RESOURCES
Nottinghamshire County Council,07-06266,HYDRO-X WATER TREATMENT LTD,Soft Facilities Management,Vending Machines and Food Equipment,600,120,720,17-Oct-11,RESOURCES
Nottinghamshire County Council,07-06287,HYDRO-X WATER TREATMENT LTD,Soft Facilities Management,Vending Machines and Food Equipment,"1,200.00",240,"1,440.00",17-Oct-11,RESOURCES
Nottinghamshire County Council,07-00996,FLOW MECH PRODUCTS LTD,External Services (Highways & Culture),Manufacturing Machinery,440,88,528,04-Oct-11,RESOURCES
Nottinghamshire County Council,07-01488,FORMOST AIRCONDITIONING AND REFRIG LTD,Hard Facilities Management ,Heating and Ventilation (Inc A/C),"1,888.80",377.76,"2,266.56",06-Oct-11,RESOURCES
Nottinghamshire County Council,07-01493,FORMOST AIRCONDITIONING AND REFRIG LTD,Hard Facilities Management ,Heating and Ventilation (Inc A/C),840.86,168.17,"1,009.03",06-Oct-11,RESOURCES
Nottinghamshire County Council,07-01921,CONTROLCARE,Care,Domiciliary Care,780.58,156.12,936.7,10-Oct-11,RESOURCES
Nottinghamshire County Council,07-01922,CONTROLCARE,Care,Domiciliary Care,935.55,187.11,"1,122.66",10-Oct-11,RESOURCES
Nottinghamshire County Council,07-05683,CONTROLCARE,Care,Domiciliary Care,"1,976.65",395.33,"2,371.98",13-Oct-11,RESOURCES
Nottinghamshire County Council,07-05690,CONTROLCARE,Care,Domiciliary Care,"1,017.58",203.52,"1,221.10",13-Oct-11,RESOURCES
Nottinghamshire County Council,07-05930,HAROLD POTTER AND COMPANY LTD,Professional Services,Professional Engineering Services,500,100,600,14-Oct-11,RESOURCES
Nottinghamshire County Council,07-06919,KEN BURROWS LTD,Hard Facilities Management ,Electrical Systems and Lighting,-475.8,-95.16,-570.96,19-Oct-11,RESOURCES
Nottinghamshire County Council,07-06920,KEN BURROWS LTD,Hard Facilities Management ,Electrical Systems and Lighting,"1,529.78",305.96,"1,835.74",19-Oct-11,RESOURCES
Nottinghamshire County Council,07-06921,KEN BURROWS LTD,Hard Facilities Management ,Electrical Systems and Lighting,"1,495.90",299.18,"1,795.08",19-Oct-11,RESOURCES
Nottinghamshire County Council,07-06925,HEALTH PROTECTION AGENCY,Care,Healthcare Services,"11,352.00","2,270.40","13,622.40",20-Oct-11,RESOURCES
Nottinghamshire County Council,07-08063,FORMOST AIRCONDITIONING AND REFRIG LTD,Hard Facilities Management ,Heating and Ventilation (Inc A/C),"1,236.54",247.31,"1,483.85",26-Oct-11,RESOURCES
Nottinghamshire County Council,07-06170,ARROW LIGHT RAIL LTD,External Services (Highways & Culture),Highways and Works,"20,000.00",0,"20,000.00",17-Oct-11,COMMUNITIES
Nottinghamshire County Council,07-06171,CENTREBUS LTD,Transport & Travel,Bus,857.55,0,857.55,17-Oct-11,COMMUNITIES
Nottinghamshire County Council,07-06172,K AND H DOYLE COACHES LTD,Transport & Travel,Bus,"6,500.00",0,"6,500.00",17-Oct-11,COMMUNITIES
Nottinghamshire County Council,07-06173,K AND H DOYLE COACHES LTD,Transport & Travel,Bus,"5,700.00",0,"5,700.00",17-Oct-11,COMMUNITIES
Nottinghamshire County Council,07-06174,KETTLEWELL RETFORD LTD,Transport & Travel,Bus,800,0,800,17-Oct-11,COMMUNITIES
Nottinghamshire County Council,07-06175,MARSHALLS OF SUTTON ON TRENT,Transport & Travel,Bus,"14,500.00",0,"14,500.00",17-Oct-11,COMMUNITIES
Nottinghamshire County Council,07-06179,P C COACHES OF LINCOLN LTD,TBC,TBC,"1,130.48",0,"1,130.48",18-Oct-11,COMMUNITIES
Nottinghamshire County Council,07-06180,PREMIERE TRAVEL LTD,Transport & Travel,Travel Agencies and Booking,"33,000.00",0,"33,000.00",17-Oct-11,COMMUNITIES
Nottinghamshire County Council,07-06182,TRAVEL WRIGHT LTD,Transport & Travel,Travel Agencies and Booking,"8,000.00",0,"8,000.00",17-Oct-11,COMMUNITIES
Nottinghamshire County Council,07-06183,TRENT MOTOR TRACTION COMPANY LTD,Transport & Travel,Bus,789.73,0,789.73,18-Oct-11,COMMUNITIES
Nottinghamshire County Council,07-06184,YOUR BUS,Transport & Travel,Bus,"24,000.00",0,"24,000.00",17-Oct-11,COMMUNITIES
Nottinghamshire County Council,07-06185,NOTTINGHAM CITY TRANSPORT LTD,Transport & Travel,Bus,"161,540.00",0,"161,540.00",18-Oct-11,COMMUNITIES
Nottinghamshire County Council,07-06186,TRENT MOTOR TRACTION COMPANY LTD,Transport & Travel,Bus,"231,103.06",0,"231,103.06",18-Oct-11,COMMUNITIES
Nottinghamshire County Council,07-06187,STAGECOACH EAST MIDLANDS,Transport & Travel,Bus,"261,540.00",0,"261,540.00",18-Oct-11,COMMUNITIES
Nottinghamshire County Council,07-06177,OUR CENTRE,Care,Community and Social Services,715.8,0,715.8,17-Oct-11,COMMUNITIES
Nottinghamshire County Council,07-06178,OUR CENTRE,Care,Community and Social Services,863.29,0,863.29,17-Oct-11,COMMUNITIES
Nottinghamshire County Council,07-01037,EMTIS LTD,Transport & Travel,Bus,854.2,170.84,"1,025.04",05-Oct-11,COMMUNITIES
Nottinghamshire County Council,07-06299,MARSHALLS OF SUTTON ON TRENT,Transport & Travel,Bus,"17,634.21",0,"17,634.21",20-Oct-11,COMMUNITIES
Nottinghamshire County Council,07-01513,TRENT MOTOR TRACTION COMPANY LTD,Transport & Travel,Bus,"1,210.00",0,"1,210.00",06-Oct-11,COMMUNITIES
Nottinghamshire County Council,07-01514,TRENT MOTOR TRACTION COMPANY LTD,Transport & Travel,Bus,609.75,0,609.75,06-Oct-11,COMMUNITIES
Nottinghamshire County Council,07-01515,TRENT MOTOR TRACTION COMPANY LTD,Transport & Travel,Bus,"7,650.87",0,"7,650.87",06-Oct-11,COMMUNITIES
Nottinghamshire County Council,07-01516,TRENT MOTOR TRACTION COMPANY LTD,Transport & Travel,Bus,547.97,0,547.97,06-Oct-11,COMMUNITIES
Nottinghamshire County Council,07-01517,TRENT MOTOR TRACTION COMPANY LTD,Transport & Travel,Bus,"2,593.24",0,"2,593.24",06-Oct-11,COMMUNITIES
Nottinghamshire County Council,07-01518,TRENT MOTOR TRACTION COMPANY LTD,Transport & Travel,Bus,"3,458.00",0,"3,458.00",06-Oct-11,COMMUNITIES
Nottinghamshire County Council,07-01519,TRENT MOTOR TRACTION COMPANY LTD,Transport & Travel,Bus,"3,941.86",0,"3,941.86",06-Oct-11,COMMUNITIES
Nottinghamshire County Council,07-01520,TRENT MOTOR TRACTION COMPANY LTD,Transport & Travel,Bus,"3,491.54",0,"3,491.54",06-Oct-11,COMMUNITIES
Nottinghamshire County Council,07-01521,TRENT MOTOR TRACTION COMPANY LTD,Transport & Travel,Bus,"3,065.14",0,"3,065.14",06-Oct-11,COMMUNITIES
Nottinghamshire County Council,07-01522,TRENT MOTOR TRACTION COMPANY LTD,Transport & Travel,Bus,"3,354.00",0,"3,354.00",06-Oct-11,COMMUNITIES
Nottinghamshire County Council,07-01523,TRENT MOTOR TRACTION COMPANY LTD,Transport & Travel,Bus,690.82,0,690.82,06-Oct-11,COMMUNITIES
Nottinghamshire County Council,07-01524,TRENT MOTOR TRACTION COMPANY LTD,Transport & Travel,Bus,509.85,0,509.85,06-Oct-11,COMMUNITIES
Nottinghamshire County Council,07-01525,K AND H DOYLE COACHES LTD,Transport & Travel,Bus,"5,573.62",0,"5,573.62",06-Oct-11,COMMUNITIES
Nottinghamshire County Council,07-01526,K AND H DOYLE COACHES LTD,Transport & Travel,Bus,"3,461.12",0,"3,461.12",06-Oct-11,COMMUNITIES
Nottinghamshire County Council,07-01527,K AND H DOYLE COACHES LTD,Transport & Travel,Bus,"5,460.00",0,"5,460.00",06-Oct-11,COMMUNITIES
Nottinghamshire County Council,07-05453,UNITY COACHES,Transport & Travel,Bus,"1,524.39",0,"1,524.39",12-Oct-11,COMMUNITIES
Nottinghamshire County Council,07-05454,UNITY COACHES,Transport & Travel,Bus,474.3,0,474.3,12-Oct-11,COMMUNITIES
Nottinghamshire County Council,07-05475,NOTTINGHAM MINIBUSES AND COACHES,Transport & Travel,Bus,25.5,0,25.5,12-Oct-11,COMMUNITIES
Nottinghamshire County Council,07-05477,STAGECOACH EAST MIDLANDS,Transport & Travel,Bus,"1,983.52",0,"1,983.52",12-Oct-11,COMMUNITIES
Nottinghamshire County Council,07-05478,STAGECOACH EAST MIDLANDS,Transport & Travel,Bus,"2,163.84",0,"2,163.84",12-Oct-11,COMMUNITIES
Nottinghamshire County Council,07-05479,STAGECOACH EAST MIDLANDS,Transport & Travel,Bus,"2,344.16",0,"2,344.16",12-Oct-11,COMMUNITIES
Nottinghamshire County Council,07-05480,STAGECOACH EAST MIDLANDS,Transport & Travel,Bus,"2,344.16",0,"2,344.16",12-Oct-11,COMMUNITIES
Nottinghamshire County Council,07-05481,STAGECOACH EAST MIDLANDS,Transport & Travel,Bus,"1,016.95",0,"1,016.95",12-Oct-11,COMMUNITIES
Nottinghamshire County Council,07-05482,STAGECOACH EAST MIDLANDS,Transport & Travel,Bus,"1,423.73",0,"1,423.73",12-Oct-11,COMMUNITIES
Nottinghamshire County Council,07-05483,STAGECOACH EAST MIDLANDS,Transport & Travel,Bus,813.56,0,813.56,12-Oct-11,COMMUNITIES
Nottinghamshire County Council,07-05484,STAGECOACH EAST MIDLANDS,Transport & Travel,Bus,"1,016.95",0,"1,016.95",12-Oct-11,COMMUNITIES
Nottinghamshire County Council,07-05485,STAGECOACH EAST MIDLANDS,Transport & Travel,Bus,"13,582.14",0,"13,582.14",12-Oct-11,COMMUNITIES
Nottinghamshire County Council,07-05492,TRAVEL WRIGHT LTD,Transport & Travel,Travel Agencies and Booking,"7,250.88",0,"7,250.88",12-Oct-11,COMMUNITIES
Nottinghamshire County Council,07-05493,TRAVEL WRIGHT LTD,Transport & Travel,Travel Agencies and Booking,"16,480.88",0,"16,480.88",12-Oct-11,COMMUNITIES
Nottinghamshire County Council,07-05496,TRAVEL WRIGHT LTD,Transport & Travel,Travel Agencies and Booking,"7,720.56",0,"7,720.56",12-Oct-11,COMMUNITIES
Nottinghamshire County Council,07-05497,TRAVEL WRIGHT LTD,Transport & Travel,Travel Agencies and Booking,882,0,882,12-Oct-11,COMMUNITIES
Nottinghamshire County Council,07-05499,J C COACHES,Transport & Travel,Bus,407.14,0,407.14,12-Oct-11,COMMUNITIES
Nottinghamshire County Council,07-05500,K AND H DOYLE COACHES LTD,Transport & Travel,Bus,"21,151.90",0,"21,151.90",12-Oct-11,COMMUNITIES
Nottinghamshire County Council,07-05834,REDFERN COACHES MANSFIELD LTD,Transport & Travel,Bus,925.93,0,925.93,13-Oct-11,COMMUNITIES
Nottinghamshire County Council,07-05847,NOTTINGHAM CITY TRANSPORT LTD,Transport & Travel,Bus,151.81,0,151.81,13-Oct-11,COMMUNITIES
Nottinghamshire County Council,07-06014,GEM MINI TRAVEL,Transport & Travel,Travel Agencies and Booking,498.85,0,498.85,14-Oct-11,COMMUNITIES
Nottinghamshire County Council,07-06020,STAGECOACH EAST MIDLANDS,Transport & Travel,Bus,"2,344.16",0,"2,344.16",14-Oct-11,COMMUNITIES
Nottinghamshire County Council,07-06021,YOUR BUS,Transport & Travel,Bus,"7,898.88",0,"7,898.88",14-Oct-11,COMMUNITIES
Nottinghamshire County Council,07-06022,YOUR BUS,Transport & Travel,Bus,"17,972.05",0,"17,972.05",14-Oct-11,COMMUNITIES
Nottinghamshire County Council,07-06023,YOUR BUS,Transport & Travel,Bus,"24,411.80",0,"24,411.80",14-Oct-11,COMMUNITIES
Nottinghamshire County Council,07-06024,SOAR VALLEY BUS,Transport & Travel,Bus,"1,295.49",0,"1,295.49",14-Oct-11,COMMUNITIES
Nottinghamshire County Council,07-07089,MARSHALLS OF SUTTON ON TRENT,Transport & Travel,Bus,"3,960.58",0,"3,960.58",19-Oct-11,COMMUNITIES
Nottinghamshire County Council,07-07090,MARSHALLS OF SUTTON ON TRENT,Transport & Travel,Bus,719.42,0,719.42,19-Oct-11,COMMUNITIES
Nottinghamshire County Council,07-07091,MARSHALLS OF SUTTON ON TRENT,Transport & Travel,Bus,789.55,0,789.55,19-Oct-11,COMMUNITIES
Nottinghamshire County Council,07-07092,MARSHALLS OF SUTTON ON TRENT,Transport & Travel,Bus,"1,043.90",0,"1,043.90",19-Oct-11,COMMUNITIES
Nottinghamshire County Council,07-07093,STAGECOACH EAST MIDLANDS,Transport & Travel,Bus,"1,195.00",0,"1,195.00",20-Oct-11,COMMUNITIES
Nottinghamshire County Council,07-07094,STAGECOACH EAST MIDLANDS,Transport & Travel,Bus,"1,673.00",0,"1,673.00",20-Oct-11,COMMUNITIES
Nottinghamshire County Council,07-07095,STAGECOACH EAST MIDLANDS,Transport & Travel,Bus,956,0,956,20-Oct-11,COMMUNITIES
Nottinghamshire County Council,07-07096,STAGECOACH EAST MIDLANDS,Transport & Travel,Bus,"6,480.24",0,"6,480.24",20-Oct-11,COMMUNITIES
Nottinghamshire County Council,07-07097,STAGECOACH EAST MIDLANDS,Transport & Travel,Bus,"1,516.06",0,"1,516.06",20-Oct-11,COMMUNITIES
Nottinghamshire County Council,07-07098,STAGECOACH EAST MIDLANDS,Transport & Travel,Bus,"2,130.18",0,"2,130.18",20-Oct-11,COMMUNITIES
Nottinghamshire County Council,07-07099,STAGECOACH EAST MIDLANDS,Transport & Travel,Bus,768.88,0,768.88,20-Oct-11,COMMUNITIES
Nottinghamshire County Council,07-07100,STAGECOACH EAST MIDLANDS,Transport & Travel,Bus,"13,582.14",0,"13,582.14",20-Oct-11,COMMUNITIES
Nottinghamshire County Council,07-07101,STAGECOACH EAST MIDLANDS,Transport & Travel,Bus,"5,888.22",0,"5,888.22",20-Oct-11,COMMUNITIES
Nottinghamshire County Council,07-07102,STAGECOACH EAST MIDLANDS,Transport & Travel,Bus,"7,040.05",0,"7,040.05",20-Oct-11,COMMUNITIES
Nottinghamshire County Council,07-07103,STAGECOACH EAST MIDLANDS,Transport & Travel,Bus,"2,344.16",0,"2,344.16",20-Oct-11,COMMUNITIES
Nottinghamshire County Council,07-07104,STAGECOACH EAST MIDLANDS,Transport & Travel,Bus,813.56,0,813.56,20-Oct-11,COMMUNITIES
Nottinghamshire County Council,07-07105,STAGECOACH EAST MIDLANDS,Transport & Travel,Bus,"1,370.00",0,"1,370.00",20-Oct-11,COMMUNITIES
Nottinghamshire County Council,07-07107,STAGECOACH EAST MIDLANDS,Transport & Travel,Bus,"3,181.88",0,"3,181.88",20-Oct-11,COMMUNITIES
Nottinghamshire County Council,07-07108,STAGECOACH EAST MIDLANDS,Transport & Travel,Bus,"1,908.66",0,"1,908.66",20-Oct-11,COMMUNITIES
Nottinghamshire County Council,07-07109,STAGECOACH EAST MIDLANDS,Transport & Travel,Bus,"1,375.14",0,"1,375.14",20-Oct-11,COMMUNITIES
Nottinghamshire County Council,07-07110,STAGECOACH EAST MIDLANDS,Transport & Travel,Bus,"1,718.16",0,"1,718.16",20-Oct-11,COMMUNITIES
Nottinghamshire County Council,07-07111,STAGECOACH EAST MIDLANDS,Transport & Travel,Bus,"1,535.56",0,"1,535.56",20-Oct-11,COMMUNITIES
Nottinghamshire County Council,07-07112,STAGECOACH EAST MIDLANDS,Transport & Travel,Bus,"2,582.58",0,"2,582.58",20-Oct-11,COMMUNITIES
Nottinghamshire County Council,07-07113,STAGECOACH EAST MIDLANDS,Transport & Travel,Bus,"2,233.66",0,"2,233.66",20-Oct-11,COMMUNITIES
Nottinghamshire County Council,07-07114,STAGECOACH EAST MIDLANDS,Transport & Travel,Bus,"1,228.50",0,"1,228.50",20-Oct-11,COMMUNITIES
Nottinghamshire County Council,07-07115,STAGECOACH EAST MIDLANDS,Transport & Travel,Bus,538.72,0,538.72,20-Oct-11,COMMUNITIES
Nottinghamshire County Council,07-07118,TIGER EUROPEAN,Transport & Travel,Bus,581.78,0,581.78,19-Oct-11,COMMUNITIES
Nottinghamshire County Council,07-07124,PREMIERE TRAVEL LTD,Transport & Travel,Travel Agencies and Booking,"10,322.00",0,"10,322.00",20-Oct-11,COMMUNITIES
Nottinghamshire County Council,07-07125,NOTTINGHAM CITY TRANSPORT LTD,Transport & Travel,Bus,"1,499.50",0,"1,499.50",20-Oct-11,COMMUNITIES
Nottinghamshire County Council,07-07126,NOTTINGHAM CITY TRANSPORT LTD,Transport & Travel,Bus,"3,804.92",0,"3,804.92",20-Oct-11,COMMUNITIES
Nottinghamshire County Council,07-07215,MARSHALLS OF SUTTON ON TRENT,Transport & Travel,Bus,"3,855.28",0,"3,855.28",20-Oct-11,COMMUNITIES
Nottinghamshire County Council,07-07216,MARSHALLS OF SUTTON ON TRENT,Transport & Travel,Bus,"1,310.08",0,"1,310.08",20-Oct-11,COMMUNITIES
Nottinghamshire County Council,07-07217,MARSHALLS OF SUTTON ON TRENT,Transport & Travel,Bus,"1,120.32",0,"1,120.32",20-Oct-11,COMMUNITIES
Nottinghamshire County Council,07-07219,MARSHALLS OF SUTTON ON TRENT,Transport & Travel,Bus,"1,233.70",0,"1,233.70",20-Oct-11,COMMUNITIES
Nottinghamshire County Council,07-07221,MARSHALLS OF SUTTON ON TRENT,Transport & Travel,Bus,837.72,0,837.72,20-Oct-11,COMMUNITIES
Nottinghamshire County Council,07-07222,MARSHALLS OF SUTTON ON TRENT,Transport & Travel,Bus,"1,252.16",0,"1,252.16",20-Oct-11,COMMUNITIES
Nottinghamshire County Council,07-07223,MARSHALLS OF SUTTON ON TRENT,Transport & Travel,Bus,"1,362.36",0,"1,362.36",20-Oct-11,COMMUNITIES
Nottinghamshire County Council,07-07224,STAGECOACH EAST MIDLANDS,Transport & Travel,Bus,"14,476.44",0,"14,476.44",20-Oct-11,COMMUNITIES
Nottinghamshire County Council,07-07225,STAGECOACH EAST MIDLANDS,Transport & Travel,Bus,"13,270.56",0,"13,270.56",20-Oct-11,COMMUNITIES
Nottinghamshire County Council,07-07226,STAGECOACH EAST MIDLANDS,Transport & Travel,Bus,"13,270.56",0,"13,270.56",20-Oct-11,COMMUNITIES
Nottinghamshire County Council,07-07227,STAGECOACH EAST MIDLANDS,Transport & Travel,Bus,"14,476.44",0,"14,476.44",20-Oct-11,COMMUNITIES
Nottinghamshire County Council,07-07228,STAGECOACH EAST MIDLANDS,Transport & Travel,Bus,"14,476.44",0,"14,476.44",20-Oct-11,COMMUNITIES
Nottinghamshire County Council,07-07229,STAGECOACH EAST MIDLANDS,Transport & Travel,Bus,"1,195.00",0,"1,195.00",20-Oct-11,COMMUNITIES
Nottinghamshire County Council,07-07230,STAGECOACH EAST MIDLANDS,Transport & Travel,Bus,"1,195.00",0,"1,195.00",20-Oct-11,COMMUNITIES
Nottinghamshire County Council,07-07231,STAGECOACH EAST MIDLANDS,Transport & Travel,Bus,"1,584.44",0,"1,584.44",20-Oct-11,COMMUNITIES
Nottinghamshire County Council,07-07232,STAGECOACH EAST MIDLANDS,Transport & Travel,Bus,731.24,0,731.24,20-Oct-11,COMMUNITIES
Nottinghamshire County Council,07-07233,STAGECOACH EAST MIDLANDS,Transport & Travel,Bus,"1,048.04",0,"1,048.04",20-Oct-11,COMMUNITIES
Nottinghamshire County Council,07-07234,STAGECOACH EAST MIDLANDS,Transport & Travel,Bus,"1,282.40",0,"1,282.40",20-Oct-11,COMMUNITIES
Nottinghamshire County Council,07-07235,STAGECOACH EAST MIDLANDS,Transport & Travel,Bus,"14,902.68",0,"14,902.68",20-Oct-11,COMMUNITIES
Nottinghamshire County Council,07-07236,STAGECOACH EAST MIDLANDS,Transport & Travel,Bus,956,0,956,20-Oct-11,COMMUNITIES
Nottinghamshire County Council,07-07239,STAGECOACH EAST MIDLANDS,Transport & Travel,Bus,"3,490.24",0,"3,490.24",20-Oct-11,COMMUNITIES
Nottinghamshire County Council,07-07240,STAGECOACH EAST MIDLANDS,Transport & Travel,Bus,"1,275.78",0,"1,275.78",20-Oct-11,COMMUNITIES
Nottinghamshire County Council,07-07241,STAGECOACH EAST MIDLANDS,Transport & Travel,Bus,949.26,0,949.26,20-Oct-11,COMMUNITIES
Nottinghamshire County Council,07-07242,STAGECOACH EAST MIDLANDS,Transport & Travel,Bus,"8,083.40",0,"8,083.40",20-Oct-11,COMMUNITIES
Nottinghamshire County Council,07-07243,STAGECOACH EAST MIDLANDS,Transport & Travel,Bus,"2,428.92",0,"2,428.92",20-Oct-11,COMMUNITIES
Nottinghamshire County Council,07-07244,STAGECOACH EAST MIDLANDS,Transport & Travel,Bus,"1,181.40",0,"1,181.40",20-Oct-11,COMMUNITIES
Nottinghamshire County Council,07-07245,STAGECOACH EAST MIDLANDS,Transport & Travel,Bus,"10,050.82",0,"10,050.82",20-Oct-11,COMMUNITIES
Nottinghamshire County Council,07-07247,STAGECOACH EAST MIDLANDS,Transport & Travel,Bus,"7,949.00",0,"7,949.00",20-Oct-11,COMMUNITIES
Nottinghamshire County Council,07-07248,YOUR BUS,Transport & Travel,Bus,"27,686.10",0,"27,686.10",20-Oct-11,COMMUNITIES
Nottinghamshire County Council,07-07249,YOUR BUS,Transport & Travel,Bus,"22,113.00",0,"22,113.00",20-Oct-11,COMMUNITIES
Nottinghamshire County Council,07-07250,PREMIERE TRAVEL LTD,Transport & Travel,Travel Agencies and Booking,"2,665.26",0,"2,665.26",20-Oct-11,COMMUNITIES
Nottinghamshire County Council,07-07251,PREMIERE TRAVEL LTD,Transport & Travel,Travel Agencies and Booking,"23,389.34",0,"23,389.34",20-Oct-11,COMMUNITIES
Nottinghamshire County Council,07-07252,PREMIERE TRAVEL LTD,Transport & Travel,Travel Agencies and Booking,"36,720.16",0,"36,720.16",20-Oct-11,COMMUNITIES
Nottinghamshire County Council,07-07255,PREMIERE TRAVEL LTD,Transport & Travel,Travel Agencies and Booking,139.48,0,139.48,20-Oct-11,COMMUNITIES
Nottinghamshire County Council,07-08377,OUR CENTRE,Care,Community and Social Services,506.52,0,506.52,28-Oct-11,COMMUNITIES
Nottinghamshire County Council,07-08378,OUR CENTRE,Care,Community and Social Services,506.52,0,506.52,28-Oct-11,COMMUNITIES
Nottinghamshire County Council,07-08379,OUR CENTRE,Care,Community and Social Services,506.52,0,506.52,28-Oct-11,COMMUNITIES
Nottinghamshire County Council,07-08380,STAGECOACH EAST MIDLANDS,Transport & Travel,Bus,"1,016.95",0,"1,016.95",28-Oct-11,COMMUNITIES
Nottinghamshire County Council,07-08381,STAGECOACH EAST MIDLANDS,Transport & Travel,Bus,"3,071.90",0,"3,071.90",28-Oct-11,COMMUNITIES
Nottinghamshire County Council,07-08383,STAGECOACH EAST MIDLANDS,Transport & Travel,Bus,"3,250.00",0,"3,250.00",28-Oct-11,COMMUNITIES
Nottinghamshire County Council,07-08384,STAGECOACH EAST MIDLANDS,Transport & Travel,Bus,"4,550.00",0,"4,550.00",28-Oct-11,COMMUNITIES
Nottinghamshire County Council,07-08385,STAGECOACH EAST MIDLANDS,Transport & Travel,Bus,"3,250.00",0,"3,250.00",28-Oct-11,COMMUNITIES
Nottinghamshire County Council,07-08386,STAGECOACH EAST MIDLANDS,Transport & Travel,Bus,"10,010.00",0,"10,010.00",28-Oct-11,COMMUNITIES
Nottinghamshire County Council,07-08387,STAGECOACH EAST MIDLANDS,Transport & Travel,Bus,"2,352.00",0,"2,352.00",28-Oct-11,COMMUNITIES
Nottinghamshire County Council,07-08388,STAGECOACH EAST MIDLANDS,Transport & Travel,Bus,"2,338.60",0,"2,338.60",28-Oct-11,COMMUNITIES
Nottinghamshire County Council,07-08389,STAGECOACH EAST MIDLANDS,Transport & Travel,Bus,"3,908.84",0,"3,908.84",28-Oct-11,COMMUNITIES
Nottinghamshire County Council,07-08390,STAGECOACH EAST MIDLANDS,Transport & Travel,Bus,"1,885.00",0,"1,885.00",28-Oct-11,COMMUNITIES
Nottinghamshire County Council,07-07315,ITP CONSULTANTS LTD,Professional Services,Consultancy,998.01,199.6,"1,197.61",24-Oct-11,COMMUNITIES
Nottinghamshire County Council,07-00167,GK GROUP MANSFIELD,Transport & Travel,Motor Vehicles,-10,-2,-12,10-Oct-11,COMMUNITIES
Nottinghamshire County Council,07-01365,GK GROUP MANSFIELD,Transport & Travel,Motor Vehicles,-10,-2,-12,25-Oct-11,COMMUNITIES
Nottinghamshire County Council,07-01420,ENTERPRISE RENT-A-CAR LTD,Transport & Travel,Motor Vehicles,-10,-2,-12,11-Oct-11,COMMUNITIES
Nottinghamshire County Council,07-01421,ENTERPRISE RENT-A-CAR LTD,Transport & Travel,Motor Vehicles,-10,-2,-12,11-Oct-11,COMMUNITIES
Nottinghamshire County Council,07-05325,MAUN MOTORS SELF DRIVE,Transport & Travel,Motor Vehicles,-10,0,-10,13-Oct-11,COMMUNITIES
Nottinghamshire County Council,07-00397,GK GROUP MANSFIELD,Transport & Travel,Motor Vehicles,210,0,210,05-Oct-11,COMMUNITIES
Nottinghamshire County Council,07-00397,GK GROUP MANSFIELD,Transport & Travel,Motor Vehicles,55,0,55,05-Oct-11,COMMUNITIES
Nottinghamshire County Council,07-00364,KEY PERSONNEL (MIDLANDS) LTD,People,Recruitment,300.31,0,300.31,03-Oct-11,COMMUNITIES
Nottinghamshire County Council,07-00364,KEY PERSONNEL (MIDLANDS) LTD,People,Recruitment,358.85,0,358.85,03-Oct-11,COMMUNITIES
Nottinghamshire County Council,07-00364,KEY PERSONNEL (MIDLANDS) LTD,People,Recruitment,302.86,0,302.86,03-Oct-11,COMMUNITIES
Nottinghamshire County Council,07-00364,KEY PERSONNEL (MIDLANDS) LTD,People,Recruitment,302.86,0,302.86,03-Oct-11,COMMUNITIES
Nottinghamshire County Council,07-00366,KEY PERSONNEL (MIDLANDS) LTD,People,Recruitment,376.66,0,376.66,10-Oct-11,COMMUNITIES
Nottinghamshire County Council,07-00366,KEY PERSONNEL (MIDLANDS) LTD,People,Recruitment,236.69,0,236.69,10-Oct-11,COMMUNITIES
Nottinghamshire County Council,07-00366,KEY PERSONNEL (MIDLANDS) LTD,People,Recruitment,384.3,0,384.3,10-Oct-11,COMMUNITIES
Nottinghamshire County Council,07-00366,KEY PERSONNEL (MIDLANDS) LTD,People,Recruitment,376.66,0,376.66,10-Oct-11,COMMUNITIES
Nottinghamshire County Council,07-01110,KEY PERSONNEL (MIDLANDS) LTD,People,Recruitment,376.66,0,376.66,24-Oct-11,COMMUNITIES
Nottinghamshire County Council,07-01110,KEY PERSONNEL (MIDLANDS) LTD,People,Recruitment,381.75,0,381.75,24-Oct-11,COMMUNITIES
Nottinghamshire County Council,07-06308,KEY PERSONNEL (MIDLANDS) LTD,People,Recruitment,376.66,0,376.66,18-Oct-11,COMMUNITIES
Nottinghamshire County Council,07-06308,KEY PERSONNEL (MIDLANDS) LTD,People,Recruitment,381.75,0,381.75,18-Oct-11,COMMUNITIES
Nottinghamshire County Council,07-06308,KEY PERSONNEL (MIDLANDS) LTD,People,Recruitment,374.12,0,374.12,18-Oct-11,COMMUNITIES
Nottinghamshire County Council,07-07563,KEY PERSONNEL (MIDLANDS) LTD,People,Recruitment,376.66,0,376.66,31-Oct-11,COMMUNITIES
Nottinghamshire County Council,07-07563,KEY PERSONNEL (MIDLANDS) LTD,People,Recruitment,376.66,0,376.66,31-Oct-11,COMMUNITIES
Nottinghamshire County Council,07-07563,KEY PERSONNEL (MIDLANDS) LTD,People,Recruitment,379.21,0,379.21,31-Oct-11,COMMUNITIES
Nottinghamshire County Council,07-00883,TERRATRUCK DISTRIBUTION SERVICES LTD,Hard Facilities Management ,Building and Construction Supplies,434.96,0,434.96,04-Oct-11,COMMUNITIES
Nottinghamshire County Council,07-01773,OUTDOOR POWER TOOLS LTD,Hard Facilities Management ,Tools and General Machinery,468,0,468,10-Oct-11,COMMUNITIES
Nottinghamshire County Council,07-05594,AUTOMOTIVE LEASING,Transport & Travel,Motor Vehicles,"3,045.59",609.12,"3,654.71",13-Oct-11,COMMUNITIES
Nottinghamshire County Council,07-05595,AUTOMOTIVE LEASING,Transport & Travel,Motor Vehicles,"3,045.59",609.12,"3,654.71",13-Oct-11,COMMUNITIES
Nottinghamshire County Council,07-05596,LEX AUTOLEASE LTD,Transport & Travel,Motor Vehicles,445.76,89.15,534.91,13-Oct-11,COMMUNITIES
Nottinghamshire County Council,07-05597,LEX AUTOLEASE LTD,Transport & Travel,Motor Vehicles,87.98,0,87.98,13-Oct-11,COMMUNITIES
Nottinghamshire County Council,07-05597,LEX AUTOLEASE LTD,Transport & Travel,Motor Vehicles,108.42,0,108.42,13-Oct-11,COMMUNITIES
Nottinghamshire County Council,07-05597,LEX AUTOLEASE LTD,Transport & Travel,Motor Vehicles,94.24,18.85,113.09,13-Oct-11,COMMUNITIES
Nottinghamshire County Council,07-05597,LEX AUTOLEASE LTD,Transport & Travel,Motor Vehicles,117.15,23.43,140.58,13-Oct-11,COMMUNITIES
Nottinghamshire County Council,07-05597,LEX AUTOLEASE LTD,Transport & Travel,Motor Vehicles,311.65,62.33,373.98,13-Oct-11,COMMUNITIES
Nottinghamshire County Council,07-05634,LEX AUTOLEASE LTD,Transport & Travel,Motor Vehicles,445.76,89.15,534.91,13-Oct-11,COMMUNITIES
Nottinghamshire County Council,07-05635,LEX AUTOLEASE LTD,Transport & Travel,Motor Vehicles,109.16,0,109.16,20-Oct-11,COMMUNITIES
Nottinghamshire County Council,07-05635,LEX AUTOLEASE LTD,Transport & Travel,Motor Vehicles,127.26,0,127.26,20-Oct-11,COMMUNITIES
Nottinghamshire County Council,07-05635,LEX AUTOLEASE LTD,Transport & Travel,Motor Vehicles,119.13,23.83,142.96,20-Oct-11,COMMUNITIES
Nottinghamshire County Council,07-05635,LEX AUTOLEASE LTD,Transport & Travel,Motor Vehicles,126.65,25.33,151.98,20-Oct-11,COMMUNITIES
Nottinghamshire County Council,07-05636,LEX AUTOLEASE LTD,Transport & Travel,Motor Vehicles,"3,650.90",0,"3,650.90",13-Oct-11,COMMUNITIES
Nottinghamshire County Council,07-05636,LEX AUTOLEASE LTD,Transport & Travel,Motor Vehicles,"3,769.14",753.83,"4,522.97",13-Oct-11,COMMUNITIES
Nottinghamshire County Council,07-05637,LEX AUTOLEASE LTD,Transport & Travel,Motor Vehicles,"1,793.09",0,"1,793.09",17-Oct-11,COMMUNITIES
Nottinghamshire County Council,07-05637,LEX AUTOLEASE LTD,Transport & Travel,Motor Vehicles,"2,075.69",0,"2,075.69",17-Oct-11,COMMUNITIES
Nottinghamshire County Council,07-05637,LEX AUTOLEASE LTD,Transport & Travel,Motor Vehicles,"1,167.41",0,"1,167.41",17-Oct-11,COMMUNITIES
Nottinghamshire County Council,07-05637,LEX AUTOLEASE LTD,Transport & Travel,Motor Vehicles,"1,196.16",239.23,"1,435.39",17-Oct-11,COMMUNITIES
Nottinghamshire County Council,07-05637,LEX AUTOLEASE LTD,Transport & Travel,Motor Vehicles,"2,009.52",401.9,"2,411.42",17-Oct-11,COMMUNITIES
Nottinghamshire County Council,07-05637,LEX AUTOLEASE LTD,Transport & Travel,Motor Vehicles,"2,395.74",479.15,"2,874.89",17-Oct-11,COMMUNITIES
Nottinghamshire County Council,07-05638,LEX AUTOLEASE LTD,Transport & Travel,Motor Vehicles,"3,576.25",715.25,"4,291.50",17-Oct-11,COMMUNITIES
Nottinghamshire County Council,07-05639,LEX AUTOLEASE LTD,Transport & Travel,Motor Vehicles,759.15,151.83,910.98,13-Oct-11,COMMUNITIES
Nottinghamshire County Council,07-05640,LEX AUTOLEASE LTD,Transport & Travel,Motor Vehicles,-875.8,-175.16,"-1,050.96",13-Oct-11,COMMUNITIES
Nottinghamshire County Council,07-05640,LEX AUTOLEASE LTD,Transport & Travel,Motor Vehicles,-770.95,0,-770.95,13-Oct-11,COMMUNITIES
Nottinghamshire County Council,07-05978,ING CAR LEASE UK LTD,Transport & Travel,Motor Vehicles,"3,321.00",664.2,"3,985.20",17-Oct-11,COMMUNITIES
Nottinghamshire County Council,07-07720,LEX AUTOLEASE LTD,Transport & Travel,Motor Vehicles,187.29,0,187.29,31-Oct-11,COMMUNITIES
Nottinghamshire County Council,07-07720,LEX AUTOLEASE LTD,Transport & Travel,Motor Vehicles,182.63,0,182.63,31-Oct-11,COMMUNITIES
Nottinghamshire County Council,07-07720,LEX AUTOLEASE LTD,Transport & Travel,Motor Vehicles,177.57,35.51,213.08,31-Oct-11,COMMUNITIES
Nottinghamshire County Council,07-07720,LEX AUTOLEASE LTD,Transport & Travel,Motor Vehicles,190.37,38.07,228.44,31-Oct-11,COMMUNITIES
Nottinghamshire County Council,07-06320,SHELTER MAINTENANCE CO,Hard Facilities Management ,Building Construction Services,160,0,160,18-Oct-11,COMMUNITIES
Nottinghamshire County Council,07-06320,SHELTER MAINTENANCE CO,Hard Facilities Management ,Building Construction Services,274,0,274,18-Oct-11,COMMUNITIES
Nottinghamshire County Council,07-06314,STAGECOACH EAST MIDLANDS,Transport & Travel,Bus,976.72,0,976.72,18-Oct-11,COMMUNITIES
Nottinghamshire County Council,07-06859,SHELTER MAINTENANCE CO,Hard Facilities Management ,Building Construction Services,"2,456.37",0,"2,456.37",19-Oct-11,COMMUNITIES
Nottinghamshire County Council,07-00159,NORTHERN RECRUITMENT GROUP,People,Recruitment,451.4,0,451.4,07-Oct-11,COMMUNITIES
Nottinghamshire County Council,07-00505,STAR INDEPENDENT CONSULTANTS LTD,Professional Services,Consultancy,"7,347.00","1,469.40","8,816.40",12-Oct-11,COMMUNITIES
Nottinghamshire County Council,07-01571,NORTHERN RECRUITMENT GROUP,People,Recruitment,451.4,0,451.4,28-Oct-11,COMMUNITIES
Nottinghamshire County Council,07-05250,NORTHERN RECRUITMENT GROUP,People,Recruitment,451.4,0,451.4,21-Oct-11,COMMUNITIES
Nottinghamshire County Council,07-05251,NORTHERN RECRUITMENT GROUP,People,Recruitment,451.4,0,451.4,28-Oct-11,COMMUNITIES
Nottinghamshire County Council,07-07314,BESTCHART LTD,ICT,Software,"1,984.25",396.85,"2,381.10",24-Oct-11,COMMUNITIES
Nottinghamshire County Council,07-07426,BESTCHART LTD,ICT,Software,"1,987.75",397.55,"2,385.30",24-Oct-11,COMMUNITIES
Nottinghamshire County Council,07-06337,INVESTEC ASSET FINANCE PLC,Professional Services,Financial and Insurance Services,"1,997.00",0,"1,997.00",18-Oct-11,COMMUNITIES
Nottinghamshire County Council,07-07602,THE INDEPENDENT CHOICE,Professional Services,Writing and Translations,160.75,0,160.75,24-Oct-11,COMMUNITIES
Nottinghamshire County Council,07-07602,THE INDEPENDENT CHOICE,Professional Services,Writing and Translations,406.48,0,406.48,24-Oct-11,COMMUNITIES
Nottinghamshire County Council,07-01806,GOLDEN RIVER TRAFFIC LTD,External Services (Highways & Culture),Highways and Works,"2,331.00",0,"2,331.00",27-Oct-11,COMMUNITIES
Nottinghamshire County Council,07-01806,GOLDEN RIVER TRAFFIC LTD,External Services (Highways & Culture),Highways and Works,450,0,450,27-Oct-11,COMMUNITIES
Nottinghamshire County Council,07-01806,GOLDEN RIVER TRAFFIC LTD,External Services (Highways & Culture),Highways and Works,594,0,594,27-Oct-11,COMMUNITIES
Nottinghamshire County Council,07-06109,E M D D LTD,Hard Facilities Management ,Tools and General Machinery,"34,950.00",0,"34,950.00",17-Oct-11,COMMUNITIES
Nottinghamshire County Council,07-05976,AMBER-RTM LTD,External Services (Highways & Culture),Highways and Works,441,88.2,529.2,24-Oct-11,COMMUNITIES
Nottinghamshire County Council,07-05245,FPCR LLR,Professional Services,Professional Engineering Services,"1,680.00",0,"1,680.00",12-Oct-11,COMMUNITIES
Nottinghamshire County Council,07-07423,CL STEEL FABRICATIONS LTD,Hard Facilities Management ,Structural Steel Erection Services,"7,516.00",0,"7,516.00",21-Oct-11,COMMUNITIES
Nottinghamshire County Council,07-00557,E M E C ECOLOGICAL CONSULTANTS,Soft Facilities Management,Environmental Services,620,0,620,03-Oct-11,COMMUNITIES
Nottinghamshire County Council,07-00557,E M E C ECOLOGICAL CONSULTANTS,Soft Facilities Management,Environmental Services,210,0,210,03-Oct-11,COMMUNITIES
Nottinghamshire County Council,07-00557,E M E C ECOLOGICAL CONSULTANTS,Soft Facilities Management,Environmental Services,55,0,55,03-Oct-11,COMMUNITIES
Nottinghamshire County Council,07-05543,WALLINGFORD HYDRO SOLUTIONS LTD,TBC,TBC,750,0,750,31-Oct-11,COMMUNITIES
Nottinghamshire County Council,07-06318,KEY TRAFFIC SYSTEMS,External Services (Highways & Culture),Highways and Works,525,0,525,18-Oct-11,COMMUNITIES
Nottinghamshire County Council,07-08480,BUS SHELTERS LTD,Transport & Travel,Bus,"2,669.24",0,"2,669.24",31-Oct-11,COMMUNITIES
Nottinghamshire County Council,07-00034,ITT WATER AND WASTEWATER UK LTD,Soft Facilities Management,Environmental Services,561,112.2,673.2,21-Oct-11,COMMUNITIES
Nottinghamshire County Council,07-07599,J M COUNTRYSIDE LANDSCAPES,External Services (Highways & Culture),Farming Forestry and Wildlife Services,915,0,915,24-Oct-11,COMMUNITIES
Nottinghamshire County Council,07-01779,COMMERCIAL SURFACE SOLUTIONS,Soft Facilities Management,Cleaning Equipment and Janitorial Supplies,"3,310.00",0,"3,310.00",10-Oct-11,COMMUNITIES
Nottinghamshire County Council,07-01780,COMMERCIAL SURFACE SOLUTIONS,Soft Facilities Management,Cleaning Equipment and Janitorial Supplies,960,0,960,10-Oct-11,COMMUNITIES
Nottinghamshire County Council,07-01780,COMMERCIAL SURFACE SOLUTIONS,Soft Facilities Management,Cleaning Equipment and Janitorial Supplies,680,0,680,10-Oct-11,COMMUNITIES
Nottinghamshire County Council,07-01780,COMMERCIAL SURFACE SOLUTIONS,Soft Facilities Management,Cleaning Equipment and Janitorial Supplies,"1,348.00",0,"1,348.00",10-Oct-11,COMMUNITIES
Nottinghamshire County Council,07-07605,ALL SEASONS EAST MIDLANDS LTD,Soft Facilities Management,Security,"1,850.00",0,"1,850.00",24-Oct-11,COMMUNITIES
Nottinghamshire County Council,07-00847,MALCOLM LANE AND SON LTD,Hard Facilities Management ,Building and Construction Supplies,225,45,270,04-Oct-11,COMMUNITIES
Nottinghamshire County Council,07-00847,MALCOLM LANE AND SON LTD,Hard Facilities Management ,Building and Construction Supplies,"3,285.00",657,"3,942.00",04-Oct-11,COMMUNITIES
Nottinghamshire County Council,07-07342,TARMAC CENTRAL LTD,External Services (Highways & Culture),Highways and Works,"36,538.44","7,307.69","43,846.13",21-Oct-11,COMMUNITIES
Nottinghamshire County Council,07-07342,TARMAC CENTRAL LTD,External Services (Highways & Culture),Highways and Works,282.23,56.45,338.68,21-Oct-11,COMMUNITIES
Nottinghamshire County Council,07-07342,TARMAC CENTRAL LTD,External Services (Highways & Culture),Highways and Works,"23,781.30","4,756.26","28,537.56",21-Oct-11,COMMUNITIES
Nottinghamshire County Council,07-07342,TARMAC CENTRAL LTD,External Services (Highways & Culture),Highways and Works,"46,646.96","9,329.39","55,976.35",21-Oct-11,COMMUNITIES
Nottinghamshire County Council,07-07342,TARMAC CENTRAL LTD,External Services (Highways & Culture),Highways and Works,13.11,2.62,15.73,21-Oct-11,COMMUNITIES
Nottinghamshire County Council,07-07342,TARMAC CENTRAL LTD,External Services (Highways & Culture),Highways and Works,"17,823.18","3,564.64","21,387.82",21-Oct-11,COMMUNITIES
Nottinghamshire County Council,07-07342,TARMAC CENTRAL LTD,External Services (Highways & Culture),Highways and Works,"26,015.90","5,203.18","31,219.08",21-Oct-11,COMMUNITIES
Nottinghamshire County Council,07-07342,TARMAC CENTRAL LTD,External Services (Highways & Culture),Highways and Works,795.39,159.08,954.47,21-Oct-11,COMMUNITIES
Nottinghamshire County Council,07-07342,TARMAC CENTRAL LTD,External Services (Highways & Culture),Highways and Works,912.07,182.41,"1,094.48",21-Oct-11,COMMUNITIES
Nottinghamshire County Council,07-07342,TARMAC CENTRAL LTD,External Services (Highways & Culture),Highways and Works,986.88,197.38,"1,184.26",21-Oct-11,COMMUNITIES
Nottinghamshire County Council,07-07342,TARMAC CENTRAL LTD,External Services (Highways & Culture),Highways and Works,"1,643.29",328.66,"1,971.95",21-Oct-11,COMMUNITIES
Nottinghamshire County Council,07-07342,TARMAC CENTRAL LTD,External Services (Highways & Culture),Highways and Works,204.07,40.81,244.88,21-Oct-11,COMMUNITIES
Nottinghamshire County Council,07-01192,SHELTER MAINTENANCE CO,Hard Facilities Management ,Building Construction Services,"1,453.00",0,"1,453.00",05-Oct-11,COMMUNITIES
Nottinghamshire County Council,07-08114,BUS SHELTERS LTD,Transport & Travel,Bus,"13,703.00",0,"13,703.00",27-Oct-11,COMMUNITIES
Nottinghamshire County Council,07-01122,REGION SERVICES LTD,ICT,Audio and Visual Equipment,"1,200.00",0,"1,200.00",05-Oct-11,COMMUNITIES
Nottinghamshire County Council,07-08253,A WANDLESS SIGN SERVICES LTD,Soft Facilities Management,Printed Media and Signage,165.12,0,165.12,31-Oct-11,COMMUNITIES
Nottinghamshire County Council,07-08253,A WANDLESS SIGN SERVICES LTD,Soft Facilities Management,Printed Media and Signage,"2,642.48",0,"2,642.48",31-Oct-11,COMMUNITIES
Nottinghamshire County Council,07-07992,BUS SHELTERS LTD,Transport & Travel,Bus,"3,721.00",0,"3,721.00",26-Oct-11,COMMUNITIES
Nottinghamshire County Council,07-08253,A WANDLESS SIGN SERVICES LTD,Soft Facilities Management,Printed Media and Signage,911.2,0,911.2,31-Oct-11,COMMUNITIES
Nottinghamshire County Council,07-07740,BUS SHELTERS LTD,Transport & Travel,Bus,"2,320.14",0,"2,320.14",25-Oct-11,COMMUNITIES
Nottinghamshire County Council,07-08228,BUS SHELTERS LTD,Transport & Travel,Bus,"2,040.40",0,"2,040.40",28-Oct-11,COMMUNITIES
Nottinghamshire County Council,07-08229,BUS SHELTERS LTD,Transport & Travel,Bus,"2,040.40",0,"2,040.40",28-Oct-11,COMMUNITIES
Nottinghamshire County Council,07-08478,SIEMENS PLC,Hard Facilities Management ,Electrical Systems and Lighting,"6,162.00",0,"6,162.00",31-Oct-11,COMMUNITIES
Nottinghamshire County Council,07-06903,JBA CONSULTING,Professional Services,Consultancy,"1,405.80",0,"1,405.80",19-Oct-11,COMMUNITIES
Nottinghamshire County Council,07-00397,GK GROUP MANSFIELD,Transport & Travel,Motor Vehicles,"17,102.74",0,"17,102.74",05-Oct-11,COMMUNITIES
Nottinghamshire County Council,07-01484,INTERSERVE PROJECT SERVICES LTD,Professional Services,Professional Engineering Services,"490,437.99","98,087.60","588,525.59",24-Oct-11,COMMUNITIES
Nottinghamshire County Council,07-01771,ELEY PEST CONTROL AND FIELD SERVICES,External Services (Highways & Culture),Farming Forestry and Wildlife Services,540,0,540,10-Oct-11,COMMUNITIES
Nottinghamshire County Council,07-07796,GROUNDWORK CRESSWELL GROUP,External Services (Highways & Culture),Highways and Works,750,150,900,25-Oct-11,COMMUNITIES
Nottinghamshire County Council,07-07796,GROUNDWORK CRESSWELL GROUP,External Services (Highways & Culture),Highways and Works,"38,500.00","7,700.00","46,200.00",25-Oct-11,COMMUNITIES
Nottinghamshire County Council,07-07796,GROUNDWORK CRESSWELL GROUP,External Services (Highways & Culture),Highways and Works,"29,700.00","5,940.00","35,640.00",25-Oct-11,COMMUNITIES
Nottinghamshire County Council,07-08113,ELEY PEST CONTROL AND FIELD SERVICES,External Services (Highways & Culture),Farming Forestry and Wildlife Services,"1,960.00",0,"1,960.00",27-Oct-11,COMMUNITIES
Nottinghamshire County Council,07-07796,GROUNDWORK CRESSWELL GROUP,External Services (Highways & Culture),Highways and Works,"49,500.00","9,900.00","59,400.00",25-Oct-11,COMMUNITIES
Nottinghamshire County Council,07-08121,MARMAX PRODUCTS LTD,Hard Facilities Management ,Building and Construction Supplies,194,0,194,27-Oct-11,COMMUNITIES
Nottinghamshire County Council,07-08121,MARMAX PRODUCTS LTD,Hard Facilities Management ,Building and Construction Supplies,492,0,492,27-Oct-11,COMMUNITIES
Nottinghamshire County Council,07-08121,MARMAX PRODUCTS LTD,Hard Facilities Management ,Building and Construction Supplies,90,0,90,27-Oct-11,COMMUNITIES
Nottinghamshire County Council,07-07796,GROUNDWORK CRESSWELL GROUP,External Services (Highways & Culture),Highways and Works,"3,200.00",640,"3,840.00",25-Oct-11,COMMUNITIES
Nottinghamshire County Council,07-01332,SEC CIVIL ENGINEERING LTD,Professional Services,Professional Engineering Services,"15,000.00",0,"15,000.00",10-Oct-11,COMMUNITIES
Nottinghamshire County Council,07-05563,SEC CIVIL ENGINEERING LTD,Professional Services,Professional Engineering Services,"3,230.00",0,"3,230.00",18-Oct-11,COMMUNITIES
Nottinghamshire County Council,07-05563,SEC CIVIL ENGINEERING LTD,Professional Services,Professional Engineering Services,150,0,150,18-Oct-11,COMMUNITIES
Nottinghamshire County Council,07-05224,JOHN A STEPHENS LTD,Hard Facilities Management ,Building and Construction Supplies,725.75,0,725.75,12-Oct-11,COMMUNITIES
Nottinghamshire County Council,07-07796,GROUNDWORK CRESSWELL GROUP,External Services (Highways & Culture),Highways and Works,"30,800.00","6,160.00","36,960.00",25-Oct-11,COMMUNITIES
Nottinghamshire County Council,07-02237,LAXTON AND MOORHOUSE PARISH COUNCIL,TBC,TBC,"1,690.00",0,"1,690.00",11-Oct-11,COMMUNITIES
Nottinghamshire County Council,07-00129,THE SLATING & TILING CO (MIDLANDS) LTD,Hard Facilities Management ,Roofing Services,"6,995.00",0,"6,995.00",04-Oct-11,COMMUNITIES
Nottinghamshire County Council,07-00871,ULYETT LANDSCAPES LTD,Hard Facilities Management ,Facilities Maintenance and Repair,"1,260.00",0,"1,260.00",04-Oct-11,COMMUNITIES
Nottinghamshire County Council,07-07796,GROUNDWORK CRESSWELL GROUP,External Services (Highways & Culture),Highways and Works,"27,500.00","5,500.00","33,000.00",25-Oct-11,COMMUNITIES
Nottinghamshire County Council,07-07796,GROUNDWORK CRESSWELL GROUP,External Services (Highways & Culture),Highways and Works,529,105.8,634.8,25-Oct-11,COMMUNITIES
Nottinghamshire County Council,07-07796,GROUNDWORK CRESSWELL GROUP,External Services (Highways & Culture),Highways and Works,"16,500.00","3,300.00","19,800.00",25-Oct-11,COMMUNITIES
Nottinghamshire County Council,07-06355,GEORGE DYER PROPERTY MAINTENANCE SERV,Hard Facilities Management ,Building Construction Services,"5,000.00",0,"5,000.00",18-Oct-11,COMMUNITIES
Nottinghamshire County Council,07-06355,GEORGE DYER PROPERTY MAINTENANCE SERV,Hard Facilities Management ,Building Construction Services,"2,200.00",0,"2,200.00",18-Oct-11,COMMUNITIES
Nottinghamshire County Council,07-01777,CENTRELINE ARCHITECTURAL SCULPTURE,External Services (Highways & Culture),Arts and Crafts,"3,330.00",0,"3,330.00",10-Oct-11,COMMUNITIES
Nottinghamshire County Council,07-05236,S P G CONSTRUCTION LTD,Hard Facilities Management ,Building Construction Services,"2,082.00",0,"2,082.00",12-Oct-11,COMMUNITIES
Nottinghamshire County Council,07-05236,S P G CONSTRUCTION LTD,Hard Facilities Management ,Building Construction Services,140,0,140,12-Oct-11,COMMUNITIES
Nottinghamshire County Council,07-05236,S P G CONSTRUCTION LTD,Hard Facilities Management ,Building Construction Services,150,0,150,12-Oct-11,COMMUNITIES
Nottinghamshire County Council,07-02236,AGN FENCING LIMITED,TBC,TBC,950,190,"1,140.00",11-Oct-11,COMMUNITIES
Nottinghamshire County Council,07-07796,GROUNDWORK CRESSWELL GROUP,External Services (Highways & Culture),Highways and Works,"55,000.00","11,000.00","66,000.00",25-Oct-11,COMMUNITIES
Nottinghamshire County Council,07-01357,SCIENTIFIC ANALYSIS LABORATORIES LTD,TBC,TBC,539,0,539,06-Oct-11,COMMUNITIES
Nottinghamshire County Council,07-01357,SCIENTIFIC ANALYSIS LABORATORIES LTD,TBC,TBC,198,0,198,06-Oct-11,COMMUNITIES
Nottinghamshire County Council,07-01357,SCIENTIFIC ANALYSIS LABORATORIES LTD,TBC,TBC,11,0,11,06-Oct-11,COMMUNITIES
Nottinghamshire County Council,07-00976,PULSE 24,Hard Facilities Management ,Building and Construction Supplies,"13,636.00","2,727.20","16,363.20",04-Oct-11,RESOURCES
Nottinghamshire County Council,07-06513,EUREKA,TBC,TBC,456.28,91.26,547.54,27-Oct-11,CHILDREN & YOUNG PEOPLE
Nottinghamshire County Council,07-06447,KONICA MINOLTA,ICT,"Printing and Publishing, Equipment and Supplies","1,162.97",232.59,"1,395.56",20-Oct-11,CHILDREN & YOUNG PEOPLE
Nottinghamshire County Council,07-00859,DAWSONS MUSIC LTD (EDUCATION),TBC,TBC,737.5,147.5,885,03-Oct-11,CHILDREN & YOUNG PEOPLE
Nottinghamshire County Council,07-06271,ELIZABETH MICHAEL,TBC,TBC,521.11,104.22,625.33,17-Oct-11,CHILDREN & YOUNG PEOPLE
Nottinghamshire County Council,07-07453,PROTOCOL EDUCATION LTD,TBC,TBC,525,105,630,21-Oct-11,CHILDREN & YOUNG PEOPLE
Nottinghamshire County Council,07-07444,CITY CLEANING SERVICES,TBC,TBC,500,0,500,24-Oct-11,CHILDREN & YOUNG PEOPLE
Nottinghamshire County Council,07-02091,BRIDGES TRANSPORT SERVICES,Transport & Travel,Bus,833.53,166.71,"1,000.24",10-Oct-11,CHILDREN & YOUNG PEOPLE
Nottinghamshire County Council,07-02109,SPRAYS TRANSPORT LTD,Transport & Travel,Taxi,"2,055.04",411.01,"2,466.05",10-Oct-11,CHILDREN & YOUNG PEOPLE
Nottinghamshire County Council,07-02114,SPRAYS TRANSPORT LTD,Transport & Travel,Taxi,"2,720.99",544.2,"3,265.19",10-Oct-11,CHILDREN & YOUNG PEOPLE
Nottinghamshire County Council,07-05912,HATHERLEY COMMERCIAL SERVICES,Soft Facilities Management,Prepared and Preserved Foods,421.21,84.24,505.45,17-Oct-11,CHILDREN & YOUNG PEOPLE
Nottinghamshire County Council,07-08201,ARROW SPECIALISED TRANSPORT LTD,Transport & Travel,Bus,665,133,798,27-Oct-11,CHILDREN & YOUNG PEOPLE
Nottinghamshire County Council,07-07780,HATHERLEY COMMERCIAL SERVICES,Soft Facilities Management,Prepared and Preserved Foods,456.59,91.32,547.91,26-Oct-11,CHILDREN & YOUNG PEOPLE
Nottinghamshire County Council,07-07257,QUANTAQUA LTD,Soft Facilities Management,Cleaning Equipment and Janitorial Supplies,591.2,118.24,709.44,26-Oct-11,CHILDREN & YOUNG PEOPLE
Nottinghamshire County Council,07-05830,MARRIOTTS TRAVEL,Transport & Travel,Travel Agencies and Booking,"1,027.44",205.49,"1,232.93",13-Oct-11,CHILDREN & YOUNG PEOPLE
Nottinghamshire County Council,07-07080,FIRST 4 CARE LTD,Care,Domiciliary Care,741.71,148.34,890.05,20-Oct-11,CHILDREN & YOUNG PEOPLE
Nottinghamshire County Council,07-08283,KEN BURROWS LTD,Hard Facilities Management ,Electrical Systems and Lighting,102.01,20.4,122.41,28-Oct-11,CHILDREN & YOUNG PEOPLE
Nottinghamshire County Council,07-08283,KEN BURROWS LTD,Hard Facilities Management ,Electrical Systems and Lighting,102.01,20.4,122.41,28-Oct-11,CHILDREN & YOUNG PEOPLE
Nottinghamshire County Council,07-01198,SHAW BROS LTD,Hard Facilities Management ,Plumbing Services,662,132.4,794.4,06-Oct-11,CHILDREN & YOUNG PEOPLE
Nottinghamshire County Council,07-08283,KEN BURROWS LTD,Hard Facilities Management ,Electrical Systems and Lighting,102.01,20.4,122.41,28-Oct-11,CHILDREN & YOUNG PEOPLE
Nottinghamshire County Council,07-02054,ARROW SPECIALISED TRANSPORT LTD,Transport & Travel,Bus,504,100.8,604.8,10-Oct-11,CHILDREN & YOUNG PEOPLE
Nottinghamshire County Council,07-05679,QUANTAQUA LTD,Soft Facilities Management,Cleaning Equipment and Janitorial Supplies,425.05,85.01,510.06,13-Oct-11,CHILDREN & YOUNG PEOPLE
Nottinghamshire County Council,07-01196,SHAW BROS LTD,Hard Facilities Management ,Plumbing Services,-662,-132.4,-794.4,06-Oct-11,CHILDREN & YOUNG PEOPLE
Nottinghamshire County Council,07-07082,FIRST 4 CARE LTD,Care,Domiciliary Care,"1,240.00",248,"1,488.00",20-Oct-11,CHILDREN & YOUNG PEOPLE
Nottinghamshire County Council,07-02089,BRIDGES TRANSPORT SERVICES,Transport & Travel,Bus,459,91.8,550.8,10-Oct-11,CHILDREN & YOUNG PEOPLE
Nottinghamshire County Council,07-02074,ARROW SPECIALISED TRANSPORT LTD,Transport & Travel,Bus,"2,234.40",446.88,"2,681.28",10-Oct-11,CHILDREN & YOUNG PEOPLE
Nottinghamshire County Council,07-08283,KEN BURROWS LTD,Hard Facilities Management ,Electrical Systems and Lighting,102.01,20.4,122.41,28-Oct-11,CHILDREN & YOUNG PEOPLE
Nottinghamshire County Council,07-02108,SPRAYS TRANSPORT LTD,Transport & Travel,Taxi,665.06,133.01,798.07,10-Oct-11,CHILDREN & YOUNG PEOPLE
Nottinghamshire County Council,07-00936,HATHERLEY COMMERCIAL SERVICES,Soft Facilities Management,Prepared and Preserved Foods,529.66,105.93,635.59,04-Oct-11,CHILDREN & YOUNG PEOPLE
Nottinghamshire County Council,07-02079,ARROW SPECIALISED TRANSPORT LTD,Transport & Travel,Bus,824.6,164.92,989.52,10-Oct-11,CHILDREN & YOUNG PEOPLE
Nottinghamshire County Council,07-08283,KEN BURROWS LTD,Hard Facilities Management ,Electrical Systems and Lighting,102.01,20.4,122.41,28-Oct-11,CHILDREN & YOUNG PEOPLE
Nottinghamshire County Council,07-02079,ARROW SPECIALISED TRANSPORT LTD,Transport & Travel,Bus,412.3,82.46,494.76,10-Oct-11,CHILDREN & YOUNG PEOPLE
Nottinghamshire County Council,07-05435,ACE OF MANSFIELD LTD,Transport & Travel,Taxi,950,190,"1,140.00",12-Oct-11,CHILDREN & YOUNG PEOPLE
Nottinghamshire County Council,07-01540,AAA TAXIS,Transport & Travel,Taxi,413.91,0,413.91,06-Oct-11,CHILDREN & YOUNG PEOPLE
Nottinghamshire County Council,07-02022,TAXICOVER (UK) LTD T/A CHRIS'S TAXIS,Transport & Travel,Taxi,"2,242.00",448.4,"2,690.40",10-Oct-11,CHILDREN & YOUNG PEOPLE
Nottinghamshire County Council,07-08257,COOL MILK AT SCHOOL,Soft Facilities Management,Dairy Products & Eggs,"5,918.76",0,"5,918.76",31-Oct-11,CHILDREN & YOUNG PEOPLE
Nottinghamshire County Council,07-02212,ARROW SPECIALISED TRANSPORT LTD,Transport & Travel,Bus,501.2,100.24,601.44,11-Oct-11,CHILDREN & YOUNG PEOPLE
Nottinghamshire County Council,07-08322,D G PRIVATE HIRE LTD,Transport & Travel,Taxi,318.75,63.75,382.5,28-Oct-11,CHILDREN & YOUNG PEOPLE
Nottinghamshire County Council,07-02095,SPRAYS TRANSPORT LTD,Transport & Travel,Taxi,"1,670.40",334.08,"2,004.48",10-Oct-11,CHILDREN & YOUNG PEOPLE
Nottinghamshire County Council,07-05468,TRAVELWISE COACHES LTD,Transport & Travel,Bus,"2,052.00",0,"2,052.00",12-Oct-11,CHILDREN & YOUNG PEOPLE
Nottinghamshire County Council,07-05470,TRAVELWISE COACHES LTD,Transport & Travel,Bus,"2,169.90",0,"2,169.90",12-Oct-11,CHILDREN & YOUNG PEOPLE
Nottinghamshire County Council,07-05264,SEVERN TRENT SELECT LTD,Hard Facilities Management ,Utilities,"3,412.79",0,"3,412.79",18-Oct-11,CHILDREN & YOUNG PEOPLE
Nottinghamshire County Council,07-05264,SEVERN TRENT SELECT LTD,Hard Facilities Management ,Utilities,"1,931.99",0,"1,931.99",18-Oct-11,CHILDREN & YOUNG PEOPLE
Nottinghamshire County Council,07-05928,SEVERN TRENT SELECT LTD,Hard Facilities Management ,Utilities,"4,391.55",0,"4,391.55",18-Oct-11,CHILDREN & YOUNG PEOPLE
Nottinghamshire County Council,07-05928,SEVERN TRENT SELECT LTD,Hard Facilities Management ,Utilities,"2,543.33",0,"2,543.33",18-Oct-11,CHILDREN & YOUNG PEOPLE
Nottinghamshire County Council,07-06238,SEVERN TRENT SELECT LTD,Hard Facilities Management ,Utilities,851.33,0,851.33,20-Oct-11,CHILDREN & YOUNG PEOPLE
Nottinghamshire County Council,07-06238,SEVERN TRENT SELECT LTD,Hard Facilities Management ,Utilities,515.28,0,515.28,20-Oct-11,CHILDREN & YOUNG PEOPLE
Nottinghamshire County Council,07-05425,ARNOLD SERVICE CENTRE,Transport & Travel,Fleet Maintenance Services,663,132.6,795.6,12-Oct-11,CHILDREN & YOUNG PEOPLE
Nottinghamshire County Council,07-01876,SEVERN TRENT SELECT LTD,Hard Facilities Management ,Utilities,"1,618.48",0,"1,618.48",10-Oct-11,CHILDREN & YOUNG PEOPLE
Nottinghamshire County Council,07-01876,SEVERN TRENT SELECT LTD,Hard Facilities Management ,Utilities,981.13,0,981.13,10-Oct-11,CHILDREN & YOUNG PEOPLE
Nottinghamshire County Council,07-02086,BRIDGES TRANSPORT SERVICES,Transport & Travel,Bus,"1,340.82",268.16,"1,608.98",10-Oct-11,CHILDREN & YOUNG PEOPLE
Nottinghamshire County Council,07-05838,EREWASH COMMUNITY TRANSPORT,Care,Community and Social Services,"2,127.24",0,"2,127.24",13-Oct-11,CHILDREN & YOUNG PEOPLE
Nottinghamshire County Council,07-08343,B N GIBSON MOTORS,Transport & Travel,Taxi,"3,797.91",759.58,"4,557.49",28-Oct-11,CHILDREN & YOUNG PEOPLE
Nottinghamshire County Council,07-05306,SEVERN TRENT SELECT LTD,Hard Facilities Management ,Utilities,801.95,0,801.95,18-Oct-11,CHILDREN & YOUNG PEOPLE
Nottinghamshire County Council,07-05306,SEVERN TRENT SELECT LTD,Hard Facilities Management ,Utilities,485.85,0,485.85,18-Oct-11,CHILDREN & YOUNG PEOPLE
Nottinghamshire County Council,07-05830,MARRIOTTS TRAVEL,Transport & Travel,Travel Agencies and Booking,"1,027.44",205.49,"1,232.93",13-Oct-11,CHILDREN & YOUNG PEOPLE
Nottinghamshire County Council,07-01506,FOZCABS,Transport & Travel,Taxi,"1,140.00",0,"1,140.00",06-Oct-11,CHILDREN & YOUNG PEOPLE
Nottinghamshire County Council,07-05844,P AND P TAXIS,Transport & Travel,Taxi,250.8,50.16,300.96,13-Oct-11,CHILDREN & YOUNG PEOPLE
Nottinghamshire County Council,07-08310,6 FIVE 2'S,Transport & Travel,Taxi,513,102.6,615.6,28-Oct-11,CHILDREN & YOUNG PEOPLE
Nottinghamshire County Council,07-08395,RIO CABS,Transport & Travel,Taxi,"1,432.60",0,"1,432.60",28-Oct-11,CHILDREN & YOUNG PEOPLE
Nottinghamshire County Council,07-07212,CW TAXIS,Transport & Travel,Taxi,740.05,0,740.05,20-Oct-11,CHILDREN & YOUNG PEOPLE
Nottinghamshire County Council,07-08348,B N GIBSON MOTORS,Transport & Travel,Taxi,"3,355.78",671.16,"4,026.94",28-Oct-11,CHILDREN & YOUNG PEOPLE
Nottinghamshire County Council,07-05440,FOZCABS,Transport & Travel,Taxi,"1,145.70",0,"1,145.70",12-Oct-11,CHILDREN & YOUNG PEOPLE
Nottinghamshire County Council,07-05441,FOZCABS,Transport & Travel,Taxi,24.18,0,24.18,12-Oct-11,CHILDREN & YOUNG PEOPLE
Nottinghamshire County Council,07-05441,FOZCABS,Transport & Travel,Taxi,241.72,0,241.72,12-Oct-11,CHILDREN & YOUNG PEOPLE
Nottinghamshire County Council,07-08206,SPRAYS TRANSPORT LTD,Transport & Travel,Taxi,"1,371.70",274.34,"1,646.04",27-Oct-11,CHILDREN & YOUNG PEOPLE
Nottinghamshire County Council,07-05452,SPRAYS TRANSPORT LTD,Transport & Travel,Taxi,"1,185.50",237.1,"1,422.60",12-Oct-11,CHILDREN & YOUNG PEOPLE
Nottinghamshire County Council,07-05265,SEVERN TRENT SELECT LTD,Hard Facilities Management ,Utilities,"2,252.96",0,"2,252.96",18-Oct-11,CHILDREN & YOUNG PEOPLE
Nottinghamshire County Council,07-05265,SEVERN TRENT SELECT LTD,Hard Facilities Management ,Utilities,2.96,0,2.96,18-Oct-11,CHILDREN & YOUNG PEOPLE
Nottinghamshire County Council,07-05452,SPRAYS TRANSPORT LTD,Transport & Travel,Taxi,"1,185.50",237.1,"1,422.60",12-Oct-11,CHILDREN & YOUNG PEOPLE
Nottinghamshire County Council,07-05307,SEVERN TRENT SELECT LTD,Hard Facilities Management ,Utilities,"2,290.77",0,"2,290.77",18-Oct-11,CHILDREN & YOUNG PEOPLE
Nottinghamshire County Council,07-05307,SEVERN TRENT SELECT LTD,Hard Facilities Management ,Utilities,4.06,0,4.06,18-Oct-11,CHILDREN & YOUNG PEOPLE
Nottinghamshire County Council,07-02088,BRIDGES TRANSPORT SERVICES,Transport & Travel,Bus,"1,254.19",250.84,"1,505.03",10-Oct-11,CHILDREN & YOUNG PEOPLE
Nottinghamshire County Council,07-07075,FIRST 4 CARE LTD,Care,Domiciliary Care,"2,331.68",466.34,"2,798.02",20-Oct-11,CHILDREN & YOUNG PEOPLE
Nottinghamshire County Council,07-05846,TOWN TAXIS LTD,Transport & Travel,Taxi,760,152,912,13-Oct-11,CHILDREN & YOUNG PEOPLE
Nottinghamshire County Council,07-07073,FIRST 4 CARE LTD,Care,Domiciliary Care,"2,337.57",467.51,"2,805.08",20-Oct-11,CHILDREN & YOUNG PEOPLE
Nottinghamshire County Council,07-05998,M A R TAXIS LTD T/A 6 FIVE 3'S,Transport & Travel,Taxi,598.5,0,598.5,14-Oct-11,CHILDREN & YOUNG PEOPLE
Nottinghamshire County Council,07-08350,B N GIBSON MOTORS,Transport & Travel,Taxi,"1,079.68",215.94,"1,295.62",28-Oct-11,CHILDREN & YOUNG PEOPLE
Nottinghamshire County Council,07-05830,MARRIOTTS TRAVEL,Transport & Travel,Travel Agencies and Booking,"1,027.76",205.55,"1,233.31",13-Oct-11,CHILDREN & YOUNG PEOPLE
Nottinghamshire County Council,07-08311,6 FIVE 2'S,Transport & Travel,Taxi,"1,672.00",334.4,"2,006.40",28-Oct-11,CHILDREN & YOUNG PEOPLE
Nottinghamshire County Council,07-01541,AAA TAXIS,Transport & Travel,Taxi,"1,665.00",0,"1,665.00",06-Oct-11,CHILDREN & YOUNG PEOPLE
Nottinghamshire County Council,07-02010,TAXICOVER (UK) LTD T/A CHRIS'S TAXIS,Transport & Travel,Taxi,"1,059.48",211.9,"1,271.38",10-Oct-11,CHILDREN & YOUNG PEOPLE
Nottinghamshire County Council,07-02019,TAXICOVER (UK) LTD T/A CHRIS'S TAXIS,Transport & Travel,Taxi,"2,356.00",471.2,"2,827.20",10-Oct-11,CHILDREN & YOUNG PEOPLE
Nottinghamshire County Council,07-02089,BRIDGES TRANSPORT SERVICES,Transport & Travel,Bus,229.5,45.9,275.4,10-Oct-11,CHILDREN & YOUNG PEOPLE
Nottinghamshire County Council,07-05434,A 2 B CARS (NOTTINGHAM) LTD,Transport & Travel,Taxi,476.4,95.28,571.68,12-Oct-11,CHILDREN & YOUNG PEOPLE
Nottinghamshire County Council,07-02037,ALPHA CARS,Transport & Travel,Taxi,577.98,0,577.98,10-Oct-11,CHILDREN & YOUNG PEOPLE
Nottinghamshire County Council,07-01540,AAA TAXIS,Transport & Travel,Taxi,413.91,0,413.91,06-Oct-11,CHILDREN & YOUNG PEOPLE
Nottinghamshire County Council,07-02108,SPRAYS TRANSPORT LTD,Transport & Travel,Taxi,"1,321.39",264.28,"1,585.67",10-Oct-11,CHILDREN & YOUNG PEOPLE
Nottinghamshire County Council,07-08303,6 FIVE 2'S,Transport & Travel,Taxi,711.36,142.27,853.63,28-Oct-11,CHILDREN & YOUNG PEOPLE
Nottinghamshire County Council,07-02046,ARROW SPECIALISED TRANSPORT LTD,Transport & Travel,Bus,"1,513.00",0,"1,513.00",10-Oct-11,CHILDREN & YOUNG PEOPLE
Nottinghamshire County Council,07-01505,FOZCABS,Transport & Travel,Taxi,"1,326.65",0,"1,326.65",06-Oct-11,CHILDREN & YOUNG PEOPLE
Nottinghamshire County Council,07-01508,PREMIER TAXIS,Transport & Travel,Taxi,0.01,0,0.01,06-Oct-11,CHILDREN & YOUNG PEOPLE
Nottinghamshire County Council,07-01536,AAA TAXIS,Transport & Travel,Taxi,"1,970.30",0,"1,970.30",06-Oct-11,CHILDREN & YOUNG PEOPLE
Nottinghamshire County Council,07-01537,AAA TAXIS,Transport & Travel,Taxi,"1,519.20",0,"1,519.20",06-Oct-11,CHILDREN & YOUNG PEOPLE
Nottinghamshire County Council,07-01542,AAA TAXIS,Transport & Travel,Taxi,"1,970.00",0,"1,970.00",06-Oct-11,CHILDREN & YOUNG PEOPLE
Nottinghamshire County Council,07-02033,MARTINS TRAVEL,Transport & Travel,Travel Agencies and Booking,"2,386.97",0,"2,386.97",10-Oct-11,CHILDREN & YOUNG PEOPLE
Nottinghamshire County Council,07-02047,ARROW SPECIALISED TRANSPORT LTD,Transport & Travel,Bus,"1,273.00",254.6,"1,527.60",10-Oct-11,CHILDREN & YOUNG PEOPLE
Nottinghamshire County Council,07-02075,ARROW SPECIALISED TRANSPORT LTD,Transport & Travel,Bus,"1,054.50",210.9,"1,265.40",10-Oct-11,CHILDREN & YOUNG PEOPLE
Nottinghamshire County Council,07-02076,ARROW SPECIALISED TRANSPORT LTD,Transport & Travel,Bus,"2,354.29",470.86,"2,825.15",10-Oct-11,CHILDREN & YOUNG PEOPLE
Nottinghamshire County Council,07-02077,ARROW SPECIALISED TRANSPORT LTD,Transport & Travel,Bus,764.28,152.86,917.14,10-Oct-11,CHILDREN & YOUNG PEOPLE
Nottinghamshire County Council,07-02078,ARROW SPECIALISED TRANSPORT LTD,Transport & Travel,Bus,935.75,187.15,"1,122.90",10-Oct-11,CHILDREN & YOUNG PEOPLE
Nottinghamshire County Council,07-02096,SPRAYS TRANSPORT LTD,Transport & Travel,Taxi,"1,501.00",300.2,"1,801.20",10-Oct-11,CHILDREN & YOUNG PEOPLE
Nottinghamshire County Council,07-02100,SPRAYS TRANSPORT LTD,Transport & Travel,Taxi,"1,615.00",323,"1,938.00",10-Oct-11,CHILDREN & YOUNG PEOPLE
Nottinghamshire County Council,07-02107,SPRAYS TRANSPORT LTD,Transport & Travel,Taxi,"1,938.00",387.6,"2,325.60",10-Oct-11,CHILDREN & YOUNG PEOPLE
Nottinghamshire County Council,07-02113,SPRAYS TRANSPORT LTD,Transport & Travel,Taxi,"2,482.35",496.47,"2,978.82",10-Oct-11,CHILDREN & YOUNG PEOPLE
Nottinghamshire County Council,07-02116,TRAVELWISE COACHES LTD,Transport & Travel,Bus,"2,170.37",0,"2,170.37",10-Oct-11,CHILDREN & YOUNG PEOPLE
Nottinghamshire County Council,07-02212,ARROW SPECIALISED TRANSPORT LTD,Transport & Travel,Bus,501.2,100.24,601.44,11-Oct-11,CHILDREN & YOUNG PEOPLE
Nottinghamshire County Council,07-05227,UNWIN SAFETY SYSTEMS,Care,Medical Equipment and  Supplies,584.06,0,584.06,12-Oct-11,CHILDREN & YOUNG PEOPLE
Nottinghamshire County Council,07-05227,UNWIN SAFETY SYSTEMS,Care,Medical Equipment and  Supplies,537.34,0,537.34,12-Oct-11,CHILDREN & YOUNG PEOPLE
Nottinghamshire County Council,07-05227,UNWIN SAFETY SYSTEMS,Care,Medical Equipment and  Supplies,537.34,0,537.34,12-Oct-11,CHILDREN & YOUNG PEOPLE
Nottinghamshire County Council,07-05227,UNWIN SAFETY SYSTEMS,Care,Medical Equipment and  Supplies,31,0,31,12-Oct-11,CHILDREN & YOUNG PEOPLE
Nottinghamshire County Council,07-05431,MARTINS TRAVEL,Transport & Travel,Travel Agencies and Booking,"2,243.71",448.74,"2,692.45",12-Oct-11,CHILDREN & YOUNG PEOPLE
Nottinghamshire County Council,07-05436,ACE OF MANSFIELD LTD,Transport & Travel,Taxi,"1,140.00",228,"1,368.00",12-Oct-11,CHILDREN & YOUNG PEOPLE
Nottinghamshire County Council,07-05444,HAWKINS TAXIS AND TRANSPORT,Transport & Travel,Taxi,"1,226.88",0,"1,226.88",12-Oct-11,CHILDREN & YOUNG PEOPLE
Nottinghamshire County Council,07-05461,P RHODES TRANSPORT LTD,Transport & Travel,Bus,"1,679.03",335.81,"2,014.84",12-Oct-11,CHILDREN & YOUNG PEOPLE
Nottinghamshire County Council,07-06002,HEADLAND TAXI SERVICE,Transport & Travel,Taxi,"1,525.20",0,"1,525.20",14-Oct-11,CHILDREN & YOUNG PEOPLE
Nottinghamshire County Council,07-06006,1-2-3 TAXIS,Transport & Travel,Taxi,649.23,129.85,779.08,14-Oct-11,CHILDREN & YOUNG PEOPLE
Nottinghamshire County Council,07-07081,FIRST 4 CARE LTD,Care,Domiciliary Care,"2,206.66",441.33,"2,647.99",20-Oct-11,CHILDREN & YOUNG PEOPLE
Nottinghamshire County Council,07-07084,FIRST 4 CARE LTD,Care,Domiciliary Care,"1,185.03",237.01,"1,422.04",20-Oct-11,CHILDREN & YOUNG PEOPLE
Nottinghamshire County Council,07-07085,FIRST 4 CARE LTD,Care,Domiciliary Care,"2,920.00",584,"3,504.00",20-Oct-11,CHILDREN & YOUNG PEOPLE
Nottinghamshire County Council,07-07211,CW TAXIS,Transport & Travel,Taxi,339.91,0,339.91,20-Oct-11,CHILDREN & YOUNG PEOPLE
Nottinghamshire County Council,07-08203,FOZCABS,Transport & Travel,Taxi,380,0,380,27-Oct-11,CHILDREN & YOUNG PEOPLE
Nottinghamshire County Council,07-08204,HORIZON TRAVEL,Transport & Travel,Travel Agencies and Booking,"1,848.31",0,"1,848.31",27-Oct-11,CHILDREN & YOUNG PEOPLE
Nottinghamshire County Council,07-08305,6 FIVE 2'S,Transport & Travel,Taxi,754.9,150.98,905.88,28-Oct-11,CHILDREN & YOUNG PEOPLE
Nottinghamshire County Council,07-08316,CABLINE UK LTD,Transport & Travel,Taxi,855,171,"1,026.00",28-Oct-11,CHILDREN & YOUNG PEOPLE
Nottinghamshire County Council,07-08328,D G PRIVATE HIRE LTD,Transport & Travel,Taxi,"2,403.69",480.74,"2,884.43",28-Oct-11,CHILDREN & YOUNG PEOPLE
Nottinghamshire County Council,07-08329,D G PRIVATE HIRE LTD,Transport & Travel,Taxi,"1,909.50",381.9,"2,291.40",28-Oct-11,CHILDREN & YOUNG PEOPLE
Nottinghamshire County Council,07-08330,D G PRIVATE HIRE LTD,Transport & Travel,Taxi,"2,787.87",557.57,"3,345.44",28-Oct-11,CHILDREN & YOUNG PEOPLE
Nottinghamshire County Council,07-08355,B N GIBSON MOTORS,Transport & Travel,Taxi,"3,168.80",633.76,"3,802.56",28-Oct-11,CHILDREN & YOUNG PEOPLE
Nottinghamshire County Council,07-08364,B N GIBSON MOTORS,Transport & Travel,Taxi,"3,103.08",620.62,"3,723.70",28-Oct-11,CHILDREN & YOUNG PEOPLE
Nottinghamshire County Council,07-08365,B N GIBSON MOTORS,Transport & Travel,Taxi,"1,912.16",382.43,"2,294.59",28-Oct-11,CHILDREN & YOUNG PEOPLE
Nottinghamshire County Council,07-08324,D G PRIVATE HIRE LTD,Transport & Travel,Taxi,576,0,576,28-Oct-11,CHILDREN & YOUNG PEOPLE
Nottinghamshire County Council,07-08375,D G PRIVATE HIRE LTD,Transport & Travel,Taxi,"1,386.00",277.2,"1,663.20",28-Oct-11,CHILDREN & YOUNG PEOPLE
Nottinghamshire County Council,07-02056,ARROW SPECIALISED TRANSPORT LTD,Transport & Travel,Bus,"2,080.80",0,"2,080.80",10-Oct-11,CHILDREN & YOUNG PEOPLE
Nottinghamshire County Council,07-02057,ARROW SPECIALISED TRANSPORT LTD,Transport & Travel,Bus,"2,407.14",481.43,"2,888.57",10-Oct-11,CHILDREN & YOUNG PEOPLE
Nottinghamshire County Council,07-02058,ARROW SPECIALISED TRANSPORT LTD,Transport & Travel,Bus,"2,387.88",477.58,"2,865.46",10-Oct-11,CHILDREN & YOUNG PEOPLE
Nottinghamshire County Council,07-02059,ARROW SPECIALISED TRANSPORT LTD,Transport & Travel,Bus,"2,635.24",527.05,"3,162.29",10-Oct-11,CHILDREN & YOUNG PEOPLE
Nottinghamshire County Council,07-02060,ARROW SPECIALISED TRANSPORT LTD,Transport & Travel,Bus,"1,712.16",342.43,"2,054.59",10-Oct-11,CHILDREN & YOUNG PEOPLE
Nottinghamshire County Council,07-02061,ARROW SPECIALISED TRANSPORT LTD,Transport & Travel,Bus,"2,414.52",0,"2,414.52",10-Oct-11,CHILDREN & YOUNG PEOPLE
Nottinghamshire County Council,07-08352,B N GIBSON MOTORS,Transport & Travel,Taxi,"3,060.00",612,"3,672.00",28-Oct-11,CHILDREN & YOUNG PEOPLE
Nottinghamshire County Council,07-08374,GOLDSTAR TRAVEL (NOTTINGHAM) LTD,Transport & Travel,Travel Agencies and Booking,"1,330.00",0,"1,330.00",28-Oct-11,CHILDREN & YOUNG PEOPLE
Nottinghamshire County Council,07-02080,ARROW SPECIALISED TRANSPORT LTD,Transport & Travel,Bus,761.9,152.38,914.28,10-Oct-11,CHILDREN & YOUNG PEOPLE
Nottinghamshire County Council,07-08376,D G PRIVATE HIRE LTD,Transport & Travel,Taxi,618.8,123.76,742.56,28-Oct-11,CHILDREN & YOUNG PEOPLE
Nottinghamshire County Council,07-01503,SOUTHSIDE CARS,Transport & Travel,Taxi,"1,341.60",0,"1,341.60",06-Oct-11,CHILDREN & YOUNG PEOPLE
Nottinghamshire County Council,07-02041,ARROW SPECIALISED TRANSPORT LTD,Transport & Travel,Bus,"1,026.00",205.2,"1,231.20",10-Oct-11,CHILDREN & YOUNG PEOPLE
Nottinghamshire County Council,07-02055,ARROW SPECIALISED TRANSPORT LTD,Transport & Travel,Bus,"3,600.00",720,"4,320.00",10-Oct-11,CHILDREN & YOUNG PEOPLE
Nottinghamshire County Council,07-02068,ARROW SPECIALISED TRANSPORT LTD,Transport & Travel,Bus,"2,262.33",452.47,"2,714.80",10-Oct-11,CHILDREN & YOUNG PEOPLE
Nottinghamshire County Council,07-02069,ARROW SPECIALISED TRANSPORT LTD,Transport & Travel,Bus,"2,563.86",512.77,"3,076.63",10-Oct-11,CHILDREN & YOUNG PEOPLE
Nottinghamshire County Council,07-02070,ARROW SPECIALISED TRANSPORT LTD,Transport & Travel,Bus,"1,726.91",345.38,"2,072.29",10-Oct-11,CHILDREN & YOUNG PEOPLE
Nottinghamshire County Council,07-02071,ARROW SPECIALISED TRANSPORT LTD,Transport & Travel,Bus,"2,356.57",471.31,"2,827.88",10-Oct-11,CHILDREN & YOUNG PEOPLE
Nottinghamshire County Council,07-02104,SPRAYS TRANSPORT LTD,Transport & Travel,Taxi,"1,661.77",332.35,"1,994.12",10-Oct-11,CHILDREN & YOUNG PEOPLE
Nottinghamshire County Council,07-02106,SPRAYS TRANSPORT LTD,Transport & Travel,Taxi,"1,707.33",341.47,"2,048.80",10-Oct-11,CHILDREN & YOUNG PEOPLE
Nottinghamshire County Council,07-05822,CENTRAL CARS (NOTTINGHAM) LTD,Transport & Travel,Taxi,"1,530.00",306,"1,836.00",13-Oct-11,CHILDREN & YOUNG PEOPLE
Nottinghamshire County Council,07-06004,RON GASH AND SONS LTD,Transport & Travel,Bus,"2,000.12",400.02,"2,400.14",14-Oct-11,CHILDREN & YOUNG PEOPLE
Nottinghamshire County Council,07-06005,RON GASH AND SONS LTD,Transport & Travel,Bus,"2,272.58",454.52,"2,727.10",14-Oct-11,CHILDREN & YOUNG PEOPLE
Nottinghamshire County Council,07-08325,D G PRIVATE HIRE LTD,Transport & Travel,Taxi,"2,170.80",434.16,"2,604.96",28-Oct-11,CHILDREN & YOUNG PEOPLE
Nottinghamshire County Council,07-08326,D G PRIVATE HIRE LTD,Transport & Travel,Taxi,"1,447.20",289.44,"1,736.64",28-Oct-11,CHILDREN & YOUNG PEOPLE
Nottinghamshire County Council,07-08327,D G PRIVATE HIRE LTD,Transport & Travel,Taxi,"1,085.40",217.08,"1,302.48",28-Oct-11,CHILDREN & YOUNG PEOPLE
Nottinghamshire County Council,07-02080,ARROW SPECIALISED TRANSPORT LTD,Transport & Travel,Bus,761.9,152.38,914.28,10-Oct-11,CHILDREN & YOUNG PEOPLE
Nottinghamshire County Council,07-02050,ARROW SPECIALISED TRANSPORT LTD,Transport & Travel,Bus,"2,047.06",0,"2,047.06",10-Oct-11,CHILDREN & YOUNG PEOPLE
Nottinghamshire County Council,07-02051,ARROW SPECIALISED TRANSPORT LTD,Transport & Travel,Bus,"2,062.26",0,"2,062.26",10-Oct-11,CHILDREN & YOUNG PEOPLE
Nottinghamshire County Council,07-02052,ARROW SPECIALISED TRANSPORT LTD,Transport & Travel,Bus,"2,024.07",404.81,"2,428.88",10-Oct-11,CHILDREN & YOUNG PEOPLE
Nottinghamshire County Council,07-02053,ARROW SPECIALISED TRANSPORT LTD,Transport & Travel,Bus,"1,995.00",399,"2,394.00",10-Oct-11,CHILDREN & YOUNG PEOPLE
Nottinghamshire County Council,07-02097,SPRAYS TRANSPORT LTD,Transport & Travel,Taxi,"1,596.00",319.2,"1,915.20",10-Oct-11,CHILDREN & YOUNG PEOPLE
Nottinghamshire County Council,07-02111,SPRAYS TRANSPORT LTD,Transport & Travel,Taxi,"1,183.42",236.68,"1,420.10",10-Oct-11,CHILDREN & YOUNG PEOPLE
Nottinghamshire County Council,07-05464,TRAVELWISE COACHES LTD,Transport & Travel,Bus,"1,983.03",0,"1,983.03",12-Oct-11,CHILDREN & YOUNG PEOPLE
Nottinghamshire County Council,07-05466,TRAVELWISE COACHES LTD,Transport & Travel,Bus,"1,943.13",0,"1,943.13",12-Oct-11,CHILDREN & YOUNG PEOPLE
Nottinghamshire County Council,07-05824,CENTRAL CARS (NOTTINGHAM) LTD,Transport & Travel,Taxi,"3,137.60",627.52,"3,765.12",13-Oct-11,CHILDREN & YOUNG PEOPLE
Nottinghamshire County Council,07-07077,FIRST 4 CARE LTD,Care,Domiciliary Care,"2,262.33",452.47,"2,714.80",20-Oct-11,CHILDREN & YOUNG PEOPLE
Nottinghamshire County Council,07-08304,6 FIVE 2'S,Transport & Travel,Taxi,878.18,175.64,"1,053.82",28-Oct-11,CHILDREN & YOUNG PEOPLE
Nottinghamshire County Council,07-08344,B N GIBSON MOTORS,Transport & Travel,Taxi,"2,348.40",469.68,"2,818.08",28-Oct-11,CHILDREN & YOUNG PEOPLE
Nottinghamshire County Council,07-08345,B N GIBSON MOTORS,Transport & Travel,Taxi,"3,077.81",615.56,"3,693.37",28-Oct-11,CHILDREN & YOUNG PEOPLE
Nottinghamshire County Council,07-08346,B N GIBSON MOTORS,Transport & Travel,Taxi,"4,229.78",845.96,"5,075.74",28-Oct-11,CHILDREN & YOUNG PEOPLE
Nottinghamshire County Council,07-08367,B N GIBSON MOTORS,Transport & Travel,Taxi,50,10,60,28-Oct-11,CHILDREN & YOUNG PEOPLE
Nottinghamshire County Council,07-02011,TAXICOVER (UK) LTD T/A CHRIS'S TAXIS,Transport & Travel,Taxi,"2,698.19",0,"2,698.19",10-Oct-11,CHILDREN & YOUNG PEOPLE
Nottinghamshire County Council,07-02012,TAXICOVER (UK) LTD T/A CHRIS'S TAXIS,Transport & Travel,Taxi,"2,393.78",0,"2,393.78",10-Oct-11,CHILDREN & YOUNG PEOPLE
Nottinghamshire County Council,07-02013,TAXICOVER (UK) LTD T/A CHRIS'S TAXIS,Transport & Travel,Taxi,"3,382.00",0,"3,382.00",10-Oct-11,CHILDREN & YOUNG PEOPLE
Nottinghamshire County Council,07-02014,TAXICOVER (UK) LTD T/A CHRIS'S TAXIS,Transport & Travel,Taxi,"3,072.49",0,"3,072.49",10-Oct-11,CHILDREN & YOUNG PEOPLE
Nottinghamshire County Council,07-02093,HORIZON TRAVEL,Transport & Travel,Travel Agencies and Booking,"1,830.79",366.16,"2,196.95",10-Oct-11,CHILDREN & YOUNG PEOPLE
Nottinghamshire County Council,07-05845,TOWN TAXIS LTD,Transport & Travel,Taxi,"1,539.00",307.8,"1,846.80",13-Oct-11,CHILDREN & YOUNG PEOPLE
Nottinghamshire County Council,07-01539,AAA TAXIS,Transport & Travel,Taxi,"1,053.00",0,"1,053.00",06-Oct-11,CHILDREN & YOUNG PEOPLE
Nottinghamshire County Council,07-02049,ARROW SPECIALISED TRANSPORT LTD,Transport & Travel,Bus,671,134.2,805.2,10-Oct-11,CHILDREN & YOUNG PEOPLE
Nottinghamshire County Council,07-02090,BRIDGES TRANSPORT SERVICES,Transport & Travel,Bus,"1,501.20",300.24,"1,801.44",10-Oct-11,CHILDREN & YOUNG PEOPLE
Nottinghamshire County Council,07-05437,ACE OF MANSFIELD LTD,Transport & Travel,Taxi,"1,260.00",252,"1,512.00",12-Oct-11,CHILDREN & YOUNG PEOPLE
Nottinghamshire County Council,07-05725,HORIZON TRAVEL,Transport & Travel,Travel Agencies and Booking,"1,826.84",0,"1,826.84",13-Oct-11,CHILDREN & YOUNG PEOPLE
Nottinghamshire County Council,07-05823,CENTRAL CARS (NOTTINGHAM) LTD,Transport & Travel,Taxi,"1,008.00",201.6,"1,209.60",13-Oct-11,CHILDREN & YOUNG PEOPLE
Nottinghamshire County Council,07-07071,TRENT CARS,Transport & Travel,Taxi,"1,697.76",0,"1,697.76",19-Oct-11,CHILDREN & YOUNG PEOPLE
Nottinghamshire County Council,07-08205,SPRAYS TRANSPORT LTD,Transport & Travel,Taxi,"1,962.00",392.4,"2,354.40",27-Oct-11,CHILDREN & YOUNG PEOPLE
Nottinghamshire County Council,07-08318,CENTRAL CARS (NOTTINGHAM) LTD,Transport & Travel,Taxi,"1,144.00",228.8,"1,372.80",28-Oct-11,CHILDREN & YOUNG PEOPLE
Nottinghamshire County Council,07-08321,D G PRIVATE HIRE LTD,Transport & Travel,Taxi,"2,859.48",571.9,"3,431.38",28-Oct-11,CHILDREN & YOUNG PEOPLE
Nottinghamshire County Council,07-08393,DIAMOND CARS,Transport & Travel,Taxi,"1,882.08",376.42,"2,258.50",28-Oct-11,CHILDREN & YOUNG PEOPLE
Nottinghamshire County Council,07-02016,TAXICOVER (UK) LTD T/A CHRIS'S TAXIS,Transport & Travel,Taxi,"1,642.50",328.5,"1,971.00",10-Oct-11,CHILDREN & YOUNG PEOPLE
Nottinghamshire County Council,07-02020,TAXICOVER (UK) LTD T/A CHRIS'S TAXIS,Transport & Travel,Taxi,"2,584.00",0,"2,584.00",10-Oct-11,CHILDREN & YOUNG PEOPLE
Nottinghamshire County Council,07-02021,TAXICOVER (UK) LTD T/A CHRIS'S TAXIS,Transport & Travel,Taxi,"2,242.00",0,"2,242.00",10-Oct-11,CHILDREN & YOUNG PEOPLE
Nottinghamshire County Council,07-02067,ARROW SPECIALISED TRANSPORT LTD,Transport & Travel,Bus,"1,953.20",390.64,"2,343.84",10-Oct-11,CHILDREN & YOUNG PEOPLE
Nottinghamshire County Council,07-05446,J A TRAVEL LTD,Transport & Travel,Travel Agencies and Booking,"2,268.60",0,"2,268.60",12-Oct-11,CHILDREN & YOUNG PEOPLE
Nottinghamshire County Council,07-01538,AAA TAXIS,Transport & Travel,Taxi,"1,231.20",0,"1,231.20",06-Oct-11,CHILDREN & YOUNG PEOPLE
Nottinghamshire County Council,07-02015,TAXICOVER (UK) LTD T/A CHRIS'S TAXIS,Transport & Travel,Taxi,"2,321.53",0,"2,321.53",10-Oct-11,CHILDREN & YOUNG PEOPLE
Nottinghamshire County Council,07-02028,TAXICOVER (UK) LTD T/A CHRIS'S TAXIS,Transport & Travel,Taxi,"2,394.00",0,"2,394.00",10-Oct-11,CHILDREN & YOUNG PEOPLE
Nottinghamshire County Council,07-02029,TAXICOVER (UK) LTD T/A CHRIS'S TAXIS,Transport & Travel,Taxi,"1,357.32",0,"1,357.32",10-Oct-11,CHILDREN & YOUNG PEOPLE
Nottinghamshire County Council,07-02030,TAXICOVER (UK) LTD T/A CHRIS'S TAXIS,Transport & Travel,Taxi,"1,712.85",0,"1,712.85",10-Oct-11,CHILDREN & YOUNG PEOPLE
Nottinghamshire County Council,07-02031,TAXICOVER (UK) LTD T/A CHRIS'S TAXIS,Transport & Travel,Taxi,"3,239.69",0,"3,239.69",10-Oct-11,CHILDREN & YOUNG PEOPLE
Nottinghamshire County Council,07-02032,TAXICOVER (UK) LTD T/A CHRIS'S TAXIS,Transport & Travel,Taxi,"3,399.48",0,"3,399.48",10-Oct-11,CHILDREN & YOUNG PEOPLE
Nottinghamshire County Council,07-02081,ARROW SPECIALISED TRANSPORT LTD,Transport & Travel,Bus,"2,806.87",561.37,"3,368.24",10-Oct-11,CHILDREN & YOUNG PEOPLE
Nottinghamshire County Council,07-02082,ARROW SPECIALISED TRANSPORT LTD,Transport & Travel,Bus,"2,120.40",424.08,"2,544.48",10-Oct-11,CHILDREN & YOUNG PEOPLE
Nottinghamshire County Council,07-02083,ARROW SPECIALISED TRANSPORT LTD,Transport & Travel,Bus,"1,090.60",218.12,"1,308.72",10-Oct-11,CHILDREN & YOUNG PEOPLE
Nottinghamshire County Council,07-02084,ARROW SPECIALISED TRANSPORT LTD,Transport & Travel,Bus,"2,166.00",433.2,"2,599.20",10-Oct-11,CHILDREN & YOUNG PEOPLE
Nottinghamshire County Council,07-05447,J A TRAVEL LTD,Transport & Travel,Travel Agencies and Booking,"2,641.00",0,"2,641.00",12-Oct-11,CHILDREN & YOUNG PEOPLE
Nottinghamshire County Council,07-05449,MCEWENS OF MANSFIELD LTD,Transport & Travel,Bus,"2,365.12",0,"2,365.12",12-Oct-11,CHILDREN & YOUNG PEOPLE
Nottinghamshire County Council,07-05459,K AND S COACHES,Transport & Travel,Bus,"2,083.28",0,"2,083.28",12-Oct-11,CHILDREN & YOUNG PEOPLE
Nottinghamshire County Council,07-05460,P RHODES TRANSPORT LTD,Transport & Travel,Bus,"1,625.86",325.17,"1,951.03",12-Oct-11,CHILDREN & YOUNG PEOPLE
Nottinghamshire County Council,07-08306,6 FIVE 2'S,Transport & Travel,Taxi,"1,661.55",332.31,"1,993.86",28-Oct-11,CHILDREN & YOUNG PEOPLE
Nottinghamshire County Council,07-08307,6 FIVE 2'S,Transport & Travel,Taxi,855,171,"1,026.00",28-Oct-11,CHILDREN & YOUNG PEOPLE
Nottinghamshire County Council,07-08334,HARRISON FORD,Transport & Travel,Motor Vehicles,"2,460.69",0,"2,460.69",31-Oct-11,CHILDREN & YOUNG PEOPLE
Nottinghamshire County Council,07-08349,B N GIBSON MOTORS,Transport & Travel,Taxi,"2,587.42",517.48,"3,104.90",28-Oct-11,CHILDREN & YOUNG PEOPLE
Nottinghamshire County Council,07-08366,B N GIBSON MOTORS,Transport & Travel,Taxi,"2,105.69",421.14,"2,526.83",28-Oct-11,CHILDREN & YOUNG PEOPLE
Nottinghamshire County Council,07-08367,B N GIBSON MOTORS,Transport & Travel,Taxi,"2,696.64",539.33,"3,235.97",28-Oct-11,CHILDREN & YOUNG PEOPLE
Nottinghamshire County Council,07-08368,B N GIBSON MOTORS,Transport & Travel,Taxi,"2,921.63",584.33,"3,505.96",28-Oct-11,CHILDREN & YOUNG PEOPLE
Nottinghamshire County Council,07-08369,B N GIBSON MOTORS,Transport & Travel,Taxi,"1,703.53",340.71,"2,044.24",28-Oct-11,CHILDREN & YOUNG PEOPLE
Nottinghamshire County Council,07-08394,DIAMOND CARS,Transport & Travel,Taxi,"1,874.92",374.98,"2,249.90",28-Oct-11,CHILDREN & YOUNG PEOPLE
Nottinghamshire County Council,07-02038,ARROW SPECIALISED TRANSPORT LTD,Transport & Travel,Bus,"1,642.50",328.5,"1,971.00",10-Oct-11,CHILDREN & YOUNG PEOPLE
Nottinghamshire County Council,07-02042,ARROW SPECIALISED TRANSPORT LTD,Transport & Travel,Bus,"1,899.54",379.91,"2,279.45",10-Oct-11,CHILDREN & YOUNG PEOPLE
Nottinghamshire County Council,07-02043,ARROW SPECIALISED TRANSPORT LTD,Transport & Travel,Bus,"1,512.36",302.47,"1,814.83",10-Oct-11,CHILDREN & YOUNG PEOPLE
Nottinghamshire County Council,07-02044,ARROW SPECIALISED TRANSPORT LTD,Transport & Travel,Bus,"1,762.02",0,"1,762.02",10-Oct-11,CHILDREN & YOUNG PEOPLE
Nottinghamshire County Council,07-02045,ARROW SPECIALISED TRANSPORT LTD,Transport & Travel,Bus,"1,116.18",223.24,"1,339.42",10-Oct-11,CHILDREN & YOUNG PEOPLE
Nottinghamshire County Council,07-02115,SPRAYS TRANSPORT LTD,Transport & Travel,Taxi,862.5,172.5,"1,035.00",10-Oct-11,CHILDREN & YOUNG PEOPLE
Nottinghamshire County Council,07-08320,ARROW SPECIALISED TRANSPORT LTD,Transport & Travel,Bus,"2,172.60",0,"2,172.60",28-Oct-11,CHILDREN & YOUNG PEOPLE
Nottinghamshire County Council,07-08341,B N GIBSON MOTORS,Transport & Travel,Taxi,"2,899.98",580,"3,479.98",28-Oct-11,CHILDREN & YOUNG PEOPLE
Nottinghamshire County Council,07-08342,B N GIBSON MOTORS,Transport & Travel,Taxi,"2,886.30",577.26,"3,463.56",28-Oct-11,CHILDREN & YOUNG PEOPLE
Nottinghamshire County Council,07-02023,TAXICOVER (UK) LTD T/A CHRIS'S TAXIS,Transport & Travel,Taxi,"3,076.10",0,"3,076.10",10-Oct-11,CHILDREN & YOUNG PEOPLE
Nottinghamshire County Council,07-02024,TAXICOVER (UK) LTD T/A CHRIS'S TAXIS,Transport & Travel,Taxi,"2,822.45",0,"2,822.45",10-Oct-11,CHILDREN & YOUNG PEOPLE
Nottinghamshire County Council,07-02025,TAXICOVER (UK) LTD T/A CHRIS'S TAXIS,Transport & Travel,Taxi,"3,017.01",0,"3,017.01",10-Oct-11,CHILDREN & YOUNG PEOPLE
Nottinghamshire County Council,07-02026,TAXICOVER (UK) LTD T/A CHRIS'S TAXIS,Transport & Travel,Taxi,"2,978.82",0,"2,978.82",10-Oct-11,CHILDREN & YOUNG PEOPLE
Nottinghamshire County Council,07-02027,TAXICOVER (UK) LTD T/A CHRIS'S TAXIS,Transport & Travel,Taxi,"2,940.63",0,"2,940.63",10-Oct-11,CHILDREN & YOUNG PEOPLE
Nottinghamshire County Council,07-05462,TRAVELWISE COACHES LTD,Transport & Travel,Bus,"2,452.44",0,"2,452.44",12-Oct-11,CHILDREN & YOUNG PEOPLE
Nottinghamshire County Council,07-05463,TRAVELWISE COACHES LTD,Transport & Travel,Bus,"2,711.49",0,"2,711.49",12-Oct-11,CHILDREN & YOUNG PEOPLE
Nottinghamshire County Council,07-05840,UNITY COACHES,Transport & Travel,Bus,"2,904.81",0,"2,904.81",13-Oct-11,CHILDREN & YOUNG PEOPLE
Nottinghamshire County Council,07-06001,HEADLAND TAXI SERVICE,Transport & Travel,Taxi,"1,166.60",0,"1,166.60",14-Oct-11,CHILDREN & YOUNG PEOPLE
Nottinghamshire County Council,07-07076,FIRST 4 CARE LTD,Care,Domiciliary Care,"2,268.22",453.64,"2,721.86",20-Oct-11,CHILDREN & YOUNG PEOPLE
Nottinghamshire County Council,07-07080,FIRST 4 CARE LTD,Care,Domiciliary Care,"2,225.14",445.03,"2,670.17",20-Oct-11,CHILDREN & YOUNG PEOPLE
Nottinghamshire County Council,07-07082,FIRST 4 CARE LTD,Care,Domiciliary Care,57.83,11.57,69.4,20-Oct-11,CHILDREN & YOUNG PEOPLE
Nottinghamshire County Council,07-07083,FIRST 4 CARE LTD,Care,Domiciliary Care,975,195,"1,170.00",20-Oct-11,CHILDREN & YOUNG PEOPLE
Nottinghamshire County Council,07-08354,B N GIBSON MOTORS,Transport & Travel,Taxi,"2,960.00",592,"3,552.00",28-Oct-11,CHILDREN & YOUNG PEOPLE
Nottinghamshire County Council,07-08356,B N GIBSON MOTORS,Transport & Travel,Taxi,"2,601.29",520.26,"3,121.55",28-Oct-11,CHILDREN & YOUNG PEOPLE
Nottinghamshire County Council,07-08357,B N GIBSON MOTORS,Transport & Travel,Taxi,"2,170.56",434.11,"2,604.67",28-Oct-11,CHILDREN & YOUNG PEOPLE
Nottinghamshire County Council,07-08358,B N GIBSON MOTORS,Transport & Travel,Taxi,"2,444.35",488.87,"2,933.22",28-Oct-11,CHILDREN & YOUNG PEOPLE
Nottinghamshire County Council,07-08359,B N GIBSON MOTORS,Transport & Travel,Taxi,"2,307.74",461.55,"2,769.29",28-Oct-11,CHILDREN & YOUNG PEOPLE
Nottinghamshire County Council,07-08360,B N GIBSON MOTORS,Transport & Travel,Taxi,"2,746.26",549.25,"3,295.51",28-Oct-11,CHILDREN & YOUNG PEOPLE
Nottinghamshire County Council,07-08361,B N GIBSON MOTORS,Transport & Travel,Taxi,"3,935.47",787.09,"4,722.56",28-Oct-11,CHILDREN & YOUNG PEOPLE
Nottinghamshire County Council,07-08362,B N GIBSON MOTORS,Transport & Travel,Taxi,"2,864.25",572.85,"3,437.10",28-Oct-11,CHILDREN & YOUNG PEOPLE
Nottinghamshire County Council,07-08363,B N GIBSON MOTORS,Transport & Travel,Taxi,"3,501.70",700.34,"4,202.04",28-Oct-11,CHILDREN & YOUNG PEOPLE
Nottinghamshire County Council,07-08370,B N GIBSON MOTORS,Transport & Travel,Taxi,"2,741.70",548.34,"3,290.04",28-Oct-11,CHILDREN & YOUNG PEOPLE
Nottinghamshire County Council,07-01657,FOZCABS,Transport & Travel,Taxi,618.2,0,618.2,07-Oct-11,CHILDREN & YOUNG PEOPLE
Nottinghamshire County Council,07-02062,ARROW SPECIALISED TRANSPORT LTD,Transport & Travel,Bus,"2,527.00",0,"2,527.00",10-Oct-11,CHILDREN & YOUNG PEOPLE
Nottinghamshire County Council,07-02065,ARROW SPECIALISED TRANSPORT LTD,Transport & Travel,Bus,"1,723.50",344.7,"2,068.20",10-Oct-11,CHILDREN & YOUNG PEOPLE
Nottinghamshire County Council,07-02094,MIDFIELD TRAVEL,Transport & Travel,Travel Agencies and Booking,"2,763.17",0,"2,763.17",10-Oct-11,CHILDREN & YOUNG PEOPLE
Nottinghamshire County Council,07-02102,SPRAYS TRANSPORT LTD,Transport & Travel,Taxi,"1,959.85",391.97,"2,351.82",10-Oct-11,CHILDREN & YOUNG PEOPLE
Nottinghamshire County Council,07-02105,SPRAYS TRANSPORT LTD,Transport & Travel,Taxi,"2,055.04",411.01,"2,466.05",10-Oct-11,CHILDREN & YOUNG PEOPLE
Nottinghamshire County Council,07-02110,SPRAYS TRANSPORT LTD,Transport & Travel,Taxi,"1,920.68",384.14,"2,304.82",10-Oct-11,CHILDREN & YOUNG PEOPLE
Nottinghamshire County Council,07-05451,SPRAYS TRANSPORT LTD,Transport & Travel,Taxi,"2,065.68",413.14,"2,478.82",12-Oct-11,CHILDREN & YOUNG PEOPLE
Nottinghamshire County Council,07-06003,RON GASH AND SONS LTD,Transport & Travel,Bus,"2,416.42",483.28,"2,899.70",14-Oct-11,CHILDREN & YOUNG PEOPLE
Nottinghamshire County Council,07-06007,AMVALE LTD,Transport & Travel,Taxi,"2,593.31",518.66,"3,111.97",14-Oct-11,CHILDREN & YOUNG PEOPLE
Nottinghamshire County Council,07-07074,FIRST 4 CARE LTD,Care,Domiciliary Care,"2,439.03",487.81,"2,926.84",20-Oct-11,CHILDREN & YOUNG PEOPLE
Nottinghamshire County Council,07-08353,B N GIBSON MOTORS,Transport & Travel,Taxi,"2,321.61",464.32,"2,785.93",28-Oct-11,CHILDREN & YOUNG PEOPLE
Nottinghamshire County Council,07-02039,ARROW SPECIALISED TRANSPORT LTD,Transport & Travel,Bus,"1,982.70",0,"1,982.70",10-Oct-11,CHILDREN & YOUNG PEOPLE
Nottinghamshire County Council,07-02099,SPRAYS TRANSPORT LTD,Transport & Travel,Taxi,"1,512.00",302.4,"1,814.40",10-Oct-11,CHILDREN & YOUNG PEOPLE
Nottinghamshire County Council,07-02101,SPRAYS TRANSPORT LTD,Transport & Travel,Taxi,"1,584.00",316.8,"1,900.80",10-Oct-11,CHILDREN & YOUNG PEOPLE
Nottinghamshire County Council,07-02112,SPRAYS TRANSPORT LTD,Transport & Travel,Taxi,"1,137.52",227.5,"1,365.02",10-Oct-11,CHILDREN & YOUNG PEOPLE
Nottinghamshire County Council,07-02117,TRAVELWISE COACHES LTD,Transport & Travel,Bus,"2,209.14",0,"2,209.14",10-Oct-11,CHILDREN & YOUNG PEOPLE
Nottinghamshire County Council,07-05467,TRAVELWISE COACHES LTD,Transport & Travel,Bus,"1,845.54",0,"1,845.54",12-Oct-11,CHILDREN & YOUNG PEOPLE
Nottinghamshire County Council,07-05469,TRAVELWISE COACHES LTD,Transport & Travel,Bus,"2,051.64",0,"2,051.64",12-Oct-11,CHILDREN & YOUNG PEOPLE
Nottinghamshire County Council,07-07068,QUANTUM TRAVEL SPECIALISTS,Transport & Travel,Travel Agencies and Booking,"1,780.74",356.15,"2,136.89",19-Oct-11,CHILDREN & YOUNG PEOPLE
Nottinghamshire County Council,07-07069,QUANTUM TRAVEL SPECIALISTS,Transport & Travel,Travel Agencies and Booking,"2,044.26",408.85,"2,453.11",19-Oct-11,CHILDREN & YOUNG PEOPLE
Nottinghamshire County Council,07-07070,QUANTUM TRAVEL SPECIALISTS,Transport & Travel,Travel Agencies and Booking,"1,827.18",365.44,"2,192.62",19-Oct-11,CHILDREN & YOUNG PEOPLE
Nottinghamshire County Council,07-08339,B N GIBSON MOTORS,Transport & Travel,Taxi,"4,475.88",895.18,"5,371.06",28-Oct-11,CHILDREN & YOUNG PEOPLE
Nottinghamshire County Council,07-08371,GOLDSTAR TRAVEL (NOTTINGHAM) LTD,Transport & Travel,Travel Agencies and Booking,"2,580.50",0,"2,580.50",28-Oct-11,CHILDREN & YOUNG PEOPLE
Nottinghamshire County Council,07-01507,MIDFIELD TRAVEL,Transport & Travel,Travel Agencies and Booking,"1,696.14",0,"1,696.14",06-Oct-11,CHILDREN & YOUNG PEOPLE
Nottinghamshire County Council,07-02103,SPRAYS TRANSPORT LTD,Transport & Travel,Taxi,"1,896.12",379.22,"2,275.34",10-Oct-11,CHILDREN & YOUNG PEOPLE
Nottinghamshire County Council,07-05457,VALLANCES COACHES LTD,Transport & Travel,Bus,"2,019.60",0,"2,019.60",12-Oct-11,CHILDREN & YOUNG PEOPLE
Nottinghamshire County Council,07-05828,CENTRAL CARS (NOTTINGHAM) LTD,Transport & Travel,Taxi,"1,226.16",245.23,"1,471.39",13-Oct-11,CHILDREN & YOUNG PEOPLE
Nottinghamshire County Council,07-07066,A-LINE TAXIS,Transport & Travel,Taxi,560,112,672,19-Oct-11,CHILDREN & YOUNG PEOPLE
Nottinghamshire County Council,07-08338,VALLANCES COACHES LTD,Transport & Travel,Bus,"1,809.00",0,"1,809.00",28-Oct-11,CHILDREN & YOUNG PEOPLE
Nottinghamshire County Council,07-02017,TAXICOVER (UK) LTD T/A CHRIS'S TAXIS,Transport & Travel,Taxi,"2,448.00",0,"2,448.00",10-Oct-11,CHILDREN & YOUNG PEOPLE
Nottinghamshire County Council,07-02018,TAXICOVER (UK) LTD T/A CHRIS'S TAXIS,Transport & Travel,Taxi,"3,060.00",0,"3,060.00",10-Oct-11,CHILDREN & YOUNG PEOPLE
Nottinghamshire County Council,07-02085,BRIDGES TRANSPORT SERVICES,Transport & Travel,Bus,"1,060.96",212.19,"1,273.15",10-Oct-11,CHILDREN & YOUNG PEOPLE
Nottinghamshire County Council,07-05825,CENTRAL CARS (NOTTINGHAM) LTD,Transport & Travel,Taxi,"1,219.92",243.98,"1,463.90",13-Oct-11,CHILDREN & YOUNG PEOPLE
Nottinghamshire County Council,07-05839,EREWASH COMMUNITY TRANSPORT,Care,Community and Social Services,"2,134.44",0,"2,134.44",13-Oct-11,CHILDREN & YOUNG PEOPLE
Nottinghamshire County Council,07-07072,FIRST 4 CARE LTD,Care,Domiciliary Care,"1,770.42",354.08,"2,124.50",20-Oct-11,CHILDREN & YOUNG PEOPLE
Nottinghamshire County Council,07-08314,CABLINE UK LTD,Transport & Travel,Taxi,"2,090.16",418.03,"2,508.19",28-Oct-11,CHILDREN & YOUNG PEOPLE
Nottinghamshire County Council,07-08323,D G PRIVATE HIRE LTD,Transport & Travel,Taxi,452.25,90.45,542.7,28-Oct-11,CHILDREN & YOUNG PEOPLE
Nottinghamshire County Council,07-08347,B N GIBSON MOTORS,Transport & Travel,Taxi,"3,256.20",651.24,"3,907.44",28-Oct-11,CHILDREN & YOUNG PEOPLE
Nottinghamshire County Council,07-08372,GOLDSTAR TRAVEL (NOTTINGHAM) LTD,Transport & Travel,Travel Agencies and Booking,"2,520.00",0,"2,520.00",28-Oct-11,CHILDREN & YOUNG PEOPLE
Nottinghamshire County Council,07-08373,GOLDSTAR TRAVEL (NOTTINGHAM) LTD,Transport & Travel,Travel Agencies and Booking,"1,715.04",0,"1,715.04",28-Oct-11,CHILDREN & YOUNG PEOPLE
Nottinghamshire County Council,07-00128,DONCASTER DEAF TRUST,Care,Healthcare Services,"12,686.33",0,"12,686.33",10-Oct-11,CHILDREN & YOUNG PEOPLE
Nottinghamshire County Council,07-07418,7KS CORPORATE AND FINANCE,Professional Services,Financial and Insurance Services,"2,575.27",0,"2,575.27",31-Oct-11,CHILDREN & YOUNG PEOPLE
Nottinghamshire County Council,07-02012,TAXICOVER (UK) LTD T/A CHRIS'S TAXIS,Transport & Travel,Taxi,341.92,0,341.92,10-Oct-11,CHILDREN & YOUNG PEOPLE
Nottinghamshire County Council,07-02077,ARROW SPECIALISED TRANSPORT LTD,Transport & Travel,Bus,764.27,152.85,917.12,10-Oct-11,CHILDREN & YOUNG PEOPLE
Nottinghamshire County Council,07-05459,K AND S COACHES,Transport & Travel,Bus,297.61,0,297.61,12-Oct-11,CHILDREN & YOUNG PEOPLE
Nottinghamshire County Council,07-05826,CENTRAL CARS (NOTTINGHAM) LTD,Transport & Travel,Taxi,"1,440.00",288,"1,728.00",13-Oct-11,CHILDREN & YOUNG PEOPLE
Nottinghamshire County Council,07-05840,UNITY COACHES,Transport & Travel,Bus,223.35,0,223.35,13-Oct-11,CHILDREN & YOUNG PEOPLE
Nottinghamshire County Council,07-02015,TAXICOVER (UK) LTD T/A CHRIS'S TAXIS,Transport & Travel,Taxi,232.03,0,232.03,10-Oct-11,CHILDREN & YOUNG PEOPLE
Nottinghamshire County Council,07-02029,TAXICOVER (UK) LTD T/A CHRIS'S TAXIS,Transport & Travel,Taxi,452.43,0,452.43,10-Oct-11,CHILDREN & YOUNG PEOPLE
Nottinghamshire County Council,07-02110,SPRAYS TRANSPORT LTD,Transport & Travel,Taxi,480.16,96.03,576.19,10-Oct-11,CHILDREN & YOUNG PEOPLE
Nottinghamshire County Council,07-07071,TRENT CARS,Transport & Travel,Taxi,188.64,0,188.64,19-Oct-11,CHILDREN & YOUNG PEOPLE
Nottinghamshire County Council,07-08340,B N GIBSON MOTORS,Transport & Travel,Taxi,"3,013.38",602.68,"3,616.06",28-Oct-11,CHILDREN & YOUNG PEOPLE
Nottinghamshire County Council,07-08357,B N GIBSON MOTORS,Transport & Travel,Taxi,620.16,124.03,744.19,28-Oct-11,CHILDREN & YOUNG PEOPLE
Nottinghamshire County Council,07-08371,GOLDSTAR TRAVEL (NOTTINGHAM) LTD,Transport & Travel,Travel Agencies and Booking,286.72,0,286.72,28-Oct-11,CHILDREN & YOUNG PEOPLE
Nottinghamshire County Council,07-02012,TAXICOVER (UK) LTD T/A CHRIS'S TAXIS,Transport & Travel,Taxi,341.92,0,341.92,10-Oct-11,CHILDREN & YOUNG PEOPLE
Nottinghamshire County Council,07-02078,ARROW SPECIALISED TRANSPORT LTD,Transport & Travel,Bus,935.75,187.15,"1,122.90",10-Oct-11,CHILDREN & YOUNG PEOPLE
Nottinghamshire County Council,07-05725,HORIZON TRAVEL,Transport & Travel,Travel Agencies and Booking,304.46,0,304.46,13-Oct-11,CHILDREN & YOUNG PEOPLE
Nottinghamshire County Council,07-05827,CENTRAL CARS (NOTTINGHAM) LTD,Transport & Travel,Taxi,802.4,160.48,962.88,13-Oct-11,CHILDREN & YOUNG PEOPLE
Nottinghamshire County Council,07-06001,HEADLAND TAXI SERVICE,Transport & Travel,Taxi,583.7,0,583.7,14-Oct-11,CHILDREN & YOUNG PEOPLE
Nottinghamshire County Council,07-07206,A-LINE TAXIS,Transport & Travel,Taxi,615.06,123.01,738.07,20-Oct-11,CHILDREN & YOUNG PEOPLE
Nottinghamshire County Council,07-08202,ARROW SPECIALISED TRANSPORT LTD,Transport & Travel,Bus,"1,308.58",261.72,"1,570.30",27-Oct-11,CHILDREN & YOUNG PEOPLE
Nottinghamshire County Council,07-08312,CABLINE UK LTD,Transport & Travel,Taxi,780,156,936,28-Oct-11,CHILDREN & YOUNG PEOPLE
Nottinghamshire County Council,07-01121,RUFFORD PARK GOLF AND COUNTRY CLUB,Transport & Travel,Hotels and Venues,928,0,928,05-Oct-11,CHILDREN & YOUNG PEOPLE
Nottinghamshire County Council,07-07407,SAGE PUBLICATIONS,ICT,Software,527.78,0,527.78,21-Oct-11,CHILDREN & YOUNG PEOPLE
Nottinghamshire County Council,07-05593,BESTWOOD LODGE HOTEL,Transport & Travel,Hotels and Venues,140,0,140,13-Oct-11,CHILDREN & YOUNG PEOPLE
Nottinghamshire County Council,07-05593,BESTWOOD LODGE HOTEL,Transport & Travel,Hotels and Venues,549.78,96.21,645.99,13-Oct-11,CHILDREN & YOUNG PEOPLE
Nottinghamshire County Council,07-01878,ADSM LTD,Hard Facilities Management ,Utilities,45.43,9.09,54.52,07-Oct-11,CHILDREN & YOUNG PEOPLE
Nottinghamshire County Council,07-07634,N POWER,Hard Facilities Management ,Utilities,"3,332.83",583.25,"3,916.08",26-Oct-11,CHILDREN & YOUNG PEOPLE
Nottinghamshire County Council,07-07635,N POWER,Hard Facilities Management ,Utilities,127.57,22.32,149.89,26-Oct-11,CHILDREN & YOUNG PEOPLE
Nottinghamshire County Council,07-07635,N POWER,Hard Facilities Management ,Utilities,"4,125.70",825.14,"4,950.84",26-Oct-11,CHILDREN & YOUNG PEOPLE
Nottinghamshire County Council,07-07636,N POWER,Hard Facilities Management ,Utilities,"2,209.32",441.86,"2,651.18",26-Oct-11,CHILDREN & YOUNG PEOPLE
Nottinghamshire County Council,07-01111,CHESTERFIELD COLLEGE OF TECH AND ART,Education And Training,Pre School/ Nursery/ School,650,0,650,05-Oct-11,CHILDREN & YOUNG PEOPLE
Nottinghamshire County Council,07-01111,CHESTERFIELD COLLEGE OF TECH AND ART,Education And Training,Pre School/ Nursery/ School,100,0,100,05-Oct-11,CHILDREN & YOUNG PEOPLE
Nottinghamshire County Council,07-01112,CHESTERFIELD COLLEGE OF TECH AND ART,Education And Training,Pre School/ Nursery/ School,650,0,650,05-Oct-11,CHILDREN & YOUNG PEOPLE
Nottinghamshire County Council,07-01112,CHESTERFIELD COLLEGE OF TECH AND ART,Education And Training,Pre School/ Nursery/ School,100,0,100,05-Oct-11,CHILDREN & YOUNG PEOPLE
Nottinghamshire County Council,07-01113,CHESTERFIELD COLLEGE OF TECH AND ART,Education And Training,Pre School/ Nursery/ School,617,0,617,05-Oct-11,CHILDREN & YOUNG PEOPLE
Nottinghamshire County Council,07-01113,CHESTERFIELD COLLEGE OF TECH AND ART,Education And Training,Pre School/ Nursery/ School,100,0,100,05-Oct-11,CHILDREN & YOUNG PEOPLE
Nottinghamshire County Council,07-06900,STEPHENSON COLLEGE,Education And Training,Pre School/ Nursery/ School,"1,122.00",0,"1,122.00",19-Oct-11,CHILDREN & YOUNG PEOPLE
Nottinghamshire County Council,07-05273,PRE-SCHOOL LEARNING ALLIANCE,Education And Training,Pre School/ Nursery/ School,"4,865.00",0,"4,865.00",12-Oct-11,CHILDREN & YOUNG PEOPLE
Nottinghamshire County Council,07-05519,PRE-SCHOOL LEARNING ALLIANCE,Education And Training,Pre School/ Nursery/ School,"32,167.50",0,"32,167.50",13-Oct-11,CHILDREN & YOUNG PEOPLE
Nottinghamshire County Council,07-00086,AT YOUR SERVICE (CARE) LTD,Care,Domiciliary Care,868,0,868,05-Oct-11,CHILDREN & YOUNG PEOPLE
Nottinghamshire County Council,07-00245,AT YOUR SERVICE (CARE) LTD,Care,Domiciliary Care,"1,764.00",0,"1,764.00",05-Oct-11,CHILDREN & YOUNG PEOPLE
Nottinghamshire County Council,07-01240,SCOPE CENTRAL TRADING,Care,Daycare,"1,086.57",0,"1,086.57",05-Oct-11,CHILDREN & YOUNG PEOPLE
Nottinghamshire County Council,07-02217,NORSACA,Care,Residential Care,676.9,0,676.9,31-Oct-11,CHILDREN & YOUNG PEOPLE
Nottinghamshire County Council,07-05519,PRE-SCHOOL LEARNING ALLIANCE,Education And Training,Pre School/ Nursery/ School,"5,274.25",0,"5,274.25",13-Oct-11,CHILDREN & YOUNG PEOPLE
Nottinghamshire County Council,07-05987,THE HONEY POT DAY NURSERY,Care,Infant Or Child Daycare Services,735,0,735,21-Oct-11,CHILDREN & YOUNG PEOPLE
Nottinghamshire County Council,07-06928,EAST MIDLANDS CROSSROADS,Care,Domiciliary Care,627.13,0,627.13,20-Oct-11,CHILDREN & YOUNG PEOPLE
Nottinghamshire County Council,07-08144,CARED 4 LTD,Care,Domiciliary Care,"1,960.00",0,"1,960.00",28-Oct-11,CHILDREN & YOUNG PEOPLE
Nottinghamshire County Council,07-00024,PUMP FARM DAY NURSERY,Care,Infant Or Child Daycare Services,610,0,610,06-Oct-11,CHILDREN & YOUNG PEOPLE
Nottinghamshire County Council,07-00460,WEST STREET PRE SCHOOL,Education And Training,Pre School/ Nursery/ School,610,0,610,03-Oct-11,CHILDREN & YOUNG PEOPLE
Nottinghamshire County Council,07-00461,WISHING WELL DAY NURSERY,Care,Infant Or Child Daycare Services,"2,440.00",0,"2,440.00",03-Oct-11,CHILDREN & YOUNG PEOPLE
Nottinghamshire County Council,07-00462,WISHING WELL DAY NURSERY,Care,Infant Or Child Daycare Services,610,0,610,03-Oct-11,CHILDREN & YOUNG PEOPLE
Nottinghamshire County Council,07-00463,WISHING WELL DAY NURSERY,Care,Infant Or Child Daycare Services,610,0,610,03-Oct-11,CHILDREN & YOUNG PEOPLE
Nottinghamshire County Council,07-00464,LITTLE MILLERS DAY NURSERY,Care,Infant Or Child Daycare Services,610,0,610,03-Oct-11,CHILDREN & YOUNG PEOPLE
Nottinghamshire County Council,07-00465,LITTLE MILLERS DAY NURSERY,Care,Infant Or Child Daycare Services,610,0,610,03-Oct-11,CHILDREN & YOUNG PEOPLE
Nottinghamshire County Council,07-00466,THE ORCHARD DAY NURSERY,Care,Infant Or Child Daycare Services,610,0,610,03-Oct-11,CHILDREN & YOUNG PEOPLE
Nottinghamshire County Council,07-00467,THE ORCHARD DAY NURSERY,Care,Infant Or Child Daycare Services,"3,050.00",0,"3,050.00",03-Oct-11,CHILDREN & YOUNG PEOPLE
Nottinghamshire County Council,07-00468,THE ORCHARD DAY NURSERY,Care,Infant Or Child Daycare Services,915,0,915,03-Oct-11,CHILDREN & YOUNG PEOPLE
Nottinghamshire County Council,07-00608,LITTLE FRIENDS DAY NURSERY,Care,Infant Or Child Daycare Services,"3,050.00",0,"3,050.00",03-Oct-11,CHILDREN & YOUNG PEOPLE
Nottinghamshire County Council,07-00609,BINGHAM DAY NURSERY AND PRESCHOOL CENTRE,Care,Infant Or Child Daycare Services,915,0,915,03-Oct-11,CHILDREN & YOUNG PEOPLE
Nottinghamshire County Council,07-00610,WHITE POST DAY NURSERY LTD,Care,Infant Or Child Daycare Services,610,0,610,03-Oct-11,CHILDREN & YOUNG PEOPLE
Nottinghamshire County Council,07-00611,WOODBOROUGH VILLAGE PRE SCHOOL,Education And Training,Pre School/ Nursery/ School,610,0,610,03-Oct-11,CHILDREN & YOUNG PEOPLE
Nottinghamshire County Council,07-00612,WILLOUGHBY ON THE WOLDS PLAYGROUP,Care,Infant Or Child Daycare Services,915,0,915,03-Oct-11,CHILDREN & YOUNG PEOPLE
Nottinghamshire County Council,07-01413,MANSFIELD CHILDRENS COMMUNITY,Care,Infant Or Child Daycare Services,610,0,610,12-Oct-11,CHILDREN & YOUNG PEOPLE
Nottinghamshire County Council,07-01414,THE HONEY BEE DAY NURSERY,Care,Infant Or Child Daycare Services,"2,440.00",0,"2,440.00",13-Oct-11,CHILDREN & YOUNG PEOPLE
Nottinghamshire County Council,07-01415,DISCOVERY CHILDCARE,Care,Infant Or Child Daycare Services,"1,830.00",0,"1,830.00",13-Oct-11,CHILDREN & YOUNG PEOPLE
Nottinghamshire County Council,07-01416,CARED 4 LTD,Care,Domiciliary Care,915,0,915,12-Oct-11,CHILDREN & YOUNG PEOPLE
Nottinghamshire County Council,07-01417,LADY BAY PRE SCHOOL PLAYGROUP,Education And Training,Pre School/ Nursery/ School,"2,440.00",0,"2,440.00",13-Oct-11,CHILDREN & YOUNG PEOPLE
Nottinghamshire County Council,07-01418,COSTOCK PLAY GROUP,Education And Training,Pre School/ Nursery/ School,"3,050.00",0,"3,050.00",13-Oct-11,CHILDREN & YOUNG PEOPLE
Nottinghamshire County Council,07-01471,THE HONEY BEE DAY NURSERY,Care,Infant Or Child Daycare Services,610,0,610,13-Oct-11,CHILDREN & YOUNG PEOPLE
Nottinghamshire County Council,07-01472,FERNWOOD DAY NURSERY LTD,Care,Infant Or Child Daycare Services,610,0,610,17-Oct-11,CHILDREN & YOUNG PEOPLE
Nottinghamshire County Council,07-01473,FERNWOOD DAY NURSERY LTD,Care,Infant Or Child Daycare Services,610,0,610,17-Oct-11,CHILDREN & YOUNG PEOPLE
Nottinghamshire County Council,07-01474,FERNWOOD DAY NURSERY LTD,Care,Infant Or Child Daycare Services,915,0,915,17-Oct-11,CHILDREN & YOUNG PEOPLE
Nottinghamshire County Council,07-01475,BROOKLYN DAY NURSERY,Care,Infant Or Child Daycare Services,610,0,610,12-Oct-11,CHILDREN & YOUNG PEOPLE
Nottinghamshire County Council,07-01476,STAUNTON MONTESSORI SCHOOL,Education And Training,Pre School/ Nursery/ School,"3,050.00",0,"3,050.00",12-Oct-11,CHILDREN & YOUNG PEOPLE
Nottinghamshire County Council,07-01477,STAUNTON MONTESSORI SCHOOL,Education And Training,Pre School/ Nursery/ School,"3,050.00",0,"3,050.00",12-Oct-11,CHILDREN & YOUNG PEOPLE
Nottinghamshire County Council,07-05308,THE LEARNING TREE DAY NURSERY 1,Care,Infant Or Child Daycare Services,"1,250.00",0,"1,250.00",14-Oct-11,CHILDREN & YOUNG PEOPLE
Nottinghamshire County Council,07-05309,THE LEARNING TREE DAY NURSERY 1,Care,Infant Or Child Daycare Services,610,0,610,14-Oct-11,CHILDREN & YOUNG PEOPLE
Nottinghamshire County Council,07-05310,THE LEARNING TREE DAY NURSERY 1,Care,Infant Or Child Daycare Services,610,0,610,14-Oct-11,CHILDREN & YOUNG PEOPLE
Nottinghamshire County Council,07-05311,BINGHAM DAY NURSERY AND PRESCHOOL CENTRE,Care,Infant Or Child Daycare Services,"2,135.00",0,"2,135.00",17-Oct-11,CHILDREN & YOUNG PEOPLE
Nottinghamshire County Council,07-05312,THE ORCHARD DAY NURSERY,Care,Infant Or Child Daycare Services,"2,135.00",0,"2,135.00",17-Oct-11,CHILDREN & YOUNG PEOPLE
Nottinghamshire County Council,07-05313,ARNOLD HOUSE DAY NURSERY,Care,Infant Or Child Daycare Services,610,0,610,17-Oct-11,CHILDREN & YOUNG PEOPLE
Nottinghamshire County Council,07-05314,ARNOLD HOUSE DAY NURSERY,Care,Infant Or Child Daycare Services,610,0,610,17-Oct-11,CHILDREN & YOUNG PEOPLE
Nottinghamshire County Council,07-05315,ARNOLD HOUSE DAY NURSERY,Care,Infant Or Child Daycare Services,"3,050.00",0,"3,050.00",17-Oct-11,CHILDREN & YOUNG PEOPLE
Nottinghamshire County Council,07-05316,CARLTON AND GEDLING DAY NURSERY,Care,Infant Or Child Daycare Services,610,0,610,17-Oct-11,CHILDREN & YOUNG PEOPLE
Nottinghamshire County Council,07-05370,STAPLEFORD DAY NURSERY,Care,Infant Or Child Daycare Services,610,0,610,17-Oct-11,CHILDREN & YOUNG PEOPLE
Nottinghamshire County Council,07-05371,STAPLEFORD DAY NURSERY,Care,Infant Or Child Daycare Services,610,0,610,17-Oct-11,CHILDREN & YOUNG PEOPLE
Nottinghamshire County Council,07-05372,STAPLEFORD DAY NURSERY,Care,Infant Or Child Daycare Services,610,0,610,17-Oct-11,CHILDREN & YOUNG PEOPLE
Nottinghamshire County Council,07-05373,PUMP FARM DAY NURSERY,Care,Infant Or Child Daycare Services,610,0,610,20-Oct-11,CHILDREN & YOUNG PEOPLE
Nottinghamshire County Council,07-05374,HOMESTEAD DAY NURSERY,Care,Infant Or Child Daycare Services,610,0,610,17-Oct-11,CHILDREN & YOUNG PEOPLE
Nottinghamshire County Council,07-06206,LEEN MILLS PRE SCHOOL PLAYGROUP,Education And Training,Pre School/ Nursery/ School,610,0,610,19-Oct-11,CHILDREN & YOUNG PEOPLE
Nottinghamshire County Council,07-06207,LOWDHAM AND EPPERSTONE PRE-SCHOOL,Education And Training,Pre School/ Nursery/ School,"3,050.00",0,"3,050.00",19-Oct-11,CHILDREN & YOUNG PEOPLE
Nottinghamshire County Council,07-06208,LOWDHAM AND EPPERSTONE PRE-SCHOOL,Education And Training,Pre School/ Nursery/ School,"3,050.00",0,"3,050.00",19-Oct-11,CHILDREN & YOUNG PEOPLE
Nottinghamshire County Council,07-06209,ELSTON PRE SCHOOL LEARNING ALLIANCE,Education And Training,Pre School/ Nursery/ School,"3,050.00",0,"3,050.00",19-Oct-11,CHILDREN & YOUNG PEOPLE
Nottinghamshire County Council,07-06210,CHERUBS CHILDRENS CENTRE,Care,Infant Or Child Daycare Services,610,0,610,19-Oct-11,CHILDREN & YOUNG PEOPLE
Nottinghamshire County Council,07-06211,CHERUBS CHILDRENS CENTRE,Care,Infant Or Child Daycare Services,610,0,610,19-Oct-11,CHILDREN & YOUNG PEOPLE
Nottinghamshire County Council,07-06212,HICKORY HOUSE DAY NURSERY,Care,Infant Or Child Daycare Services,"3,050.00",0,"3,050.00",19-Oct-11,CHILDREN & YOUNG PEOPLE
Nottinghamshire County Council,07-06224,CHERUBS CHILDRENS CENTRE,Care,Infant Or Child Daycare Services,"3,050.00",0,"3,050.00",19-Oct-11,CHILDREN & YOUNG PEOPLE
Nottinghamshire County Council,07-06225,CHERUBS CHILDRENS CENTRE,Care,Infant Or Child Daycare Services,610,0,610,19-Oct-11,CHILDREN & YOUNG PEOPLE
Nottinghamshire County Council,07-06226,CHERUBS CHILDRENS CENTRE,Care,Infant Or Child Daycare Services,610,0,610,19-Oct-11,CHILDREN & YOUNG PEOPLE
Nottinghamshire County Council,07-06227,GRANBY NURSERIES LTD,External Services (Highways & Culture),Plant and Animal Supplies,"3,050.00",0,"3,050.00",19-Oct-11,CHILDREN & YOUNG PEOPLE
Nottinghamshire County Council,07-06228,GRANBY NURSERIES LTD,External Services (Highways & Culture),Plant and Animal Supplies,915,0,915,19-Oct-11,CHILDREN & YOUNG PEOPLE
Nottinghamshire County Council,07-06229,GRANBY NURSERIES LTD,External Services (Highways & Culture),Plant and Animal Supplies,610,0,610,19-Oct-11,CHILDREN & YOUNG PEOPLE
Nottinghamshire County Council,07-06230,BUTTERFLIES DAY NURSERY,Care,Infant Or Child Daycare Services,610,0,610,19-Oct-11,CHILDREN & YOUNG PEOPLE
Nottinghamshire County Council,07-06231,BUTTERFLIES DAY NURSERY,Care,Infant Or Child Daycare Services,610,0,610,19-Oct-11,CHILDREN & YOUNG PEOPLE
Nottinghamshire County Council,07-06232,BUTTERFLIES DAY NURSERY,Care,Infant Or Child Daycare Services,610,0,610,19-Oct-11,CHILDREN & YOUNG PEOPLE
Nottinghamshire County Council,07-06233,SCOTTS WOOD 2 DAY NURSERY,Care,Infant Or Child Daycare Services,"3,050.00",0,"3,050.00",19-Oct-11,CHILDREN & YOUNG PEOPLE
Nottinghamshire County Council,07-06234,SCOTTS WOOD 2 DAY NURSERY,Care,Infant Or Child Daycare Services,610,0,610,19-Oct-11,CHILDREN & YOUNG PEOPLE
Nottinghamshire County Council,07-06252,SCOTTS WOOD PRIVATE DAY NURSERY,Care,Infant Or Child Daycare Services,610,0,610,19-Oct-11,CHILDREN & YOUNG PEOPLE
Nottinghamshire County Council,07-06253,SCOTTS WOOD PRIVATE DAY NURSERY,Care,Infant Or Child Daycare Services,915,0,915,19-Oct-11,CHILDREN & YOUNG PEOPLE
Nottinghamshire County Council,07-06254,TOLLERTON PLAYGROUP,Care,Infant Or Child Daycare Services,915,0,915,25-Oct-11,CHILDREN & YOUNG PEOPLE
Nottinghamshire County Council,07-06255,TREETOPS NURSERIES LTD,Care,Infant Or Child Daycare Services,610,0,610,19-Oct-11,CHILDREN & YOUNG PEOPLE
Nottinghamshire County Council,07-06256,SUTTON BONINGTON PRE-SCHOOL PLAYGROUP,Education And Training,Pre School/ Nursery/ School,610,0,610,19-Oct-11,CHILDREN & YOUNG PEOPLE
Nottinghamshire County Council,07-06257,SUTTON BONINGTON PRE-SCHOOL PLAYGROUP,Education And Training,Pre School/ Nursery/ School,610,0,610,19-Oct-11,CHILDREN & YOUNG PEOPLE
Nottinghamshire County Council,07-06258,CHERUBS CHILDRENS CENTRE,Care,Infant Or Child Daycare Services,610,0,610,19-Oct-11,CHILDREN & YOUNG PEOPLE
Nottinghamshire County Council,07-06259,CHERUBS CHILDRENS CENTRE,Care,Infant Or Child Daycare Services,610,0,610,19-Oct-11,CHILDREN & YOUNG PEOPLE
Nottinghamshire County Council,07-06260,CHERUBS CHILDRENS CENTRE,Care,Infant Or Child Daycare Services,"3,050.00",0,"3,050.00",19-Oct-11,CHILDREN & YOUNG PEOPLE
Nottinghamshire County Council,07-06261,CHERUBS CHILD CARE CENTRE,Care,Infant Or Child Daycare Services,610,0,610,19-Oct-11,CHILDREN & YOUNG PEOPLE
Nottinghamshire County Council,07-05240,@HOME CHILDCARE LTD,Care,Infant Or Child Daycare Services,475,0,475,12-Oct-11,CHILDREN & YOUNG PEOPLE
Nottinghamshire County Council,07-05241,@HOME CHILDCARE LTD,Care,Infant Or Child Daycare Services,475,0,475,12-Oct-11,CHILDREN & YOUNG PEOPLE
Nottinghamshire County Council,07-05241,@HOME CHILDCARE LTD,Care,Infant Or Child Daycare Services,475,0,475,12-Oct-11,CHILDREN & YOUNG PEOPLE
Nottinghamshire County Council,07-05241,@HOME CHILDCARE LTD,Care,Infant Or Child Daycare Services,475,0,475,12-Oct-11,CHILDREN & YOUNG PEOPLE
Nottinghamshire County Council,07-05241,@HOME CHILDCARE LTD,Care,Infant Or Child Daycare Services,475,0,475,12-Oct-11,CHILDREN & YOUNG PEOPLE
Nottinghamshire County Council,07-05242,@HOME CHILDCARE LTD,Care,Infant Or Child Daycare Services,475,0,475,12-Oct-11,CHILDREN & YOUNG PEOPLE
Nottinghamshire County Council,07-05243,@HOME CHILDCARE LTD,Care,Infant Or Child Daycare Services,475,0,475,12-Oct-11,CHILDREN & YOUNG PEOPLE
Nottinghamshire County Council,07-05244,@HOME CHILDCARE LTD,Care,Infant Or Child Daycare Services,475,0,475,12-Oct-11,CHILDREN & YOUNG PEOPLE
Nottinghamshire County Council,07-05520,ACCESS TRAINING (EAST MIDLANDS) LTD,People,Vocational Training,500,0,500,13-Oct-11,CHILDREN & YOUNG PEOPLE
Nottinghamshire County Council,07-00758,STYLE MIDLANDS,TBC,TBC,452,0,452,24-Oct-11,CHILDREN & YOUNG PEOPLE
Nottinghamshire County Council,07-06857,KONICA MINOLTA,ICT,"Printing and Publishing, Equipment and Supplies",545.76,0,545.76,20-Oct-11,CHILDREN & YOUNG PEOPLE
Nottinghamshire County Council,07-07422,STYLE MIDLANDS,TBC,TBC,452,0,452,24-Oct-11,CHILDREN & YOUNG PEOPLE
Nottinghamshire County Council,07-01133,RB2 UK LTD,Care,Medical Equipment and  Supplies,542,0,542,05-Oct-11,CHILDREN & YOUNG PEOPLE
Nottinghamshire County Council,07-01133,RB2 UK LTD,Care,Medical Equipment and  Supplies,7,0,7,05-Oct-11,CHILDREN & YOUNG PEOPLE
Nottinghamshire County Council,07-01133,RB2 UK LTD,Care,Medical Equipment and  Supplies,17,0,17,05-Oct-11,CHILDREN & YOUNG PEOPLE
Nottinghamshire County Council,07-01133,RB2 UK LTD,Care,Medical Equipment and  Supplies,31,0,31,05-Oct-11,CHILDREN & YOUNG PEOPLE
Nottinghamshire County Council,07-01133,RB2 UK LTD,Care,Medical Equipment and  Supplies,17,0,17,05-Oct-11,CHILDREN & YOUNG PEOPLE
Nottinghamshire County Council,07-01133,RB2 UK LTD,Care,Medical Equipment and  Supplies,500,0,500,05-Oct-11,CHILDREN & YOUNG PEOPLE
Nottinghamshire County Council,07-01133,RB2 UK LTD,Care,Medical Equipment and  Supplies,106,0,106,05-Oct-11,CHILDREN & YOUNG PEOPLE
Nottinghamshire County Council,07-01133,RB2 UK LTD,Care,Medical Equipment and  Supplies,168,0,168,05-Oct-11,CHILDREN & YOUNG PEOPLE
Nottinghamshire County Council,07-01133,RB2 UK LTD,Care,Medical Equipment and  Supplies,58,0,58,05-Oct-11,CHILDREN & YOUNG PEOPLE
Nottinghamshire County Council,07-01133,RB2 UK LTD,Care,Medical Equipment and  Supplies,40,0,40,05-Oct-11,CHILDREN & YOUNG PEOPLE
Nottinghamshire County Council,07-01133,RB2 UK LTD,Care,Medical Equipment and  Supplies,60,0,60,05-Oct-11,CHILDREN & YOUNG PEOPLE
Nottinghamshire County Council,07-01133,RB2 UK LTD,Care,Medical Equipment and  Supplies,89,0,89,05-Oct-11,CHILDREN & YOUNG PEOPLE
Nottinghamshire County Council,07-01133,RB2 UK LTD,Care,Medical Equipment and  Supplies,73,0,73,05-Oct-11,CHILDREN & YOUNG PEOPLE
Nottinghamshire County Council,07-01133,RB2 UK LTD,Care,Medical Equipment and  Supplies,62,0,62,05-Oct-11,CHILDREN & YOUNG PEOPLE
Nottinghamshire County Council,07-01133,RB2 UK LTD,Care,Medical Equipment and  Supplies,166,0,166,05-Oct-11,CHILDREN & YOUNG PEOPLE
Nottinghamshire County Council,07-01133,RB2 UK LTD,Care,Medical Equipment and  Supplies,73,0,73,05-Oct-11,CHILDREN & YOUNG PEOPLE
Nottinghamshire County Council,07-01133,RB2 UK LTD,Care,Medical Equipment and  Supplies,25,0,25,05-Oct-11,CHILDREN & YOUNG PEOPLE
Nottinghamshire County Council,07-01133,RB2 UK LTD,Care,Medical Equipment and  Supplies,7,0,7,05-Oct-11,CHILDREN & YOUNG PEOPLE
Nottinghamshire County Council,07-00446,MAVEN TRAINING LTD,People,Vocational Training,"2,922.00",0,"2,922.00",13-Oct-11,CHILDREN & YOUNG PEOPLE
Nottinghamshire County Council,07-00446,MAVEN TRAINING LTD,People,Vocational Training,110.13,0,110.13,13-Oct-11,CHILDREN & YOUNG PEOPLE
Nottinghamshire County Council,07-00597,ON THE THRESHOLD,Care,Personal & Domestic Services,"1,250.00",0,"1,250.00",21-Oct-11,CHILDREN & YOUNG PEOPLE
Nottinghamshire County Council,07-00730,CONISTON ASSOCIATES LTD,People,Vocational Training,720,0,720,03-Oct-11,CHILDREN & YOUNG PEOPLE
Nottinghamshire County Council,07-01145,STONEGATE TRAINING CONSULTANCIES,People,Vocational Training,800,0,800,27-Oct-11,CHILDREN & YOUNG PEOPLE
Nottinghamshire County Council,07-07601,LETS BUILD,Hard Facilities Management ,Building and Construction Supplies,"3,120.00",0,"3,120.00",24-Oct-11,CHILDREN & YOUNG PEOPLE
Nottinghamshire County Council,07-07601,LETS BUILD,Hard Facilities Management ,Building and Construction Supplies,-390,0,-390,24-Oct-11,CHILDREN & YOUNG PEOPLE
Nottinghamshire County Council,07-08132,ARNOLD DAIRIES,Soft Facilities Management,Dairy Products and Eggs,4.4,0,4.4,27-Oct-11,CHILDREN & YOUNG PEOPLE
Nottinghamshire County Council,07-01639,ARNOLD DAIRIES,Soft Facilities Management,Dairy Products and Eggs,6.73,0,6.73,07-Oct-11,CHILDREN & YOUNG PEOPLE
Nottinghamshire County Council,07-06448,ARNOLD DAIRIES,Soft Facilities Management,Dairy Products and Eggs,6.97,0,6.97,18-Oct-11,CHILDREN & YOUNG PEOPLE
Nottinghamshire County Council,07-07128,ARNOLD DAIRIES,Soft Facilities Management,Dairy Products and Eggs,6.97,0,6.97,20-Oct-11,CHILDREN & YOUNG PEOPLE
Nottinghamshire County Council,07-07565,KONICA MINOLTA,ICT,"Printing and Publishing, Equipment and Supplies",546.18,0,546.18,24-Oct-11,CHILDREN & YOUNG PEOPLE
Nottinghamshire County Council,07-07566,KONICA MINOLTA,ICT,"Printing and Publishing, Equipment and Supplies",152.11,0,152.11,24-Oct-11,CHILDREN & YOUNG PEOPLE
Nottinghamshire County Council,07-07566,KONICA MINOLTA,ICT,"Printing and Publishing, Equipment and Supplies","1,421.68",0,"1,421.68",24-Oct-11,CHILDREN & YOUNG PEOPLE
Nottinghamshire County Council,07-08132,ARNOLD DAIRIES,Soft Facilities Management,Dairy Products and Eggs,6.97,0,6.97,27-Oct-11,CHILDREN & YOUNG PEOPLE
Nottinghamshire County Council,07-00438,KONICA MINOLTA,ICT,"Printing and Publishing, Equipment and Supplies",485.01,0,485.01,17-Oct-11,CHILDREN & YOUNG PEOPLE
Nottinghamshire County Council,07-00394,KONICA MINOLTA,ICT,"Printing and Publishing, Equipment and Supplies",445.59,0,445.59,17-Oct-11,CHILDREN & YOUNG PEOPLE
Nottinghamshire County Council,07-00182,KILLISICK PRE SCHOOL,Education And Training,Pre School/ Nursery/ School,882.7,0,882.7,04-Oct-11,CHILDREN & YOUNG PEOPLE
Nottinghamshire County Council,07-00280,BIRCOTES PRE-SCHOOL PLAYGROUP,Education And Training,Pre School/ Nursery/ School,"1,324.05",0,"1,324.05",04-Oct-11,CHILDREN & YOUNG PEOPLE
Nottinghamshire County Council,07-00821,TINY WORLD MANSFIELD,Education And Training,Pre School/ Nursery/ School,"1,867.25",0,"1,867.25",11-Oct-11,CHILDREN & YOUNG PEOPLE
Nottinghamshire County Council,07-05726,PRE-SCHOOL LEARNING ALLIANCE,Education And Training,Pre School/ Nursery/ School,950.6,0,950.6,13-Oct-11,CHILDREN & YOUNG PEOPLE
Nottinghamshire County Council,07-05727,ALL ABOARD DAY NURSERY,Care,Infant Or Child Daycare Services,"1,425.90",0,"1,425.90",13-Oct-11,CHILDREN & YOUNG PEOPLE
Nottinghamshire County Council,07-05728,SUTTON NURSERY CHILDREN'S CENTRE,Care,Infant Or Child Daycare Services,"1,901.20",0,"1,901.20",25-Oct-11,CHILDREN & YOUNG PEOPLE
Nottinghamshire County Council,07-07703,HUCKNALL PRE-SCHOOL PLAYGROUP,Education And Training,Pre School/ Nursery/ School,855.54,0,855.54,26-Oct-11,CHILDREN & YOUNG PEOPLE
Nottinghamshire County Council,07-00240,NOTTINGHAM AND NOTTINGHAMSHIRE FUTURES LTD,Care,Healthcare Services,"2,800.00",560,"3,360.00",10-Oct-11,CHILDREN & YOUNG PEOPLE
Nottinghamshire County Council,07-02048,ARROW SPECIALISED TRANSPORT LTD,Transport & Travel,Bus,616,123.2,739.2,10-Oct-11,CHILDREN & YOUNG PEOPLE
Nottinghamshire County Council,07-02063,ARROW SPECIALISED TRANSPORT LTD,Transport & Travel,Bus,"1,893.00",378.6,"2,271.60",10-Oct-11,CHILDREN & YOUNG PEOPLE
Nottinghamshire County Council,07-02064,ARROW SPECIALISED TRANSPORT LTD,Transport & Travel,Bus,"1,560.00",0,"1,560.00",10-Oct-11,CHILDREN & YOUNG PEOPLE
Nottinghamshire County Council,07-02066,ARROW SPECIALISED TRANSPORT LTD,Transport & Travel,Bus,"1,335.00",267,"1,602.00",10-Oct-11,CHILDREN & YOUNG PEOPLE
Nottinghamshire County Council,07-02072,ARROW SPECIALISED TRANSPORT LTD,Transport & Travel,Bus,"1,326.00",265.2,"1,591.20",10-Oct-11,CHILDREN & YOUNG PEOPLE
Nottinghamshire County Council,07-02073,ARROW SPECIALISED TRANSPORT LTD,Transport & Travel,Bus,"1,596.00",319.2,"1,915.20",10-Oct-11,CHILDREN & YOUNG PEOPLE
Nottinghamshire County Council,07-02087,BRIDGES TRANSPORT SERVICES,Transport & Travel,Bus,"1,032.75",206.55,"1,239.30",10-Oct-11,CHILDREN & YOUNG PEOPLE
